Ref No,Department Family,Entity,Date of Payment,Expense Type,Expense Area,Supplier,Voluntary & Community Sector,SME Class,Sole Trader,D-U-N-S Number,Transaction number,PSPES Level 2,Narrative,Postal Code,Amount in Sterling,Grant?
2,Communities & Local Government,DCLG,01/05/2014,Agency Staff,Finance & Corporate Services,ALLEN LANE FINANCIAL RECRUITMENT,,Medium,Yes,234388853,5106203360,Contingent Labour,Interim Accountant (Extension 01),,"3,036.86",
3,Communities & Local Government,DCLG,01/05/2014,Cap Grants to Local Authorities (DEL),Neighbourhoods,LIVERPOOL CITY COUNCIL,,Public Bodies,,228646113,2100242664,,Liverpool City Deal 2014-15,L2 2DH,"15,000,000.00",Yes
4,Communities & Local Government,DCLG,01/05/2014,Cap Grants to Local Authorities (DEL),Neighbourhoods,TELFORD & WREKIN DC,,,,,2100242586,,Ironbridge Gorge 2014/15 Capital Grant,TF3 4LB,"3,849,000.00",Yes
5,Communities & Local Government,DCLG,01/05/2014,Capital Grants to People Non Profit,Neighbourhoods,COALFIELDS REGENERATION TRUST,Yes,Small,,237444133,2100242654,,Coalfields Regeneration Trust,S63 7WX,"4,403,750.00",Yes
6,Communities & Local Government,DCLG,01/05/2014,Courier Services,Finance & Corporate Services,INTERSERVE (FACILITIES MANAGEMENT),,Large,,364834825,5106203388,Post & Courier,DfECC/0009 Pitney Bowes,BS32 4NH,443.75,
7,Communities & Local Government,DCLG,01/05/2014,Courier Services,Finance & Corporate Services,INTERSERVE (FACILITIES MANAGEMENT),,Large,,364834825,5106203388,Post & Courier,DfECC/0028 Franking Machine,BS32 4NH,370.57,
8,Communities & Local Government,DCLG,01/05/2014,Courier Services,Finance & Corporate Services,INTERSERVE (FACILITIES MANAGEMENT),,Large,,364834825,5106203388,Post & Courier,DfECC/0005 Pitney Bowes,BS32 4NH,370.57,
9,Communities & Local Government,DCLG,01/05/2014,Current Grants to Non Profit Bodies,Neighbourhoods,COALFIELDS REGENERATION TRUST,Yes,Small,,237444133,2100242654,,Coalfields Regeneration Trust,S63 7WX,"596,250.00",Yes
10,Communities & Local Government,DCLG,01/05/2014,Facilities Management (ISD use only),Finance & Corporate Services,INTERSERVE (FACILITIES MANAGEMENT),,Large,,364834825,5106203388,Building Management,DfECC/0055 H & S Admin - E/H,BS32 4NH,508.04,
11,Communities & Local Government,DCLG,01/05/2014,Facilities Management (ISD use only),Finance & Corporate Services,INTERSERVE (FACILITIES MANAGEMENT),,Large,,364834825,5106203388,Building Management,DfECC/0006 RC Labour,BS32 4NH,"4,133.87",
12,Communities & Local Government,DCLG,01/05/2014,Facilities Management (ISD use only),Finance & Corporate Services,INTERSERVE (FACILITIES MANAGEMENT),,Large,,364834825,5106203388,Building Management,DfECC/0036 EH Courier Service,BS32 4NH,"2,430.63",
13,Communities & Local Government,DCLG,01/05/2014,Facilities Management (ISD use only),Finance & Corporate Services,INTERSERVE (FACILITIES MANAGEMENT),,Large,,364834825,5106203388,Building Management,DfECC/0038 Customer Relationship Manager,BS32 4NH,"2,286.28",
14,Communities & Local Government,DCLG,01/05/2014,Facilities Management (ISD use only),Finance & Corporate Services,INTERSERVE (FACILITIES MANAGEMENT),,Large,,364834825,5106203388,Building Management,DfECC/0074 Yr 2 Contract Inflation 13-14,BS32 4NH,"35,183.68",
15,Communities & Local Government,DCLG,01/05/2014,Facilities Management (ISD use only),Finance & Corporate Services,INTERSERVE (FACILITIES MANAGEMENT),,Large,,364834825,5106203388,Building Management,DfeCC/0045 IB TUPE E/H,BS32 4NH,887.00,
16,Communities & Local Government,DCLG,01/05/2014,Facilities Management (ISD use only),Finance & Corporate Services,INTERSERVE (FACILITIES MANAGEMENT),,Large,,364834825,5106203388,Building Management,DfECC/0042 Customer Services Manag,BS32 4NH,"3,552.75",
17,Communities & Local Government,DCLG,01/05/2014,Facilities Management (ISD use only),Finance & Corporate Services,INTERSERVE (FACILITIES MANAGEMENT),,Large,,364834825,5106203388,Building Management,DfECC/0066 Exceptions Bristol - THQ,BS32 4NH,"52,868.07",
18,Communities & Local Government,DCLG,01/05/2014,Facilities Management (ISD use only),Finance & Corporate Services,INTERSERVE (FACILITIES MANAGEMENT),,Large,,364834825,5106203388,Building Management,DfECC/0055 H & S Admin - Hemel,BS32 4NH,40.11,
19,Communities & Local Government,DCLG,01/05/2014,Facilities Management (ISD use only),Finance & Corporate Services,INTERSERVE (FACILITIES MANAGEMENT),,Large,,364834825,5106203388,Building Management,DfECC/0045 IB TUPE Hemel Hemp,BS32 4NH,70.03,
20,Communities & Local Government,DCLG,01/05/2014,Facilities Management (ISD use only),Finance & Corporate Services,INTERSERVE (FACILITIES MANAGEMENT),,Large,,364834825,5106203388,Building Management,DfECC/0066 Exceptions Bristol - 2 Riverg,BS32 4NH,"22,224.95",
21,Communities & Local Government,DCLG,01/05/2014,Facilities Management (ISD use only),Finance & Corporate Services,INTERSERVE (FACILITIES MANAGEMENT),,Large,,364834825,5106203388,Building Management,DfECC/0045 IB TUPE Bridge House,BS32 4NH,138.32,
22,Communities & Local Government,DCLG,01/05/2014,Facilities Management (ISD use only),Finance & Corporate Services,INTERSERVE (FACILITIES MANAGEMENT),,Large,,364834825,5106203388,Building Management,DfECC/0055 H & S Admin - Bridge HS,BS32 4NH,79.23,
23,Communities & Local Government,DCLG,01/05/2014,Facilities Management (ISD use only),Finance & Corporate Services,INTERSERVE (FACILITIES MANAGEMENT),,Large,,364834825,5106203388,Building Management,DfECC/0045 IB TUPE CityGate,BS32 4NH,235.03,
24,Communities & Local Government,DCLG,01/05/2014,Facilities Management (ISD use only),Finance & Corporate Services,INTERSERVE (FACILITIES MANAGEMENT),,Large,,364834825,5106203388,Building Management,DfECC/0055 H & S Admin - CityGate,BS32 4NH,134.62,
25,Communities & Local Government,DCLG,01/05/2014,Facilities Management (ISD use only),Finance & Corporate Services,INTERSERVE (FACILITIES MANAGEMENT),,Large,,364834825,5106203388,Building Management,DfECC/0045 IB TUPE Queen St,BS32 4NH,127.33,
26,Communities & Local Government,DCLG,01/05/2014,Facilities Management (ISD use only),Finance & Corporate Services,INTERSERVE (FACILITIES MANAGEMENT),,Large,,364834825,5106203388,Building Management,DfECC/0055 H & S Admin - Queens St,BS32 4NH,72.93,
27,Communities & Local Government,DCLG,01/05/2014,Facilities Management (ISD use only),Finance & Corporate Services,INTERSERVE (FACILITIES MANAGEMENT),,Large,,364834825,5106203388,Building Management,DfECC/0047 Queen Street Tel Line 2013-14,BS32 4NH,22.05,
28,Communities & Local Government,DCLG,01/05/2014,Facilities Management (ISD use only),Finance & Corporate Services,INTERSERVE (FACILITIES MANAGEMENT),,Large,,364834825,5106203388,Building Management,DfECC/0055 H & S Admin - St PP,BS32 4NH,133.05,
29,Communities & Local Government,DCLG,01/05/2014,Facilities Management (ISD use only),Finance & Corporate Services,INTERSERVE (FACILITIES MANAGEMENT),,Large,,364834825,5106203388,Building Management,DfECC/0045 IB TUPE St PP,BS32 4NH,232.30,
30,Communities & Local Government,DCLG,01/05/2014,Facilities Management (ISD use only),Finance & Corporate Services,INTERSERVE (FACILITIES MANAGEMENT),,Large,,364834825,5106203388,Building Management,DfECC/0055 H & S Admin - Paradise,BS32 4NH,76.49,
31,Communities & Local Government,DCLG,01/05/2014,Facilities Management (ISD use only),Finance & Corporate Services,INTERSERVE (FACILITIES MANAGEMENT),,Large,,364834825,5106203388,Building Management,DfECC/0045 IB TUPE Paradise Cir,BS32 4NH,133.54,
32,Communities & Local Government,DCLG,01/05/2014,Facilities Management (ISD use only),Finance & Corporate Services,INTERSERVE (FACILITIES MANAGEMENT),,Large,,364834825,5106203388,Building Management,DfECC/0056 on-call for Cobourg Hou,BS32 4NH,18.38,
33,Communities & Local Government,DCLG,01/05/2014,Fixed Maintenance,Finance & Corporate Services,INTERSERVE (FACILITIES MANAGEMENT),,Large,,364834825,5106203388,Construction Service Providers,DfECC/0011 Semi Comp Maint - Eland House,BS32 4NH,"1,619.08",
34,Communities & Local Government,DCLG,01/05/2014,Fixed Maintenance,Finance & Corporate Services,INTERSERVE (FACILITIES MANAGEMENT),,Large,,364834825,5106203388,Construction Service Providers,DfECC/0011Semi Comp Maint - Hemel,BS32 4NH,220.48,
35,Communities & Local Government,DCLG,01/05/2014,Fixed Maintenance,Finance & Corporate Services,INTERSERVE (FACILITIES MANAGEMENT),,Large,,364834825,5106203388,Construction Service Providers,DfECC/0011Semi Comp Maint - Bridge House,BS32 4NH,205.16,
36,Communities & Local Government,DCLG,01/05/2014,Fixed Maintenance,Finance & Corporate Services,INTERSERVE (FACILITIES MANAGEMENT),,Large,,364834825,5106203388,Construction Service Providers,DfECC/0011Semi Comp Maint - Citygate,BS32 4NH,147.47,
37,Communities & Local Government,DCLG,01/05/2014,Fixed Maintenance,Finance & Corporate Services,INTERSERVE (FACILITIES MANAGEMENT),,Large,,364834825,5106203388,Construction Service Providers,DfECC/0011Semi Comp Maint - Queen Street,BS32 4NH,268.96,
38,Communities & Local Government,DCLG,01/05/2014,Fixed Maintenance,Finance & Corporate Services,INTERSERVE (FACILITIES MANAGEMENT),,Large,,364834825,5106203388,Construction Service Providers,DfECC/0011Semi Comp Maint - 5 SPP,BS32 4NH,444.09,
39,Communities & Local Government,DCLG,01/05/2014,Fixed Maintenance,Finance & Corporate Services,INTERSERVE (FACILITIES MANAGEMENT),,Large,,364834825,5106203388,Construction Service Providers,DfECC/0011Semi Comp Maint - Paradise Cir,BS32 4NH,320.77,
40,Communities & Local Government,DCLG,01/05/2014,IT - Service Contracts,Localism,AIRWAVE SOLUTIONS LTD,,Large,,211461729,5106203355,Managed / Outsourced Services,Phase C England (MDT1A) 2013/14,SL1 2EJ,"94,406.92",
41,Communities & Local Government,DCLG,01/05/2014,Photocopying,Finance & Corporate Services,INTERSERVE (FACILITIES MANAGEMENT),,Large,,364834825,5106203388,Operational Services,DfECC/0041 Provision of Repro Equ,BS32 4NH,"9,040.17",
42,Communities & Local Government,DCLG,01/05/2014,Printing,"Strategy, Communications and Private Office",STATIONERY OFFICE LTD,,Large,,779375633,5106203341,Printing Services,Non-Vatable,NR3 1PD,160.00,
43,Communities & Local Government,DCLG,01/05/2014,Printing,"Strategy, Communications and Private Office",STATIONERY OFFICE LTD,,Large,,779375633,5106203341,Printing Services,Vatable,NR3 1PD,130.00,
44,Communities & Local Government,DCLG,01/05/2014,Security,Finance & Corporate Services,INTERSERVE (FACILITIES MANAGEMENT),,Large,,364834825,5106203388,Security,DFECC/0053 Security - Natural Eng TQH,BS32 4NH,"4,952.64",
45,Communities & Local Government,DCLG,01/05/2014,Steady State Service Provision,Neighbourhoods,CHESHIRE WEST & CHESTER COUNCIL,,Public Bodies,,,5106203391,Business Process Outsourcing Services,Project Manager 2013/14,CH1 2NP,"1,464.85",
46,Communities & Local Government,DCLG,01/05/2014,Steady State Service Provision,Neighbourhoods,CHESHIRE WEST & CHESTER COUNCIL,,Public Bodies,,,5106203391,Business Process Outsourcing Services,Secretary 2013/14,CH1 2NP,"5,520.00",
47,Communities & Local Government,DCLG,01/05/2014,Training,Finance & Corporate Services,ARCHIVES & RECORDS ASSCN (UK & IRE),,Micro,,774811954,5106203399,Development and Training,ARA conference 2014 - 3 places,TA1 1SW,"1,650.00",
48,Communities & Local Government,DCLG,01/05/2014,Training,Finance & Corporate Services,EURO ACADAMY TAXES ECONOMICS & LAW,,Small,,331464701,5106203368,Development and Training,VAT,10117,267.14,
49,Communities & Local Government,DCLG,01/05/2014,Training,Neighbourhoods,R T P I CONFERENCES,,Medium,,504955154,5106203396,Development and Training,10 place RTPI London Season Ticket,EC1V 1NY,"2,690.00",
50,Communities & Local Government,DCLG,01/05/2014,Training,Neighbourhoods,URBAN DESIGN LONDON,,Micro,,,5106203379,Development and Training,30 place training ticket,SE1 8NJ,500.00,
51,Communities & Local Government,DCLG,01/05/2014,Water,Finance & Corporate Services,WESSEX WATER SERVICES,,Large,,213753903,5106203390,Operation of Water Supplies and Distribution,SW RCC Water Supply 2013-14,BS48 1WW,339.90,
52,Communities & Local Government,DCLG,01/05/2014,Web Services,"Strategy, Communications and Private Office",DEXTROUS WEB LTD,,Micro,,211267270,5106203397,ICT Services,Additional Work,N1 7NG,540.00,
53,Communities & Local Government,DCLG,01/05/2014,Work In Progress Pre-Cert 40373 Spend,Neighbourhoods,BUSINESS & ENTERPRISE COMMERCIAL,,Medium,,,7600008400,,Revenue Grant To Be Paid,SR7 7TT,"145,917.31",Yes
54,Communities & Local Government,DCLG,01/05/2014,Work In Progress Pre-Cert 40373 Spend,Neighbourhoods,SHEFFIELD CITY COUNCIL,,,,,7600008396,,Revenue Grant To Be Paid,S1 2SH,"28,393.83",Yes
55,Communities & Local Government,DCLG,01/05/2014,Work In Progress Pre-Cert 40373 Spend,Neighbourhoods,SHEFFIELD CITY COUNCIL,,,,,7600008397,,Revenue Grant To Be Paid,S1 2SH,"28,161.76",Yes
56,Communities & Local Government,DCLG,01/05/2014,Work In Progress Pre-Cert 40373 Spend,Neighbourhoods,SHEFFIELD CITY COUNCIL,,,,,7600008398,,Revenue Grant To Be Paid,S1 2SH,"30,987.41",Yes
57,Communities & Local Government,DCLG,01/05/2014,Work In Progress Pre-Cert 40373 Spend,Neighbourhoods,SHEFFIELD CITY COUNCIL,,,,,7600008399,,Revenue Grant To Be Paid,S1 2SH,"32,772.48",Yes
58,Communities & Local Government,DCLG,01/05/2014,Work In Progress Pre-Cert 40373 Spend,Neighbourhoods,SOUTH YORKSHIRE PTE,,,,,7600008395,,Revenue Grant Clawback Offset,S2 5YT,-223.00,Yes
59,Communities & Local Government,DCLG,01/05/2014,Work In Progress Pre-Cert 40373 Spend,Neighbourhoods,SOUTH YORKSHIRE PTE,,,,,7600008395,,Revenue Grant To Be Paid,S2 5YT,"115,631.50",Yes
60,Communities & Local Government,DCLG,02/05/2014,Advertising,"Strategy, Communications and Private Office",DATA LATERAL LTD,,Medium,,348077673,5106203424,Advertising,Right to Buy Phase 2,NG17 5FB,"70,890.00",
61,Communities & Local Government,DCLG,02/05/2014,Agency Staff,Finance & Corporate Services,CAPITA BUSINESS SERVICES LTD,,Large,,215580993,5106203378,Contingent Labour,Interim and Specialist Contractor,DL1 9HB,"1,752.62",
62,Communities & Local Government,DCLG,02/05/2014,Agency Staff,Finance & Corporate Services,CAPITA BUSINESS SERVICES LTD,,Large,,215580993,5106203380,Contingent Labour,Interim and Specialist Contractor,DL1 9HB,"2,402.11",
63,Communities & Local Government,DCLG,02/05/2014,Agency Staff,Finance & Corporate Services,SQUARE ONE RESOURCES LTD,,Medium,,491410288,5106203411,Contingent Labour,SAP Support until closedown,EC2A 2AD,"2,287.06",
64,Communities & Local Government,DCLG,02/05/2014,Agency Staff,Finance & Corporate Services,CAPITA BUSINESS SERVICES LTD,,Large,,215580993,5106203377,Contingent Labour,Interim and Specialist Contractor,DL1 9HB,"4,920.19",
65,Communities & Local Government,DCLG,02/05/2014,Agency Staff,Localism,CAPITA BUSINESS SERVICES LTD,,Large,,215580993,5106203373,Contingent Labour,Consultancy advice,DL1 9HB,827.18,
66,Communities & Local Government,DCLG,02/05/2014,Agency Staff,Neighbourhoods,CAPITA BUSINESS SERVICES LTD,,Large,,215580993,5106203369,Contingent Labour,Interim and Specialist Contractor,DL1 9HB,"1,570.75",
67,Communities & Local Government,DCLG,02/05/2014,Agency Staff,Neighbourhoods,CAPITA BUSINESS SERVICES LTD,,Large,,215580993,5106203370,Contingent Labour,Interim and Specialist Contractor,DL1 9HB,"1,570.75",
68,Communities & Local Government,DCLG,02/05/2014,Agency Staff,Neighbourhoods,CAPITA BUSINESS SERVICES LTD,,Large,,215580993,5106203371,Contingent Labour,Interim Manager,DL1 9HB,"1,217.05",
69,Communities & Local Government,DCLG,02/05/2014,Agency Staff,Neighbourhoods,CAPITA BUSINESS SERVICES LTD,,Large,,215580993,5106203372,Contingent Labour,Interim Manager (Expenses),DL1 9HB,74.76,
70,Communities & Local Government,DCLG,02/05/2014,Agency Staff,Neighbourhoods,CAPITA BUSINESS SERVICES LTD,,Large,,215580993,5106203372,Contingent Labour,Interim and Specialist Contractor,DL1 9HB,"1,518.82",
71,Communities & Local Government,DCLG,02/05/2014,Agency Staff,Neighbourhoods,CAPITA BUSINESS SERVICES LTD,,Large,,215580993,5106203375,Contingent Labour,Interim and Specialist Contractor,DL1 9HB,"1,466.88",
72,Communities & Local Government,DCLG,02/05/2014,Agency Staff,Neighbourhoods,CAPITA BUSINESS SERVICES LTD,,Large,,215580993,5106203376,Contingent Labour,Interim and Specialist Contractor,DL1 9HB,"1,570.75",
73,Communities & Local Government,DCLG,02/05/2014,Agency Staff,Neighbourhoods,CAPITA BUSINESS SERVICES LTD,,Large,,215580993,5106203382,Contingent Labour,Interim and Specialist Contractor,DL1 9HB,"1,996.45",
74,Communities & Local Government,DCLG,02/05/2014,Agency Staff,Neighbourhoods,MANPOWER UK LTD,,Large,,238500362,5106203280,Contingent Labour,Planning Portal admin Support,UB8 1AB,"1,183.68",
75,Communities & Local Government,DCLG,02/05/2014,Agency Staff,Neighbourhoods,MANPOWER UK LTD,,Large,,238500362,5106203401,Contingent Labour,Planning Portal admin Support,UB8 1AB,"1,197.49",
76,Communities & Local Government,DCLG,02/05/2014,Agency Staff,Neighbourhoods,MANPOWER UK LTD,,Large,,238500362,5106203403,Contingent Labour,Planning Portal admin Support,UB8 1AB,"1,216.56",
77,Communities & Local Government,DCLG,02/05/2014,Agency Staff,Neighbourhoods,MANPOWER UK LTD,,Large,,238500362,5106203404,Contingent Labour,Planning Portal admin Support,UB8 1AB,920.64,
78,Communities & Local Government,DCLG,02/05/2014,Agency Staff,Neighbourhoods,MANPOWER UK LTD,,Large,,238500362,5106203442,Contingent Labour,Planning Portal admin Support,UB8 1AB,"1,183.68",
79,Communities & Local Government,DCLG,02/05/2014,Catering,Neighbourhoods,SOUTH EAST ESSEX COLLEGE,,Large,,,5106203417,Catering,Eastern Programme Local Management Meeting,SS1 1ND,238.00,
80,Communities & Local Government,DCLG,02/05/2014,Current (non AEF) Grants to Local Authorities,Finance & Corporate Services,DURHAM & DARLINGTON FIRE RESCUE SER,,Public Bodies,,424872851,2100242009,,Regional Centre Centre Grant,DH1 1TW,"150,320.92",Yes
81,Communities & Local Government,DCLG,02/05/2014,Current (non AEF) Grants to Local Authorities,Finance & Corporate Services,GREATER LONDON AUTHORITY,,Large,,225353416,2100241995,,Regional Centre Centre Grant,SE10 1AP,"142,073.92",Yes
82,Communities & Local Government,DCLG,02/05/2014,Current (non AEF) Grants to Local Authorities,Finance & Corporate Services,GREATER MANCHESTER FIRE & RESCUE,,Public Bodies,,424873172,2100241983,,Regional Centre Centre Grant,M27 8US,"105,122.25",Yes
83,Communities & Local Government,DCLG,02/05/2014,Current (non AEF) Grants to Local Authorities,Localism,EASTLEIGH BOROUGH COUNCIL,,,,232669911,5000248878,,Council Tax Freeze,SO5 9YN,"6,109.00",Yes
84,Communities & Local Government,DCLG,02/05/2014,Current Grants to Non Profit Bodies,Localism,NATIONAL MEMORIAL ARBORETUM CO LTD,,Small,,,2100242794,,Victoria Cross Commemorative Paving Stones,DE13 7AR,"310,849.20",Yes
85,Communities & Local Government,DCLG,02/05/2014,Electricity,Finance & Corporate Services,BRITISH INDEPENDENT UTILITIES,,Medium,,,5106203224,Energy,Utilities Revenue for RCCs,FY8 2NA,-345.60,
86,Communities & Local Government,DCLG,02/05/2014,Electricity,Finance & Corporate Services,BRITISH INDEPENDENT UTILITIES,,Medium,,,5106203415,Energy,Utilities Revenue for RCCs,FY8 2NA,"1,382.40",
87,Communities & Local Government,DCLG,02/05/2014,Electricity,Finance & Corporate Services,EDF ENERGY CUSTOMER FIELD SERVICES,,Large,,494967482,5106203425,Energy,6 months pro-rata HHMOP charges at Eland,DA6 8ET,432.00,
88,Communities & Local Government,DCLG,02/05/2014,Gas,Finance & Corporate Services,CORONA ENERGY LTD,,Medium,,525374690,5106203421,Energy,Bridge House Gas 2013-14,WD17 1JW,"1,901.57",
89,Communities & Local Government,DCLG,02/05/2014,Gas,Finance & Corporate Services,CORONA ENERGY LTD,,Medium,,525374690,5106203426,Energy,Paradise Circus Gas 2013-14,WD17 1JW,"1,436.92",
90,Communities & Local Government,DCLG,02/05/2014,Gas,Finance & Corporate Services,CORONA ENERGY LTD,,Medium,,525374690,5106203427,Energy,Bridge House Gas 2013-14,WD17 1JW,"4,241.77",
91,Communities & Local Government,DCLG,02/05/2014,Gas,Finance & Corporate Services,CORONA ENERGY LTD,,Medium,,525374690,5106203428,Energy,Eland House Gas 2013-14,WD17 1JW,"4,992.08",
92,Communities & Local Government,DCLG,02/05/2014,Gas,Finance & Corporate Services,CORONA ENERGY LTD,,Medium,,525374690,5106203429,Energy,Queens Street Gas 2013-14,WD17 1JW,"1,395.67",
93,Communities & Local Government,DCLG,02/05/2014,"IT - PC, Network & Hardware",Finance & Corporate Services,FUJITSU SERVICES LTD,,Large,,423375062,5106203400,ICT Hardware,NRF0034 Gold Touch adjustable Keyboard,WA3 9BD,310.08,
94,Communities & Local Government,DCLG,02/05/2014,"IT - PC, Network & Hardware",Finance & Corporate Services,FUJITSU SERVICES LTD,,Large,,423375062,5106203400,ICT Hardware,NRF0034 Wired Option Hypertec Mouse,WA3 9BD,141.60,
95,Communities & Local Government,DCLG,02/05/2014,IT - Service Contracts,Finance & Corporate Services,FUJITSU SERVICES LTD,,Large,,423375062,5106203412,Managed / Outsourced Services,"FY 13/14 New Requirements ""NR"" Charges",WA3 9BD,446.88,
96,Communities & Local Government,DCLG,02/05/2014,IT - Service Contracts,Finance & Corporate Services,VERIZON UK LTD,,Large,,346786171,5106203430,Managed / Outsourced Services,TESA common hosting 2013-2014,RG2 6DA,"21,115.98",
97,Communities & Local Government,DCLG,02/05/2014,IT - Service Contracts,Finance & Corporate Services,VERIZON UK LTD,,Large,,346786171,5106203431,Managed / Outsourced Services,TESA common hosting 2013-2014,RG2 6DA,"5,240.76",
98,Communities & Local Government,DCLG,02/05/2014,IT - Service Contracts,Finance & Corporate Services,VERIZON UK LTD,,Large,,346786171,5106203432,Managed / Outsourced Services,TESA common hosting 2013-2014,RG2 6DA,"21,115.98",
99,Communities & Local Government,DCLG,02/05/2014,IT - Service Contracts,Localism,VERIZON UK LTD,,Large,,346786171,5106203430,Managed / Outsourced Services,Fire common hosting 2013-2014,RG2 6DA,"20,325.29",
100,Communities & Local Government,DCLG,02/05/2014,IT - Service Contracts,Localism,VERIZON UK LTD,,Large,,346786171,5106203432,Managed / Outsourced Services,Fire common hosting 2013-2014,RG2 6DA,"20,325.29",
101,Communities & Local Government,DCLG,02/05/2014,Legal Fees,Finance & Corporate Services,SNR DENTON UK  LLP,,Large,,779522056,5106203310,Legal,Legal Advice,EC4M 7WS,"2,015.44",
102,Communities & Local Government,DCLG,02/05/2014,Legal Fees,Finance & Corporate Services,SNR DENTON UK  LLP,,Large,,779522056,5106203444,Legal,Legal Advice,EC4M 7WS,432.00,
103,Communities & Local Government,DCLG,02/05/2014,Management Consultancy,Neighbourhoods,DTZ DEBENHAM TIE LEUNG,,Large,,215585409,5106203050,Consultancy,North West - March Inv,B4 6AJ,"2,349.60",
104,Communities & Local Government,DCLG,02/05/2014,Mobile phone costs,Finance & Corporate Services,ORANGE (AIRTIME/LINE RENTAL),,Large,,210707540,2100242797,Telecoms,Monthly consolidated telephone costs April 2014,S98 1DX,417.00,
105,Communities & Local Government,DCLG,02/05/2014,Professional services,Neighbourhoods,MR R S MILNE,,,,,2100242748,Environmental Services,PAYMENT OF INVOICE DATED 23 APRIL 1014,,849.75,
106,Communities & Local Government,DCLG,02/05/2014,Professional services,Neighbourhoods,MS E M COCHRANE,,,,,2100242750,Environmental Services,PAYMENT OF INVOICE DATED 23 APRIL 1014,,"1,019.70",
107,Communities & Local Government,DCLG,02/05/2014,Publications,Finance & Corporate Services,JONES YARRELL LEADENHALL LTD,,Large,,211522354,5106203418,Learning and Development Materials,Journals supply 2013-14,E3 3JH,320.52,
108,Communities & Local Government,DCLG,02/05/2014,Steady State Service Provision,Finance & Corporate Services,CGI IT UK LIMITED,,Large,,239881618,5106203440,Business Process Outsourcing Services,Payroll Services & Licences  14/15,CF31 9AP,"6,316.75",
109,Communities & Local Government,DCLG,02/05/2014,Travel and Subsistence Account,Localism,CFOA (NATIONAL RESILIANCE) LTD,,Small,,211512993,5106203386,Business Travel,ESMCP Fire Service T&S,GL56 0RH,"10,316.61",
110,Communities & Local Government,DCLG,02/05/2014,Travel and Subsistence Account,Localism,NORTH WALES FIRE & RESCUE SERVICE,,Large,,,2100242760,Business Travel,NORTH WALES FRAG T&S,LL17 0JJ,788.10,
111,Communities & Local Government,DCLG,02/05/2014,Work In Progress Pre-Cert 40373 Spend,Neighbourhoods,EAST RIDING OF YORKSHIRE COUNCIL,,,,,7600008411,,Revenue Grant To Be Paid,HU17 9BA,"7,567.13",Yes
112,Communities & Local Government,DCLG,02/05/2014,Work In Progress Pre-Cert 40373 Spend,Neighbourhoods,LEICESTER CITY COUNCIL,,Large,,,7600008402,,Revenue Grant To Be Paid,LE1 6ZG,"8,632.28",Yes
113,Communities & Local Government,DCLG,02/05/2014,Work In Progress Pre-Cert 40373 Spend,Neighbourhoods,NORTHERN FILM & MEDIA,,Micro,,,7600008407,,Revenue Grant To Be Paid,NE8 3BA,"25,135.07",Yes
114,Communities & Local Government,DCLG,02/05/2014,Work In Progress Pre-Cert 40373 Spend,Neighbourhoods,RTC NORTH LTD,,,,,7600008406,,Revenue Grant To Be Paid,SR5 3HD,"34,387.14",Yes
115,Communities & Local Government,DCLG,02/05/2014,Work In Progress Pre-Cert 40373 Spend,Neighbourhoods,UNIVERSITY OF SHEFFIELD,,,,,7600008403,,Revenue Grant To Be Paid,S60 5TZ,"2,476.29",Yes
116,Communities & Local Government,DCLG,02/05/2014,Work In Progress Pre-Cert 40373 Spend,Neighbourhoods,UNIVERSITY OF SHEFFIELD,,,,,7600008404,,Revenue Grant To Be Paid,S60 5TZ,"48,606.57",Yes
117,Communities & Local Government,DCLG,02/05/2014,Work In Progress Pre-Cert 40373 Spend,Neighbourhoods,UNIVERSITY OF THE WEST OF ENGLAND,,,,,7600008401,,Revenue Grant Clawback Offset,BS16 1QY,"-5,721.09",Yes
118,Communities & Local Government,DCLG,02/05/2014,Work In Progress Pre-Cert 40373 Spend,Neighbourhoods,UNIVERSITY OF THE WEST OF ENGLAND,,,,,7600008401,,Revenue Grant To Be Paid,BS16 1QY,"73,495.66",Yes
119,Communities & Local Government,DCLG,02/05/2014,Work In Progress Pre-Cert 40373 Spend,Neighbourhoods,YTKO LIMITED,,,,,7600008405,,Revenue Grant To Be Paid,CB4 2QH,"52,363.73",Yes
120,Communities & Local Government,DCLG,02/05/2014,Work In Progress Pre-Cert 40467 Spend,Neighbourhoods,BALANUS ASSETS LTD,,Micro,,,7600008408,,Capital Grant To Be Paid,NR20 5LG,"65,101.11",Yes
121,Communities & Local Government,DCLG,02/05/2014,Work In Progress Pre-Cert 40467 Spend,Neighbourhoods,HALLENBEAGLE ESTATES LIMITED,,,,,7600008409,,Capital Grant To Be Paid,SL3 9EH,"464,317.76",Yes
122,Communities & Local Government,DCLG,02/05/2014,Work In Progress Pre-Cert 40467 Spend,Neighbourhoods,LEICESTER CITY COUNCIL,,Large,,,7600008402,,Capital Grant To Be Paid,LE1 6ZG,"8,535.00",Yes
123,Communities & Local Government,DCLG,02/05/2014,Work In Progress Pre-Cert 40467 Spend,Neighbourhoods,PENDENNIS SHIPYARD LTD,,,,,7600008410,,Capital Grant To Be Paid,TR11 4NR,"283,906.85",Yes
124,Communities & Local Government,DCLG,06/05/2014,Agency Staff,Finance & Corporate Services,CAPITA BUSINESS SERVICES LTD,,Large,,215580993,5106203455,Contingent Labour,Interim Manager (Expenses),DL1 9HB,20.88,
125,Communities & Local Government,DCLG,06/05/2014,Agency Staff,Finance & Corporate Services,CAPITA BUSINESS SERVICES LTD,,Large,,215580993,5106203455,Contingent Labour,Interim and Specialist Contractor,DL1 9HB,"2,375.35",
126,Communities & Local Government,DCLG,06/05/2014,Agency Staff,Neighbourhoods,REED SPECIALIST RECRUITMENT LTD,,Large,,288656960,5106203453,Contingent Labour,Planning casework AWR Extension1 Month,NN1 1UE,708.91,
127,Communities & Local Government,DCLG,06/05/2014,Cap Grants to Local Authorities (DEL),Neighbourhoods,BIG LOTTERY FUND,,Public Bodies,,648124972,2100242486,,Coastal communities Fund  13/14,B15 1TR,"1,585,566.00",Yes
128,Communities & Local Government,DCLG,06/05/2014,Courier Services,Finance & Corporate Services,INTERSERVE (FACILITIES MANAGEMENT),,Large,,364834825,5106203463,Post & Courier,DfECC/0009 Pitney Bowes,BS32 4NH,443.75,
129,Communities & Local Government,DCLG,06/05/2014,Courier Services,Finance & Corporate Services,INTERSERVE (FACILITIES MANAGEMENT),,Large,,364834825,5106203463,Post & Courier,DfECC/0028 Franking Machine,BS32 4NH,370.57,
130,Communities & Local Government,DCLG,06/05/2014,Courier Services,Finance & Corporate Services,INTERSERVE (FACILITIES MANAGEMENT),,Large,,364834825,5106203463,Post & Courier,DfECC/0005 Pitney Bowes,BS32 4NH,370.57,
131,Communities & Local Government,DCLG,06/05/2014,Current (non AEF) Grants to Local Authorities,Neighbourhoods,BIG LOTTERY FUND,,Public Bodies,,648124972,2100242486,,Coastal communities Fund  13/14,B15 1TR,"371,008.00",Yes
132,Communities & Local Government,DCLG,06/05/2014,Current (non AEF) Grants to Local Authorities,Neighbourhoods,CHERWELL DC,,,,211168208,2100242745,,Large Scale Sites Programme,OX15 4AA,"738,000.00",Yes
133,Communities & Local Government,DCLG,06/05/2014,Current (non AEF) Grants to Local Authorities,Neighbourhoods,CORNWALL COUNTY COUNCIL,,Large,,211334404,2100242754,,Large Scale Sites Programme,TR1 3AY,"860,760.00",Yes
134,Communities & Local Government,DCLG,06/05/2014,Current (non AEF) Grants to Local Authorities,Neighbourhoods,EAST CAMBRIDGESHIRE DC,,,,,2100242749,,Large Scale Sites Programme,CB7 4PL,"200,000.00",Yes
135,Communities & Local Government,DCLG,06/05/2014,Current (non AEF) Grants to Local Authorities,Neighbourhoods,EAST DEVON DC,,Public Bodies,,,2100242746,,Large Scale Sites Programme,EX10 8HL,"117,000.00",Yes
136,Communities & Local Government,DCLG,06/05/2014,Current (non AEF) Grants to Local Authorities,Neighbourhoods,SOUTH HAMS DC,,,,236445342,2100242751,,Large Scale Sites Programme,TQ9 5NE,"218,000.00",Yes
137,Communities & Local Government,DCLG,06/05/2014,Current (non AEF) Grants to Local Authorities,Neighbourhoods,SWINDON BOROUGH COUNCIL,,Large,,,2100242755,,Large Scale Sites Programme,SN1 2JH,"245,000.00",Yes
138,Communities & Local Government,DCLG,06/05/2014,Current (non AEF) Grants to Local Authorities,Neighbourhoods,WOKINGHAM DC,,Public Bodies,,,2100242756,,Large Scale Sites Programme,RG40 1JW,"736,000.00",Yes
139,Communities & Local Government,DCLG,06/05/2014,Facilities Management (ISD use only),Finance & Corporate Services,INTERSERVE (FACILITIES MANAGEMENT),,Large,,364834825,5106203463,Building Management,DfECC/0055 H & S Admin - E/H,BS32 4NH,508.04,
140,Communities & Local Government,DCLG,06/05/2014,Facilities Management (ISD use only),Finance & Corporate Services,INTERSERVE (FACILITIES MANAGEMENT),,Large,,364834825,5106203463,Building Management,DfECC/0006 RC Labour,BS32 4NH,"4,133.87",
141,Communities & Local Government,DCLG,06/05/2014,Facilities Management (ISD use only),Finance & Corporate Services,INTERSERVE (FACILITIES MANAGEMENT),,Large,,364834825,5106203463,Building Management,DfECC/0036 EH Courier Service,BS32 4NH,"2,430.63",
142,Communities & Local Government,DCLG,06/05/2014,Facilities Management (ISD use only),Finance & Corporate Services,INTERSERVE (FACILITIES MANAGEMENT),,Large,,364834825,5106203463,Building Management,DfECC/0038 Customer Relationship Manager,BS32 4NH,"2,286.28",
143,Communities & Local Government,DCLG,06/05/2014,Facilities Management (ISD use only),Finance & Corporate Services,INTERSERVE (FACILITIES MANAGEMENT),,Large,,364834825,5106203463,Building Management,DfECC/0042 Customer Services Manag,BS32 4NH,"3,552.75",
144,Communities & Local Government,DCLG,06/05/2014,Facilities Management (ISD use only),Finance & Corporate Services,INTERSERVE (FACILITIES MANAGEMENT),,Large,,364834825,5106203463,Building Management,DfECC/0066 Exceptions Bristol - THQ,BS32 4NH,"73,476.39",
145,Communities & Local Government,DCLG,06/05/2014,Facilities Management (ISD use only),Finance & Corporate Services,INTERSERVE (FACILITIES MANAGEMENT),,Large,,364834825,5106203463,Building Management,DfECC/0055 H & S Admin - Hemel,BS32 4NH,40.11,
146,Communities & Local Government,DCLG,06/05/2014,Facilities Management (ISD use only),Finance & Corporate Services,INTERSERVE (FACILITIES MANAGEMENT),,Large,,364834825,5106203463,Building Management,DfECC/0066 Exceptions Bristol - 2 Riverg,BS32 4NH,"35,481.10",
147,Communities & Local Government,DCLG,06/05/2014,Facilities Management (ISD use only),Finance & Corporate Services,INTERSERVE (FACILITIES MANAGEMENT),,Large,,364834825,5106203463,Building Management,DfECC/0055 H & S Admin - Bridge HS,BS32 4NH,79.23,
148,Communities & Local Government,DCLG,06/05/2014,Facilities Management (ISD use only),Finance & Corporate Services,INTERSERVE (FACILITIES MANAGEMENT),,Large,,364834825,5106203463,Building Management,DfECC/0055 H & S Admin - CityGate,BS32 4NH,134.62,
149,Communities & Local Government,DCLG,06/05/2014,Facilities Management (ISD use only),Finance & Corporate Services,INTERSERVE (FACILITIES MANAGEMENT),,Large,,364834825,5106203463,Building Management,DfECC/0055 H & S Admin - Queens St,BS32 4NH,72.93,
150,Communities & Local Government,DCLG,06/05/2014,Facilities Management (ISD use only),Finance & Corporate Services,INTERSERVE (FACILITIES MANAGEMENT),,Large,,364834825,5106203463,Building Management,DfECC/0047 Queen Street Tel Line 2013-14,BS32 4NH,1.61,
151,Communities & Local Government,DCLG,06/05/2014,Facilities Management (ISD use only),Finance & Corporate Services,INTERSERVE (FACILITIES MANAGEMENT),,Large,,364834825,5106203463,Building Management,DfECC/0055 H & S Admin - St PP,BS32 4NH,133.05,
152,Communities & Local Government,DCLG,06/05/2014,Facilities Management (ISD use only),Finance & Corporate Services,INTERSERVE (FACILITIES MANAGEMENT),,Large,,364834825,5106203463,Building Management,DfECC/0055 H & S Admin - Paradise,BS32 4NH,76.49,
153,Communities & Local Government,DCLG,06/05/2014,Facilities Management (ISD use only),Finance & Corporate Services,INTERSERVE (FACILITIES MANAGEMENT),,Large,,364834825,5106203463,Building Management,DfECC/0056 on-call for Cobourg Hou,BS32 4NH,18.38,
154,Communities & Local Government,DCLG,06/05/2014,Fixed Maintenance,Finance & Corporate Services,INTERSERVE (FACILITIES MANAGEMENT),,Large,,364834825,5106203451,Construction Service Providers,Mast House Variable 2013-14,BS32 4NH,302.40,
155,Communities & Local Government,DCLG,06/05/2014,Fixed Maintenance,Finance & Corporate Services,INTERSERVE (FACILITIES MANAGEMENT),,Large,,364834825,5106203463,Construction Service Providers,DfECC/0011 Semi Comp Maint - Eland House,BS32 4NH,"1,619.08",
156,Communities & Local Government,DCLG,06/05/2014,Fixed Maintenance,Finance & Corporate Services,INTERSERVE (FACILITIES MANAGEMENT),,Large,,364834825,5106203463,Construction Service Providers,DfECC/0011Semi Comp Maint - Hemel,BS32 4NH,220.48,
157,Communities & Local Government,DCLG,06/05/2014,Fixed Maintenance,Finance & Corporate Services,INTERSERVE (FACILITIES MANAGEMENT),,Large,,364834825,5106203463,Construction Service Providers,DfECC/0011Semi Comp Maint - Bridge House,BS32 4NH,205.16,
158,Communities & Local Government,DCLG,06/05/2014,Fixed Maintenance,Finance & Corporate Services,INTERSERVE (FACILITIES MANAGEMENT),,Large,,364834825,5106203463,Construction Service Providers,DfECC/0011Semi Comp Maint - Citygate,BS32 4NH,147.47,
159,Communities & Local Government,DCLG,06/05/2014,Fixed Maintenance,Finance & Corporate Services,INTERSERVE (FACILITIES MANAGEMENT),,Large,,364834825,5106203463,Construction Service Providers,DfECC/0011Semi Comp Maint - Queen Street,BS32 4NH,268.96,
160,Communities & Local Government,DCLG,06/05/2014,Fixed Maintenance,Finance & Corporate Services,INTERSERVE (FACILITIES MANAGEMENT),,Large,,364834825,5106203463,Construction Service Providers,DfECC/0011Semi Comp Maint - 5 SPP,BS32 4NH,444.09,
161,Communities & Local Government,DCLG,06/05/2014,Fixed Maintenance,Finance & Corporate Services,INTERSERVE (FACILITIES MANAGEMENT),,Large,,364834825,5106203463,Construction Service Providers,DfECC/0011Semi Comp Maint - Paradise Cir,BS32 4NH,320.77,
162,Communities & Local Government,DCLG,06/05/2014,Gas,Finance & Corporate Services,CORONA ENERGY LTD,,Medium,,525374690,5106203470,Energy,TQH - Gas Charges 2014,WD17 1JW,"3,712.32",
163,Communities & Local Government,DCLG,06/05/2014,"IT - PC, Network & Hardware","Strategy, Communications and Private Office",COMPUTACENTER (UK) LTD,,Large,,226023463,5106203423,ICT Hardware,HP 6470B i5-3320 -14H/W Part no C7C14UCR,AL10 9TW,"3,214.27",
164,Communities & Local Government,DCLG,06/05/2014,Office Supplies,Finance & Corporate Services,BANNER BUSINESS SUPPLIES LTD,,Large,,236638362,5106203446,Office Supplies,DELWEEKLY Banner A4 Recycled Copier Pape,NR3 1PD,254.16,
165,Communities & Local Government,DCLG,06/05/2014,Office Supplies,Finance & Corporate Services,BANNER BUSINESS SUPPLIES LTD,,Large,,236638362,5106203446,Office Supplies,DELWEEKLY Banner Polypropylene Adhesive,NR3 1PD,28.37,
166,Communities & Local Government,DCLG,06/05/2014,Photocopying,Finance & Corporate Services,INTERSERVE (FACILITIES MANAGEMENT),,Large,,364834825,5106203463,Operational Services,DfECC/0041 Provision of Repro Equ,BS32 4NH,"9,040.17",
167,Communities & Local Government,DCLG,06/05/2014,Printing,"Strategy, Communications and Private Office",STATIONERY OFFICE LTD,,Large,,779375633,5106203471,Printing Services,Non-Vatable,NR3 1PD,165.00,
168,Communities & Local Government,DCLG,06/05/2014,Printing,"Strategy, Communications and Private Office",STATIONERY OFFICE LTD,,Large,,779375633,5106203471,Printing Services,Vatable,NR3 1PD,130.00,
169,Communities & Local Government,DCLG,06/05/2014,Printing,"Strategy, Communications and Private Office",STATIONERY OFFICE LTD,,Large,,779375633,5106203474,Printing Services,Non-Vatable,NR3 1PD,165.00,
170,Communities & Local Government,DCLG,06/05/2014,Printing,"Strategy, Communications and Private Office",STATIONERY OFFICE LTD,,Large,,779375633,5106203474,Printing Services,Vatable,NR3 1PD,130.00,
171,Communities & Local Government,DCLG,06/05/2014,Printing,"Strategy, Communications and Private Office",STATIONERY OFFICE LTD,,Large,,779375633,5106203475,Printing Services,Non-Vatable,NR3 1PD,165.00,
172,Communities & Local Government,DCLG,06/05/2014,Printing,"Strategy, Communications and Private Office",STATIONERY OFFICE LTD,,Large,,779375633,5106203475,Printing Services,Vatable,NR3 1PD,130.00,
173,Communities & Local Government,DCLG,06/05/2014,Professional services,Finance & Corporate Services,E C HARRIS LLP,,Large,,,5106203457,Construction Service Providers,PAMU Com - 23 TFM Support - FE - Ext,N1 9AB,"4,560.00",
174,Communities & Local Government,DCLG,06/05/2014,Professional services,Finance & Corporate Services,E C HARRIS LLP,,Large,,,5106203461,Construction Service Providers,PAMU Com - 101 - TFM Support - TG,N1 9AB,"4,104.28",
175,Communities & Local Government,DCLG,06/05/2014,Security,Finance & Corporate Services,INTERSERVE (FACILITIES MANAGEMENT),,Large,,364834825,5106203463,Security,DFECC/0053 Security - Natural Eng TQH,BS32 4NH,"4,775.76",
176,Communities & Local Government,DCLG,06/05/2014,Services provided by other Govt Orgs,Neighbourhoods,VALUATION OFFICE AGENCY,,Public Bodies,,215253886,5106202295,Business and Commercial Services,Right to Buy Valuation Office Agency Valuation 13/14,W1B 5BU,"69,129.00",Yes
177,Communities & Local Government,DCLG,06/05/2014,Telecoms equipment (non-capitalised),"Strategy, Communications and Private Office",COLT TELECOMMUNICATIONS,,Large,,543775258,5106203465,Telecoms,Dark fibre - HoC to Eland house monthly,EC3A 7QN,500.00,
178,Communities & Local Government,DCLG,06/05/2014,Training,Neighbourhoods,DCLG GOVERNMENT PROCUREMENT CARD,,,,,1000003947,Learning and Development Materials,payment for S Chilcott to attend event,TN37 7GA,597.00,
179,Communities & Local Government,DCLG,06/05/2014,Variable Maintenance < 15k,Finance & Corporate Services,INTERSERVE (FACILITIES MANAGEMENT),,Large,,364834825,5106203451,Construction Service Providers,Eland House Variable Maintenance Costs,BS32 4NH,"5,035.37",
180,Communities & Local Government,DCLG,06/05/2014,Variable Maintenance < 15k,Finance & Corporate Services,INTERSERVE (FACILITIES MANAGEMENT),,Large,,364834825,5106203451,Construction Service Providers,Temple Quay Variable Maintenance Costs,BS32 4NH,"2,005.56",
181,Communities & Local Government,DCLG,06/05/2014,Variable Maintenance < 15k,Finance & Corporate Services,INTERSERVE (FACILITIES MANAGEMENT),,Large,,364834825,5106203451,Construction Service Providers,Hemel Variable Maintenance Costs,BS32 4NH,852.48,
182,Communities & Local Government,DCLG,06/05/2014,Variable Maintenance < 15k,Finance & Corporate Services,INTERSERVE (FACILITIES MANAGEMENT),,Large,,364834825,5106203451,Construction Service Providers,Rivergate Variable Maintenance Costs,BS32 4NH,317.52,
183,Communities & Local Government,DCLG,06/05/2014,Variable Maintenance < 15k,Finance & Corporate Services,INTERSERVE (FACILITIES MANAGEMENT),,Large,,364834825,5106203451,Construction Service Providers,Bridge House Variable Maintenace Costs,BS32 4NH,764.96,
184,Communities & Local Government,DCLG,06/05/2014,Variable Maintenance < 15k,Finance & Corporate Services,INTERSERVE (FACILITIES MANAGEMENT),,Large,,364834825,5106203451,Construction Service Providers,Citygate Variable Maintenance Costs,BS32 4NH,"1,094.64",
185,Communities & Local Government,DCLG,06/05/2014,Variable Maintenance < 15k,Finance & Corporate Services,INTERSERVE (FACILITIES MANAGEMENT),,Large,,364834825,5106203451,Construction Service Providers,Queen Street Variable Maintenance Costs,BS32 4NH,619.92,
186,Communities & Local Government,DCLG,06/05/2014,Variable Maintenance < 15k,Finance & Corporate Services,INTERSERVE (FACILITIES MANAGEMENT),,Large,,364834825,5106203451,Construction Service Providers,5 SPP  Variable Maintenance Costs,BS32 4NH,764.96,
187,Communities & Local Government,DCLG,06/05/2014,Variable Maintenance < 15k,Finance & Corporate Services,INTERSERVE (FACILITIES MANAGEMENT),,Large,,364834825,5106203451,Construction Service Providers,Paradise Circ Variable Maintenance Cost,BS32 4NH,764.96,
188,Communities & Local Government,DCLG,06/05/2014,Vehicle Maintenance,Localism,BABCOCK CRITICAL SERVICES LTD,,Large,,641006945,5106203464,Fleet Management,Fixed costs 14/15,NG15 0DR,"661,595.03",
189,Communities & Local Government,DCLG,06/05/2014,Web Services,"Strategy, Communications and Private Office",DCLG GOVERNMENT PROCUREMENT CARD,,,,,1000003949,ICT Services,Dept wide annual Surveymonkey subscription,TN37 7GA,260.00,
190,Communities & Local Government,DCLG,06/05/2014,Work In Progress Pre-Cert 40373 Spend,Neighbourhoods,BLUE ORCHID MANAGEMENT CONSULTANTS,,Medium,,,7600008436,,Revenue Grant To Be Paid,M1 3FH,"306,191.87",Yes
191,Communities & Local Government,DCLG,06/05/2014,Work In Progress Pre-Cert 40373 Spend,Neighbourhoods,BLUE ORCHID MANAGEMENT CONSULTANTS,,Medium,,,7600008437,,Revenue Grant To Be Paid,M1 3FH,"75,558.21",Yes
192,Communities & Local Government,DCLG,06/05/2014,Work In Progress Pre-Cert 40373 Spend,Neighbourhoods,BRADFORD  MDC,,,,,7600008421,,Revenue Grant To Be Paid,BD1 1HY,"28,015.86",Yes
193,Communities & Local Government,DCLG,06/05/2014,Work In Progress Pre-Cert 40373 Spend,Neighbourhoods,COMMUNITY FOUNDATION FOR LEEDS,Yes,Micro,,,7600008445,,Revenue Grant To Be Paid,LS1 2TE,"2,911.54",Yes
194,Communities & Local Government,DCLG,06/05/2014,Work In Progress Pre-Cert 40373 Spend,Neighbourhoods,COMMUNITY FOUNDATION FOR LEEDS,Yes,Micro,,,7600008446,,Revenue Grant To Be Paid,LS1 2TE,"3,522.22",Yes
195,Communities & Local Government,DCLG,06/05/2014,Work In Progress Pre-Cert 40373 Spend,Neighbourhoods,COMMUNITY FOUNDATION FOR LEEDS,Yes,Micro,,,7600008451,,Revenue Grant To Be Paid,LS1 2TE,"6,602.38",Yes
196,Communities & Local Government,DCLG,06/05/2014,Work In Progress Pre-Cert 40373 Spend,Neighbourhoods,COMMUNITY FOUNDATION FOR LEEDS,Yes,Micro,,,7600008452,,Revenue Grant To Be Paid,LS1 2TE,"10,571.56",Yes
197,Communities & Local Government,DCLG,06/05/2014,Work In Progress Pre-Cert 40373 Spend,Neighbourhoods,CUMBRIA CHAMBER OF COMMERCE,,Small,,,7600008415,,Revenue Grant To Be Paid,CA3 8DA,"81,751.01",Yes
198,Communities & Local Government,DCLG,06/05/2014,Work In Progress Pre-Cert 40373 Spend,Neighbourhoods,E FACTOR ENTERPRISE (NEL) LTD,,Small,,,7600008425,,Revenue Grant Clawback Offset,DN34 5BQ,"-1,472.80",Yes
199,Communities & Local Government,DCLG,06/05/2014,Work In Progress Pre-Cert 40373 Spend,Neighbourhoods,E FACTOR ENTERPRISE (NEL) LTD,,Small,,,7600008425,,Revenue Grant To Be Paid,DN34 5BQ,"42,134.84",Yes
200,Communities & Local Government,DCLG,06/05/2014,Work In Progress Pre-Cert 40373 Spend,Neighbourhoods,HUDDERSFIELD UNIVERISTY,,,,,7600008412,,Revenue Grant Clawback Offset,HD1 3DH,"-1,664.23",Yes
201,Communities & Local Government,DCLG,06/05/2014,Work In Progress Pre-Cert 40373 Spend,Neighbourhoods,HUDDERSFIELD UNIVERISTY,,,,,7600008412,,Revenue Grant To Be Paid,HD1 3DH,"13,767.87",Yes
202,Communities & Local Government,DCLG,06/05/2014,Work In Progress Pre-Cert 40373 Spend,Neighbourhoods,HUDDERSFIELD UNIVERISTY,,,,,7600008413,,Revenue Grant Clawback Offset,HD1 3DH,-184.91,Yes
203,Communities & Local Government,DCLG,06/05/2014,Work In Progress Pre-Cert 40373 Spend,Neighbourhoods,HUDDERSFIELD UNIVERISTY,,,,,7600008413,,Revenue Grant To Be Paid,HD1 3DH,"2,312.44",Yes
204,Communities & Local Government,DCLG,06/05/2014,Work In Progress Pre-Cert 40373 Spend,Neighbourhoods,HUDDERSFIELD UNIVERISTY,,,,,7600008414,,Revenue Grant To Be Paid,HD1 3DH,"14,635.72",Yes
205,Communities & Local Government,DCLG,06/05/2014,Work In Progress Pre-Cert 40373 Spend,Neighbourhoods,IN COMMUNITIES GROUP LTD,,Large,,,7600008448,,Revenue Grant To Be Paid,BD18 3NT,"28,196.54",Yes
206,Communities & Local Government,DCLG,06/05/2014,Work In Progress Pre-Cert 40373 Spend,Neighbourhoods,IN COMMUNITIES GROUP LTD,,Large,,,7600008449,,Revenue Grant To Be Paid,BD18 3NT,"10,578.40",Yes
207,Communities & Local Government,DCLG,06/05/2014,Work In Progress Pre-Cert 40373 Spend,Neighbourhoods,KEY FUND INVESTMENTS LTD,,Small,,,7600008426,,Revenue Grant To Be Paid,S9 3TY,"4,941.28",Yes
208,Communities & Local Government,DCLG,06/05/2014,Work In Progress Pre-Cert 40373 Spend,Neighbourhoods,KEY FUND INVESTMENTS LTD,,Small,,,7600008450,,Revenue Grant To Be Paid,S9 3TY,"12,884.95",Yes
209,Communities & Local Government,DCLG,06/05/2014,Work In Progress Pre-Cert 40373 Spend,Neighbourhoods,LEEDS CITY COLLEGE,,,,,7600008419,,Revenue Grant To Be Paid,LS3 1AA,"14,285.56",Yes
210,Communities & Local Government,DCLG,06/05/2014,Work In Progress Pre-Cert 40373 Spend,Neighbourhoods,LEEDS CITY COLLEGE,,,,,7600008424,,Revenue Grant To Be Paid,LS3 1AA,"10,920.14",Yes
211,Communities & Local Government,DCLG,06/05/2014,Work In Progress Pre-Cert 40373 Spend,Neighbourhoods,LIVERPOOL CITY COUNCIL,,,,,7600008420,,Revenue Grant To Be Paid,L2 2DH,"40,118.63",Yes
212,Communities & Local Government,DCLG,06/05/2014,Work In Progress Pre-Cert 40373 Spend,Neighbourhoods,LIVERPOOL CITY COUNCIL,,,,,7600008434,,Revenue Grant To Be Paid,L2 2DH,"46,843.53",Yes
213,Communities & Local Government,DCLG,06/05/2014,Work In Progress Pre-Cert 40373 Spend,Neighbourhoods,NOTTINGHAM UNIVERSITY,,Large,,,7600008440,,Revenue Grant To Be Paid,NG7 2RD,"5,704.69",Yes
214,Communities & Local Government,DCLG,06/05/2014,Work In Progress Pre-Cert 40373 Spend,Neighbourhoods,NOTTINGHAM UNIVERSITY,,Large,,,7600008442,,Revenue Grant To Be Paid,NG7 2RD,"8,589.73",Yes
215,Communities & Local Government,DCLG,06/05/2014,Work In Progress Pre-Cert 40373 Spend,Neighbourhoods,ONE EAST MIDLANDS,,,,,7600008447,,Revenue Grant To Be Paid,NG1 3FB,"14,829.95",Yes
216,Communities & Local Government,DCLG,06/05/2014,Work In Progress Pre-Cert 40373 Spend,Neighbourhoods,ROTHERHAM METROPOLITAN BC,,,,,7600008416,,Revenue Grant To Be Paid,S65 1DJ,"16,159.32",Yes
217,Communities & Local Government,DCLG,06/05/2014,Work In Progress Pre-Cert 40373 Spend,Neighbourhoods,ROTHERHAM METROPOLITAN BC,,,,,7600008417,,Revenue Grant To Be Paid,S65 1DJ,"16,990.20",Yes
218,Communities & Local Government,DCLG,06/05/2014,Work In Progress Pre-Cert 40373 Spend,Neighbourhoods,ROTHERHAM METROPOLITAN BC,,,,,7600008418,,Revenue Grant To Be Paid,S65 1DJ,"16,321.08",Yes
219,Communities & Local Government,DCLG,06/05/2014,Work In Progress Pre-Cert 40373 Spend,Neighbourhoods,ROTHERHAM METROPOLITAN BC,,,,,7600008422,,Revenue Grant To Be Paid,S65 1DJ,"14,379.69",Yes
220,Communities & Local Government,DCLG,06/05/2014,Work In Progress Pre-Cert 40373 Spend,Neighbourhoods,ROTHERHAM METROPOLITAN BC,,,,,7600008423,,Revenue Grant To Be Paid,S65 1DJ,"15,077.22",Yes
221,Communities & Local Government,DCLG,06/05/2014,Work In Progress Pre-Cert 40373 Spend,Neighbourhoods,SOUTH HOLLAND DISTRICT COUNCIL,,Large,,,7600008441,,Revenue Grant To Be Paid,PE11 2XE,"7,517.27",Yes
222,Communities & Local Government,DCLG,06/05/2014,Work In Progress Pre-Cert 40373 Spend,Neighbourhoods,UNIVERSITY OF LEEDS,,,,,7600008428,,Revenue Grant To Be Paid,LS2 9JT,"10,710.31",Yes
223,Communities & Local Government,DCLG,06/05/2014,Work In Progress Pre-Cert 40373 Spend,Neighbourhoods,UNIVERSITY OF LEEDS,,,,,7600008429,,Revenue Grant To Be Paid,LS2 9JT,"23,433.85",Yes
224,Communities & Local Government,DCLG,06/05/2014,Work In Progress Pre-Cert 40373 Spend,Neighbourhoods,UNIVERSITY OF SHEFFIELD,,,,,7600008443,,Revenue Grant To Be Paid,S60 5TZ,"45,029.95",Yes
225,Communities & Local Government,DCLG,06/05/2014,Work In Progress Pre-Cert 40373 Spend,Neighbourhoods,UNIVERSITY OF SHEFFIELD,,,,,7600008444,,Revenue Grant To Be Paid,S60 5TZ,"30,187.91",Yes
226,Communities & Local Government,DCLG,06/05/2014,Work In Progress Pre-Cert 40373 Spend,Neighbourhoods,YTKO LIMITED,,,,,7600008431,,Revenue Grant To Be Paid,CB4 2QH,"51,532.14",Yes
227,Communities & Local Government,DCLG,06/05/2014,Work In Progress Pre-Cert 40373 Spend,Neighbourhoods,YTKO LIMITED,,,,,7600008432,,Revenue Grant To Be Paid,CB4 2QH,"80,257.13",Yes
228,Communities & Local Government,DCLG,06/05/2014,Work In Progress Pre-Cert 40467 Spend,Neighbourhoods,HORNCASTLE GROUP PLC,,Medium,,,7600008430,,Capital Grant To Be Paid,HU15 2AT,"5,630.66",Yes
229,Communities & Local Government,DCLG,06/05/2014,Work In Progress Pre-Cert 40467 Spend,Neighbourhoods,HUDDERSFIELD UNIVERISTY,,,,,7600008412,,Capital Grant Clawback Offset,HD1 3DH,"-25,120.00",Yes
230,Communities & Local Government,DCLG,06/05/2014,Work In Progress Pre-Cert 40467 Spend,Neighbourhoods,HUDDERSFIELD UNIVERISTY,,,,,7600008412,,Capital Grant To Be Paid,HD1 3DH,"107,181.29",Yes
231,Communities & Local Government,DCLG,06/05/2014,Work In Progress Pre-Cert 40467 Spend,Neighbourhoods,HUDDERSFIELD UNIVERISTY,,,,,7600008414,,Capital Grant Clawback Offset,HD1 3DH,"-19,000.00",Yes
232,Communities & Local Government,DCLG,06/05/2014,Work In Progress Pre-Cert 40467 Spend,Neighbourhoods,HUDDERSFIELD UNIVERISTY,,,,,7600008414,,Capital Grant To Be Paid,HD1 3DH,"491,863.86",Yes
233,Communities & Local Government,DCLG,06/05/2014,Work In Progress Pre-Cert 40467 Spend,Neighbourhoods,JARRANG LTD,,,,,7600008438,,Capital Grant To Be Paid,TR11 4SZ,"7,803.84",Yes
234,Communities & Local Government,DCLG,06/05/2014,Work In Progress Pre-Cert 40467 Spend,Neighbourhoods,KEY FUND INVESTMENTS LTD,,Small,,,7600008433,,Capital Grant To Be Paid,S9 3TY,"5,977.65",Yes
235,Communities & Local Government,DCLG,06/05/2014,Work In Progress Pre-Cert 40467 Spend,Neighbourhoods,KEY FUND INVESTMENTS LTD,,Small,,,7600008439,,Capital Grant To Be Paid,S9 3TY,"64,660.01",Yes
236,Communities & Local Government,DCLG,06/05/2014,Work In Progress Pre-Cert 40467 Spend,Neighbourhoods,KEY FUND INVESTMENTS LTD,,Small,,,7600008450,,Capital Grant To Be Paid,S9 3TY,"17,755.01",Yes
237,Communities & Local Government,DCLG,06/05/2014,Work In Progress Pre-Cert 40467 Spend,Neighbourhoods,SUB10 SYSTEMS LTD,,Small,,,7600008435,,Capital Grant To Be Paid,TQ10 3RZ,"23,365.59",Yes
238,Communities & Local Government,DCLG,06/05/2014,Work In Progress Pre-Cert 40467 Spend,Neighbourhoods,THORNE DEVELOPMENTS LTD,,Micro,,,7600008427,,Capital Grant To Be Paid,EX23 0LU,"10,153.27",Yes
239,Communities & Local Government,DCLG,06/05/2014,Work In Progress Pre-Cert 40467 Spend,Neighbourhoods,UNIVERSITY OF SHEFFIELD,,,,,7600008443,,Capital Grant To Be Paid,S60 5TZ,"7,358.04",Yes
240,Communities & Local Government,DCLG,07/05/2014,Agency Staff,Finance & Corporate Services,INTERQUEST GROUP UK LIMITED,,Large,,423935241,5106203512,Contingent Labour,SAP Support until closedown,EC1N 8TS,"12,765.60",
241,Communities & Local Government,DCLG,07/05/2014,Agency Staff,Localism,CAPITA BUSINESS SERVICES LTD,,Large,,215580993,5106203500,Contingent Labour,Consultancy advice,DL1 9HB,827.18,
242,Communities & Local Government,DCLG,07/05/2014,Agency Staff,Localism,CAPITA RESOURCING LTD,,Large,,215581006,5106203501,Contingent Labour,Interim Manager - Ext 02,SL6 1DP,"1,117.80",
243,Communities & Local Government,DCLG,07/05/2014,Agency Staff,Neighbourhoods,CAPITA RESOURCING LTD,,Large,,215581006,5106203489,Contingent Labour,Interim Manager,SL6 1DP,"2,092.80",
244,Communities & Local Government,DCLG,07/05/2014,Agency Staff,Neighbourhoods,CAPITA RESOURCING LTD,,Large,,215581006,5106203491,Contingent Labour,Interim Manager,SL6 1DP,"1,908.00",
245,Communities & Local Government,DCLG,07/05/2014,Agency Staff,Neighbourhoods,FOREST HEATH DISTRICT COUNCIL,,Large,,,5106203514,Contingent Labour,Secondment,IP28 7EY,"4,012.48",
246,Communities & Local Government,DCLG,07/05/2014,Agency Staff,"Strategy, Communications and Private Office",CAPITA RESOURCING LTD,,Large,,215581006,5106203499,Contingent Labour,Specialist Intermin temp,SL6 1DP,"12,431.16",
247,Communities & Local Government,DCLG,07/05/2014,Current (non AEF) Grants to Local Authorities,Localism,ADUR DC,,,,227472891,5000249186,,Local Council Tax Support Administration Subsidy,BN11 1HB,"78,242.00",Yes
248,Communities & Local Government,DCLG,07/05/2014,Current (non AEF) Grants to Local Authorities,Localism,ALLERDALE BOROUGH COUNCIL,,,,218146780,5000249187,,Local Council Tax Support Administration Subsidy,CA14 3YJ,"127,900.00",Yes
249,Communities & Local Government,DCLG,07/05/2014,Current (non AEF) Grants to Local Authorities,Localism,AMBER VALLEY BC,,,,,5000249188,,Local Council Tax Support Administration Subsidy,DE5 3WZ,"147,505.00",Yes
250,Communities & Local Government,DCLG,07/05/2014,Current (non AEF) Grants to Local Authorities,Localism,ARUN DC,,,,211217668,5000249043,,Local Council Tax Support Administration Subsidy,BN17 5LF,"189,510.00",Yes
251,Communities & Local Government,DCLG,07/05/2014,Current (non AEF) Grants to Local Authorities,Localism,ASHFIELD DC,,,,235415296,5000249189,,Local Council Tax Support Administration Subsidy,NG17 8DA,"180,714.00",Yes
252,Communities & Local Government,DCLG,07/05/2014,Current (non AEF) Grants to Local Authorities,Localism,ASHFORD BC,,,,229467071,5000249044,,Local Council Tax Support Administration Subsidy,TN23 1PL,"129,624.00",Yes
253,Communities & Local Government,DCLG,07/05/2014,Current (non AEF) Grants to Local Authorities,Localism,AYLESBURY VALE DC(HSG),,,,396710709,5000249045,,Local Council Tax Support Administration Subsidy,HP19 8FF,"147,720.00",Yes
254,Communities & Local Government,DCLG,07/05/2014,Current (non AEF) Grants to Local Authorities,Localism,BABERGH DC,,,,232618405,5000249046,,Local Council Tax Support Administration Subsidy,IP7 6SJ,"88,878.00",Yes
255,Communities & Local Government,DCLG,07/05/2014,Current (non AEF) Grants to Local Authorities,Localism,BARKING & DAGENHAM LB (HSG),,,,217142293,5000249047,,Local Council Tax Support Administration Subsidy,RM10 7BY,"375,234.00",Yes
256,Communities & Local Government,DCLG,07/05/2014,Current (non AEF) Grants to Local Authorities,Localism,BARNET LBC,,,,211049507,5000249190,,Local Council Tax Support Administration Subsidy,NW4 4BG,"479,350.00",Yes
257,Communities & Local Government,DCLG,07/05/2014,Current (non AEF) Grants to Local Authorities,Localism,BARNSLEY MBC,,,,211178595,5000249191,,Local Council Tax Support Administration Subsidy,S70 2AQ,"376,358.00",Yes
258,Communities & Local Government,DCLG,07/05/2014,Current (non AEF) Grants to Local Authorities,Localism,BARROW BC,,,,295632913,5000249192,,Local Council Tax Support Administration Subsidy,LA14 2LD,"110,903.00",Yes
259,Communities & Local Government,DCLG,07/05/2014,Current (non AEF) Grants to Local Authorities,Localism,BASILDON BOROUGH COUNCIL,,,,,5000249193,,Local Council Tax Support Administration Subsidy,SS14 0DF,"278,541.00",Yes
260,Communities & Local Government,DCLG,07/05/2014,Current (non AEF) Grants to Local Authorities,Localism,BASINGSTOKE & DEANE BC,,,,228328506,5000249194,,Local Council Tax Support Administration Subsidy,RG21 2AJ,"141,364.00",Yes
261,Communities & Local Government,DCLG,07/05/2014,Current (non AEF) Grants to Local Authorities,Localism,BASSETLAW DC (HSG),,,,,5000249048,,Local Council Tax Support Administration Subsidy,S80 2AH,"148,464.00",Yes
262,Communities & Local Government,DCLG,07/05/2014,Current (non AEF) Grants to Local Authorities,Localism,BATH & NE SOMERSET DC (HSG),,,,214502499,5000249049,,Local Council Tax Support Administration Subsidy,BA1 5AW,"181,158.00",Yes
263,Communities & Local Government,DCLG,07/05/2014,Current (non AEF) Grants to Local Authorities,Localism,BEDFORD UNITARY AUTHORITY,,,,225682160,5000249365,,Local Council Tax Support Administration Subsidy,MK40 1SJ,"190,431.00",Yes
264,Communities & Local Government,DCLG,07/05/2014,Current (non AEF) Grants to Local Authorities,Localism,BEXLEY LB (HSG),,,,,5000249050,,Local Council Tax Support Administration Subsidy,DA8 1TL,"279,443.00",Yes
265,Communities & Local Government,DCLG,07/05/2014,Current (non AEF) Grants to Local Authorities,Localism,BIRMINGHAM CITY CNCL,,,,213780559,5000249195,,Local Council Tax Support Administration Subsidy,B2 2AJ,"1,971,015.00",Yes
266,Communities & Local Government,DCLG,07/05/2014,Current (non AEF) Grants to Local Authorities,Localism,BLABY DC (HSG),,,,,5000249051,,Local Council Tax Support Administration Subsidy,LE9 5EP,"77,698.00",Yes
267,Communities & Local Government,DCLG,07/05/2014,Current (non AEF) Grants to Local Authorities,Localism,BLACKBURN WITH DARWEN BC,,,,,5000249196,,Local Council Tax Support Administration Subsidy,BB1 7DY,"237,278.00",Yes
268,Communities & Local Government,DCLG,07/05/2014,Current (non AEF) Grants to Local Authorities,Localism,BLACKPOOL BC,,,,,5000249197,,Local Council Tax Support Administration Subsidy,FY1 1NA,"335,891.00",Yes
269,Communities & Local Government,DCLG,07/05/2014,Current (non AEF) Grants to Local Authorities,Localism,BOLSOVER DC,,,,235516523,5000249198,,Local Council Tax Support Administration Subsidy,S44 6NF,"115,877.00",Yes
270,Communities & Local Government,DCLG,07/05/2014,Current (non AEF) Grants to Local Authorities,Localism,BOLTON MBC,,,,,5000249199,,Local Council Tax Support Administration Subsidy,BL1 1RU,"463,780.00",Yes
271,Communities & Local Government,DCLG,07/05/2014,Current (non AEF) Grants to Local Authorities,Localism,BOSTON BC,,,,236417713,5000249052,,Local Council Tax Support Administration Subsidy,PE21 8QR,"88,116.00",Yes
272,Communities & Local Government,DCLG,07/05/2014,Current (non AEF) Grants to Local Authorities,Localism,BOURNEMOUTH DC,,,,,5000249200,,Local Council Tax Support Administration Subsidy,BH2 6EB,"270,377.00",Yes
273,Communities & Local Government,DCLG,07/05/2014,Current (non AEF) Grants to Local Authorities,Localism,BRACKNELL FOREST DC,,,,236184867,5000249201,,Local Council Tax Support Administration Subsidy,RG12 1AQ,"107,007.00",Yes
274,Communities & Local Government,DCLG,07/05/2014,Current (non AEF) Grants to Local Authorities,Localism,BRADFORD MBC,,,,,5000249202,,Local Council Tax Support Administration Subsidy,BD1 1HX,"786,255.00",Yes
275,Communities & Local Government,DCLG,07/05/2014,Current (non AEF) Grants to Local Authorities,Localism,BRAINTREE DC,,,,226941730,5000249053,,Local Council Tax Support Administration Subsidy,CM7 6HB,"158,038.00",Yes
276,Communities & Local Government,DCLG,07/05/2014,Current (non AEF) Grants to Local Authorities,Localism,BRECKLAND DC,,,,232611384,5000249054,,Local Council Tax Support Administration Subsidy,NR19 1EE,"152,615.00",Yes
277,Communities & Local Government,DCLG,07/05/2014,Current (non AEF) Grants to Local Authorities,Localism,BRENT LB (HSG),,,,,5000249055,,Local Council Tax Support Administration Subsidy,HA9 9HD,"571,007.00",Yes
278,Communities & Local Government,DCLG,07/05/2014,Current (non AEF) Grants to Local Authorities,Localism,BRENTWOOD BC,,,,227473188,5000249203,,Local Council Tax Support Administration Subsidy,CM15 8AY,"66,955.00",Yes
279,Communities & Local Government,DCLG,07/05/2014,Current (non AEF) Grants to Local Authorities,Localism,BRIGHTON & HOVE CITY COUNCIL,,,,228455218,5000249204,,Local Council Tax Support Administration Subsidy,BN3 2SR,"394,451.00",Yes
280,Communities & Local Government,DCLG,07/05/2014,Current (non AEF) Grants to Local Authorities,Localism,BRISTOL CITY CNCL (HSG),,,,211103882,5000249056,,Local Council Tax Support Administration Subsidy,BS99 7BL,"674,047.00",Yes
281,Communities & Local Government,DCLG,07/05/2014,Current (non AEF) Grants to Local Authorities,Localism,BROADLAND DC,,Large,,219737785,5000249057,,Local Council Tax Support Administration Subsidy,NR7 0DU,"102,342.00",Yes
282,Communities & Local Government,DCLG,07/05/2014,Current (non AEF) Grants to Local Authorities,Localism,BROMLEY LB,,,,211331954,5000249205,,Local Council Tax Support Administration Subsidy,BR1 3UH,"330,448.00",Yes
283,Communities & Local Government,DCLG,07/05/2014,Current (non AEF) Grants to Local Authorities,Localism,BROMSGROVE DC,,,,236654745,5000249058,,Local Council Tax Support Administration Subsidy,B60 1AA,"73,338.00",Yes
284,Communities & Local Government,DCLG,07/05/2014,Current (non AEF) Grants to Local Authorities,Localism,BROXBOURNE BC,,Public Bodies,,239931918,5000249206,,Local Council Tax Support Administration Subsidy,EN8 9XG,"123,965.00",Yes
285,Communities & Local Government,DCLG,07/05/2014,Current (non AEF) Grants to Local Authorities,Localism,BROXTOWE BC,,,,239877640,5000249207,,Local Council Tax Support Administration Subsidy,NG9 1AB,"122,747.00",Yes
286,Communities & Local Government,DCLG,07/05/2014,Current (non AEF) Grants to Local Authorities,Localism,BURNLEY BC,,,,229413281,5000249208,,Local Council Tax Support Administration Subsidy,BB11 1JA,"163,940.00",Yes
287,Communities & Local Government,DCLG,07/05/2014,Current (non AEF) Grants to Local Authorities,Localism,BURY MBC,,,,,5000249209,,Local Council Tax Support Administration Subsidy,BL9 0SW,"261,289.00",Yes
288,Communities & Local Government,DCLG,07/05/2014,Current (non AEF) Grants to Local Authorities,Localism,CALDERDALE MBC,,,,,5000249210,,Local Council Tax Support Administration Subsidy,HX1 1YP,"288,912.00",Yes
289,Communities & Local Government,DCLG,07/05/2014,Current (non AEF) Grants to Local Authorities,Localism,CAMBRIDGE CITY COUNCIL,,,,210357534,5000249211,,Local Council Tax Support Administration Subsidy,CB2 3NA,"105,897.00",Yes
290,Communities & Local Government,DCLG,07/05/2014,Current (non AEF) Grants to Local Authorities,Localism,CAMDEN LB,,,,211651836,5000249212,,Local Council Tax Support Administration Subsidy,WC1H 8NG,"496,903.00",Yes
291,Communities & Local Government,DCLG,07/05/2014,Current (non AEF) Grants to Local Authorities,Localism,CANNOCK CHASE DC,,,,215064770,5000249213,,Local Council Tax Support Administration Subsidy,WS11 1BG,"134,798.00",Yes
292,Communities & Local Government,DCLG,07/05/2014,Current (non AEF) Grants to Local Authorities,Localism,CANTERBURY CITY CNCL,,,,,5000249059,,Local Council Tax Support Administration Subsidy,CT1 1YW,"165,970.00",Yes
293,Communities & Local Government,DCLG,07/05/2014,Current (non AEF) Grants to Local Authorities,Localism,CARLISLE CITY CNCL,,,,227471059,5000249060,,Local Council Tax Support Administration Subsidy,CA3 8QG,"132,149.00",Yes
294,Communities & Local Government,DCLG,07/05/2014,Current (non AEF) Grants to Local Authorities,Localism,CASTLE POINT BC,,Public Bodies,,228217931,5000249214,,Local Council Tax Support Administration Subsidy,SS7 1TF,"109,598.00",Yes
295,Communities & Local Government,DCLG,07/05/2014,Current (non AEF) Grants to Local Authorities,Localism,CENTRAL BEDFORDSHIRE COUNCIL,,,,232624882,5000249362,,Local Council Tax Support Administration Subsidy,SG17 5TQ,"251,363.00",Yes
296,Communities & Local Government,DCLG,07/05/2014,Current (non AEF) Grants to Local Authorities,Localism,CHARNWOOD BC,,,,,5000249215,,Local Council Tax Support Administration Subsidy,LE11 2TU,"151,980.00",Yes
297,Communities & Local Government,DCLG,07/05/2014,Current (non AEF) Grants to Local Authorities,Localism,CHELMSFORD BC,,,,,5000249216,,Local Council Tax Support Administration Subsidy,CM1 1JE,"147,464.00",Yes
298,Communities & Local Government,DCLG,07/05/2014,Current (non AEF) Grants to Local Authorities,Localism,CHELTENHAM BC,,,,,5000249217,,Local Council Tax Support Administration Subsidy,GL50 1PW,"122,113.00",Yes
299,Communities & Local Government,DCLG,07/05/2014,Current (non AEF) Grants to Local Authorities,Localism,CHERWELL DC,,,,,5000249061,,Local Council Tax Support Administration Subsidy,OX15 4AA,"121,537.00",Yes
300,Communities & Local Government,DCLG,07/05/2014,Current (non AEF) Grants to Local Authorities,Localism,CHESHIRE EAST COUNCIL,,Large,,,5000249363,,Local Council Tax Support Administration Subsidy,CW11 1HZ,"358,180.00",Yes
301,Communities & Local Government,DCLG,07/05/2014,Current (non AEF) Grants to Local Authorities,Localism,CHESHIRE WEST & CHESTER UA,,Large,,215584383,5000249364,,Local Council Tax Support Administration Subsidy,CH1 2NP,"382,459.00",Yes
302,Communities & Local Government,DCLG,07/05/2014,Current (non AEF) Grants to Local Authorities,Localism,CHESTERFIELD BC,,,,232102301,5000249218,,Local Council Tax Support Administration Subsidy,S40 1LP,"170,708.00",Yes
303,Communities & Local Government,DCLG,07/05/2014,Current (non AEF) Grants to Local Authorities,Localism,CHICHESTER DC,,,,739800998,5000249062,,Local Council Tax Support Administration Subsidy,PO19 1TY,"113,819.00",Yes
304,Communities & Local Government,DCLG,07/05/2014,Current (non AEF) Grants to Local Authorities,Localism,CHILTERN DC (HSG),,,,,5000249063,,Local Council Tax Support Administration Subsidy,HP6 5AW,"68,553.00",Yes
305,Communities & Local Government,DCLG,07/05/2014,Current (non AEF) Grants to Local Authorities,Localism,CHORLEY BOROUGH COUNCIL,,,,236415576,5000249219,,Local Council Tax Support Administration Subsidy,PR7 1DP,"112,424.00",Yes
306,Communities & Local Government,DCLG,07/05/2014,Current (non AEF) Grants to Local Authorities,Localism,CHRISTCHURCH BC (HSG),,,,227415213,5000249064,,Local Council Tax Support Administration Subsidy,BH23 1AZ,"59,625.00",Yes
307,Communities & Local Government,DCLG,07/05/2014,Current (non AEF) Grants to Local Authorities,Localism,CITY OF LINCOLN COUNCIL,,,,,5000249270,,Local Council Tax Support Administration Subsidy,LN1 1DB,"152,063.00",Yes
308,Communities & Local Government,DCLG,07/05/2014,Current (non AEF) Grants to Local Authorities,Localism,CITY OF LONDON (HSG),,,,217471460,5000249065,,Local Council Tax Support Administration Subsidy,EC2P 2EJ,"8,319.00",Yes
309,Communities & Local Government,DCLG,07/05/2014,Current (non AEF) Grants to Local Authorities,Localism,CITY OF SUNDERLAND (HSG),,,,215599312,5000249066,,Local Council Tax Support Administration Subsidy,SR2 7DN,"527,040.00",Yes
310,Communities & Local Government,DCLG,07/05/2014,Current (non AEF) Grants to Local Authorities,Localism,CITY OF WAKEFIELD MDC,,,,,5000249339,,Local Council Tax Support Administration Subsidy,WF1 2QW,"496,492.00",Yes
311,Communities & Local Government,DCLG,07/05/2014,Current (non AEF) Grants to Local Authorities,Localism,COLCHESTER BC,,,,,5000249220,,Local Council Tax Support Administration Subsidy,CO3 3WG,"190,189.00",Yes
312,Communities & Local Government,DCLG,07/05/2014,Current (non AEF) Grants to Local Authorities,Localism,COPELAND BC,,,,236414827,5000249067,,Local Council Tax Support Administration Subsidy,CA28 7NY,"97,023.00",Yes
313,Communities & Local Government,DCLG,07/05/2014,Current (non AEF) Grants to Local Authorities,Localism,CORBY BC,,,,,5000249068,,Local Council Tax Support Administration Subsidy,NN17 1GD,"90,611.00",Yes
314,Communities & Local Government,DCLG,07/05/2014,Current (non AEF) Grants to Local Authorities,Localism,CORNWALL UNITARY AUTHORITY,,,,211334404,5000249367,,Local Council Tax Support Administration Subsidy,TR1 3AY,"747,468.00",Yes
315,Communities & Local Government,DCLG,07/05/2014,Current (non AEF) Grants to Local Authorities,Localism,COTSWOLD DC,,,,232462085,5000249069,,Local Council Tax Support Administration Subsidy,GL7 1PX,"76,068.00",Yes
316,Communities & Local Government,DCLG,07/05/2014,Current (non AEF) Grants to Local Authorities,Localism,COVENTRY CITY CNCL,,,,210384802,5000249221,,Local Council Tax Support Administration Subsidy,CV1 2QL,"528,137.00",Yes
317,Communities & Local Government,DCLG,07/05/2014,Current (non AEF) Grants to Local Authorities,Localism,CRAVEN DC (HSG),,,,,5000249070,,Local Council Tax Support Administration Subsidy,BD23 1FJ,"49,721.00",Yes
318,Communities & Local Government,DCLG,07/05/2014,Current (non AEF) Grants to Local Authorities,Localism,CRAWLEY BC,,,,211222500,5000249071,,Local Council Tax Support Administration Subsidy,RH10 1UZ,"156,308.00",Yes
319,Communities & Local Government,DCLG,07/05/2014,Current (non AEF) Grants to Local Authorities,Localism,CROYDON LB,,,,212419973,5000249222,,Local Council Tax Support Administration Subsidy,CR9 3JS,"569,304.00",Yes
320,Communities & Local Government,DCLG,07/05/2014,Current (non AEF) Grants to Local Authorities,Localism,DACORUM BC,,,,236448643,5000249223,,Local Council Tax Support Administration Subsidy,HP1 1HH,"158,954.00",Yes
321,Communities & Local Government,DCLG,07/05/2014,Current (non AEF) Grants to Local Authorities,Localism,DARLINGTON BC,,,,,5000249224,,Local Council Tax Support Administration Subsidy,TS19 1JA,"165,736.00",Yes
322,Communities & Local Government,DCLG,07/05/2014,Current (non AEF) Grants to Local Authorities,Localism,DARTFORD BC,,,,225694942,5000249072,,Local Council Tax Support Administration Subsidy,DA1 1DR,"109,210.00",Yes
323,Communities & Local Government,DCLG,07/05/2014,Current (non AEF) Grants to Local Authorities,Localism,DAVENTRY DC,,,,239859333,5000249073,,Local Council Tax Support Administration Subsidy,NN11 5AF,"64,374.00",Yes
324,Communities & Local Government,DCLG,07/05/2014,Current (non AEF) Grants to Local Authorities,Localism,DERBY CITY CNCL,,,,229641378,5000249225,,Local Council Tax Support Administration Subsidy,DE1 2FS,"357,575.00",Yes
325,Communities & Local Government,DCLG,07/05/2014,Current (non AEF) Grants to Local Authorities,Localism,DERBYSHIRE DALES DC,,,,,5000249074,,Local Council Tax Support Administration Subsidy,DE4 3NN,"60,217.00",Yes
326,Communities & Local Government,DCLG,07/05/2014,Current (non AEF) Grants to Local Authorities,Localism,DONCASTER MBC,,,,,5000249226,,Local Council Tax Support Administration Subsidy,DN1 3QA,"452,459.00",Yes
327,Communities & Local Government,DCLG,07/05/2014,Current (non AEF) Grants to Local Authorities,Localism,DOVER DC,,,,,5000249075,,Local Council Tax Support Administration Subsidy,CT16 3PD,"156,742.00",Yes
328,Communities & Local Government,DCLG,07/05/2014,Current (non AEF) Grants to Local Authorities,Localism,DUDLEY MBC,,,,,5000249227,,Local Council Tax Support Administration Subsidy,DY1 1HF,"487,556.00",Yes
329,Communities & Local Government,DCLG,07/05/2014,Current (non AEF) Grants to Local Authorities,Localism,DURHAM COUNTY COUNCIL,,,,224004882,5000249368,,Local Council Tax Support Administration Subsidy,DH1 5UE,"880,057.00",Yes
330,Communities & Local Government,DCLG,07/05/2014,Current (non AEF) Grants to Local Authorities,Localism,EALING LB,,,,,5000249228,,Local Council Tax Support Administration Subsidy,W5 2HL,"504,756.00",Yes
331,Communities & Local Government,DCLG,07/05/2014,Current (non AEF) Grants to Local Authorities,Localism,EAST CAMBRIDGESHIRE DC,,,,236472023,5000249076,,Local Council Tax Support Administration Subsidy,CB7 4PL,"76,896.00",Yes
332,Communities & Local Government,DCLG,07/05/2014,Current (non AEF) Grants to Local Authorities,Localism,EAST DEVON DC,,,,,5000249077,,Local Council Tax Support Administration Subsidy,EX10 8HL,"135,075.00",Yes
333,Communities & Local Government,DCLG,07/05/2014,Current (non AEF) Grants to Local Authorities,Localism,EAST DORSET DC,,,,228470456,5000249229,,Local Council Tax Support Administration Subsidy,BH21 4HN,"73,856.00",Yes
334,Communities & Local Government,DCLG,07/05/2014,Current (non AEF) Grants to Local Authorities,Localism,EAST HAMPSHIRE DC,,,,,5000249078,,Local Council Tax Support Administration Subsidy,GU31 4EX,"82,096.00",Yes
335,Communities & Local Government,DCLG,07/05/2014,Current (non AEF) Grants to Local Authorities,Localism,EAST HERTFORDSHIRE DC,,,,236176954,5000249079,,Local Council Tax Support Administration Subsidy,SG13 8EQ,"113,991.00",Yes
336,Communities & Local Government,DCLG,07/05/2014,Current (non AEF) Grants to Local Authorities,Localism,EAST LINDSEY DC,,,,,5000249080,,Local Council Tax Support Administration Subsidy,LN11 8UP,"219,876.00",Yes
337,Communities & Local Government,DCLG,07/05/2014,Current (non AEF) Grants to Local Authorities,Localism,EAST NORTHAMPTONSHIRE COUNCIL,,,,227475290,5000249081,,Local Council Tax Support Administration Subsidy,NN14 4LZ,"85,163.00",Yes
338,Communities & Local Government,DCLG,07/05/2014,Current (non AEF) Grants to Local Authorities,Localism,EAST RIDING OF YORKS (HSG),,,,423159987,5000249082,,Local Council Tax Support Administration Subsidy,HU17 9BA,"378,844.00",Yes
339,Communities & Local Government,DCLG,07/05/2014,Current (non AEF) Grants to Local Authorities,Localism,EAST STAFFORDSHIRE BC,,,,226778033,5000249083,,Local Council Tax Support Administration Subsidy,DE14 2EB,"127,893.00",Yes
340,Communities & Local Government,DCLG,07/05/2014,Current (non AEF) Grants to Local Authorities,Localism,EASTBOURNE BC,,,,229896428,5000249230,,Local Council Tax Support Administration Subsidy,BN21 4TW,"153,247.00",Yes
341,Communities & Local Government,DCLG,07/05/2014,Current (non AEF) Grants to Local Authorities,Localism,EASTLEIGH BOROUGH COUNCIL,,,,232669911,5000249231,,Local Council Tax Support Administration Subsidy,SO5 9YN,"100,535.00",Yes
342,Communities & Local Government,DCLG,07/05/2014,Current (non AEF) Grants to Local Authorities,Localism,EDEN DC (HSG),,,,,5000249084,,Local Council Tax Support Administration Subsidy,CA11 7QF,"42,350.00",Yes
343,Communities & Local Government,DCLG,07/05/2014,Current (non AEF) Grants to Local Authorities,Localism,ELMBRIDGE BC (HSG),,,,,5000249085,,Local Council Tax Support Administration Subsidy,KT10 9SD,"102,804.00",Yes
344,Communities & Local Government,DCLG,07/05/2014,Current (non AEF) Grants to Local Authorities,Localism,ENFIELD LB,,,,,5000249232,,Local Council Tax Support Administration Subsidy,EN1 3XF,"576,613.00",Yes
345,Communities & Local Government,DCLG,07/05/2014,Current (non AEF) Grants to Local Authorities,Localism,EPPING FOREST DC,,,,775876360,5000249233,,Local Council Tax Support Administration Subsidy,CM16 4BZ,"138,727.00",Yes
346,Communities & Local Government,DCLG,07/05/2014,Current (non AEF) Grants to Local Authorities,Localism,EPSOM & EWELL BC,,,,225423094,5000249234,,Local Council Tax Support Administration Subsidy,KT18 5BY,"54,958.00",Yes
347,Communities & Local Government,DCLG,07/05/2014,Current (non AEF) Grants to Local Authorities,Localism,EREWASH BC,,,,211209762,5000249235,,Local Council Tax Support Administration Subsidy,DE7 5RP,"148,886.00",Yes
348,Communities & Local Government,DCLG,07/05/2014,Current (non AEF) Grants to Local Authorities,Localism,EXETER CITY COUNCIL,,,,,5000249236,,Local Council Tax Support Administration Subsidy,EX1 1JW,"137,008.00",Yes
349,Communities & Local Government,DCLG,07/05/2014,Current (non AEF) Grants to Local Authorities,Localism,FAREHAM BC,,,,228474144,5000249086,,Local Council Tax Support Administration Subsidy,PO16 7PU,"77,706.00",Yes
350,Communities & Local Government,DCLG,07/05/2014,Current (non AEF) Grants to Local Authorities,Localism,FENLAND DC,,,,227476348,5000249087,,Local Council Tax Support Administration Subsidy,PE15 8NQ,"140,317.00",Yes
351,Communities & Local Government,DCLG,07/05/2014,Current (non AEF) Grants to Local Authorities,Localism,FOREST HEATH DISTRICT COUNCIL,,,,236678116,5000249088,,Local Council Tax Support Administration Subsidy,IP28 7EY,"65,064.00",Yes
352,Communities & Local Government,DCLG,07/05/2014,Current (non AEF) Grants to Local Authorities,Localism,FOREST OF DEAN DC,,,,211278890,5000249089,,Local Council Tax Support Administration Subsidy,GL16 8HG,"99,307.00",Yes
353,Communities & Local Government,DCLG,07/05/2014,Current (non AEF) Grants to Local Authorities,Localism,FYLDE BC,,,,227479912,5000249237,,Local Council Tax Support Administration Subsidy,FY8 1LW,"81,625.00",Yes
354,Communities & Local Government,DCLG,07/05/2014,Current (non AEF) Grants to Local Authorities,Localism,GATESHEAD MBC,,,,216116041,5000249238,,Local Council Tax Support Administration Subsidy,NE8 1HH,"377,049.00",Yes
355,Communities & Local Government,DCLG,07/05/2014,Current (non AEF) Grants to Local Authorities,Localism,GEDLING BC,,,,236180337,5000249239,,Local Council Tax Support Administration Subsidy,NG5 6LU,"129,141.00",Yes
356,Communities & Local Government,DCLG,07/05/2014,Current (non AEF) Grants to Local Authorities,Localism,GLOUCESTER CITY CNCL,,,,230841392,5000249240,,Local Council Tax Support Administration Subsidy,GL1 2EQ,"156,466.00",Yes
357,Communities & Local Government,DCLG,07/05/2014,Current (non AEF) Grants to Local Authorities,Localism,GOSPORT BOROUGH COUNCIL,,,,239825078,5000249241,,Local Council Tax Support Administration Subsidy,PO12 1ED,"103,169.00",Yes
358,Communities & Local Government,DCLG,07/05/2014,Current (non AEF) Grants to Local Authorities,Localism,GRAVESHAM BC,,,,236178612,5000249242,,Local Council Tax Support Administration Subsidy,DA12 1AU,"132,322.00",Yes
359,Communities & Local Government,DCLG,07/05/2014,Current (non AEF) Grants to Local Authorities,Localism,GREAT YARMOUTH BC,,,,292697372,5000249243,,Local Council Tax Support Administration Subsidy,NR30 2QG,"183,138.00",Yes
360,Communities & Local Government,DCLG,07/05/2014,Current (non AEF) Grants to Local Authorities,Localism,GREENWICH LB,,,,,5000249244,,Local Council Tax Support Administration Subsidy,SE18 6BU,"529,569.00",Yes
361,Communities & Local Government,DCLG,07/05/2014,Current (non AEF) Grants to Local Authorities,Localism,GUILDFORD BC,,,,236663720,5000249090,,Local Council Tax Support Administration Subsidy,GU2 5BB,"110,240.00",Yes
362,Communities & Local Government,DCLG,07/05/2014,Current (non AEF) Grants to Local Authorities,Localism,HALTON BC (HSG),,,,,5000249091,,Local Council Tax Support Administration Subsidy,WA8 7QF,"221,221.00",Yes
363,Communities & Local Government,DCLG,07/05/2014,Current (non AEF) Grants to Local Authorities,Localism,HAMBLETON DC (HSG),,,,503481319,5000249092,,Local Council Tax Support Administration Subsidy,DL6 2UU,"72,509.00",Yes
364,Communities & Local Government,DCLG,07/05/2014,Current (non AEF) Grants to Local Authorities,Localism,HAMMERSMITH & FULHAM LB,,,,216929489,5000249246,,Local Council Tax Support Administration Subsidy,W6 9JU,"372,581.00",Yes
365,Communities & Local Government,DCLG,07/05/2014,Current (non AEF) Grants to Local Authorities,Localism,HARBOROUGH DC (HSG),,,,212935774,5000249093,,Local Council Tax Support Administration Subsidy,LE16 7AG,"58,771.00",Yes
366,Communities & Local Government,DCLG,07/05/2014,Current (non AEF) Grants to Local Authorities,Localism,HARINGEY LB,,,,217471767,5000249247,,Local Council Tax Support Administration Subsidy,N22 4TR,"538,514.00",Yes
367,Communities & Local Government,DCLG,07/05/2014,Current (non AEF) Grants to Local Authorities,Localism,HARLOW DISTRICT COUNCIL,,Large,,239999055,5000249248,,Local Council Tax Support Administration Subsidy,CM20 1WG,"148,203.00",Yes
368,Communities & Local Government,DCLG,07/05/2014,Current (non AEF) Grants to Local Authorities,Localism,HARROGATE BC,,,,236660031,5000249094,,Local Council Tax Support Administration Subsidy,HG1 2SG,"128,445.00",Yes
369,Communities & Local Government,DCLG,07/05/2014,Current (non AEF) Grants to Local Authorities,Localism,HARROW LB,,,,,5000249249,,Local Council Tax Support Administration Subsidy,HA1 2UZ,"279,795.00",Yes
370,Communities & Local Government,DCLG,07/05/2014,Current (non AEF) Grants to Local Authorities,Localism,HART DC,,,,229723895,5000249250,,Local Council Tax Support Administration Subsidy,GU13 8AE,"45,511.00",Yes
371,Communities & Local Government,DCLG,07/05/2014,Current (non AEF) Grants to Local Authorities,Localism,HARTLEPOOL BOROUGH COUNCIL,,,,424291797,5000249251,,Local Council Tax Support Administration Subsidy,TS24 7BT,"209,518.00",Yes
372,Communities & Local Government,DCLG,07/05/2014,Current (non AEF) Grants to Local Authorities,Localism,HASTINGS BC,,,,,5000249252,,Local Council Tax Support Administration Subsidy,TN34 3WN,"183,555.00",Yes
373,Communities & Local Government,DCLG,07/05/2014,Current (non AEF) Grants to Local Authorities,Localism,HAVANT BC,,,,211047543,5000249253,,Local Council Tax Support Administration Subsidy,PO9 2AX,"164,046.00",Yes
374,Communities & Local Government,DCLG,07/05/2014,Current (non AEF) Grants to Local Authorities,Localism,HAVERING LB,,,,211209770,5000249254,,Local Council Tax Support Administration Subsidy,RM1 3BB,"302,146.00",Yes
375,Communities & Local Government,DCLG,07/05/2014,Current (non AEF) Grants to Local Authorities,Localism,HEREFORDSHIRE COUNCIL,,,,,5000249095,,Local Council Tax Support Administration Subsidy,HR4 0XH,"202,612.00",Yes
376,Communities & Local Government,DCLG,07/05/2014,Current (non AEF) Grants to Local Authorities,Localism,HERTSMERE BC,,,,237549253,5000249255,,Local Council Tax Support Administration Subsidy,WD6 1WA,"110,033.00",Yes
377,Communities & Local Government,DCLG,07/05/2014,Current (non AEF) Grants to Local Authorities,Localism,HIGH PEAK BC,,,,239967771,5000249096,,Local Council Tax Support Administration Subsidy,SK17 6EL,"100,961.00",Yes
378,Communities & Local Government,DCLG,07/05/2014,Current (non AEF) Grants to Local Authorities,Localism,HILLINGDON LB,,,,211198585,5000249256,,Local Council Tax Support Administration Subsidy,UB8 1UW,"349,583.00",Yes
379,Communities & Local Government,DCLG,07/05/2014,Current (non AEF) Grants to Local Authorities,Localism,HINCKLEY & BOSWORTH BC,,,,211176144,5000249097,,Local Council Tax Support Administration Subsidy,LE10 1BZ,"102,743.00",Yes
380,Communities & Local Government,DCLG,07/05/2014,Current (non AEF) Grants to Local Authorities,Localism,HORSHAM DC,,,,229776588,5000249098,,Local Council Tax Support Administration Subsidy,RH12 1RL,"95,676.00",Yes
381,Communities & Local Government,DCLG,07/05/2014,Current (non AEF) Grants to Local Authorities,Localism,HOUNSLOW LB,,Public Bodies,,210388999,5000249257,,Local Council Tax Support Administration Subsidy,TW3 4DN,"353,442.00",Yes
382,Communities & Local Government,DCLG,07/05/2014,Current (non AEF) Grants to Local Authorities,Localism,HULL CITY COUNCIL,,,,217460984,5000249265,,Local Council Tax Support Administration Subsidy,HU1 2AA,"548,171.00",Yes
383,Communities & Local Government,DCLG,07/05/2014,Current (non AEF) Grants to Local Authorities,Localism,HUNTINGDONSHIRE DC,,,,235999216,5000249099,,Local Council Tax Support Administration Subsidy,PE18 6TN,"142,807.00",Yes
384,Communities & Local Government,DCLG,07/05/2014,Current (non AEF) Grants to Local Authorities,Localism,HYNDBURN BC,,,,,5000249258,,Local Council Tax Support Administration Subsidy,BB5 1EZ,"134,108.00",Yes
385,Communities & Local Government,DCLG,07/05/2014,Current (non AEF) Grants to Local Authorities,Localism,IPSWICH BC,,,,226861391,5000249259,,Local Council Tax Support Administration Subsidy,IP1 2DE,"207,383.00",Yes
386,Communities & Local Government,DCLG,07/05/2014,Current (non AEF) Grants to Local Authorities,Localism,ISLE OF WIGHT CNCL,,,,236431730,5000249260,,Local Council Tax Support Administration Subsidy,PO30 1UD,"225,509.00",Yes
387,Communities & Local Government,DCLG,07/05/2014,Current (non AEF) Grants to Local Authorities,Localism,ISLES OF SCILLY COUNCIL,,,,214146040,5000249261,,Local Council Tax Support Administration Subsidy,TR21 0LW,871.00,Yes
388,Communities & Local Government,DCLG,07/05/2014,Current (non AEF) Grants to Local Authorities,Localism,ISLINGTON LB,,,,225716729,5000249262,,Local Council Tax Support Administration Subsidy,N1 1XR,"567,615.00",Yes
389,Communities & Local Government,DCLG,07/05/2014,Current (non AEF) Grants to Local Authorities,Localism,KETTERING BC,,,,211271796,5000249264,,Local Council Tax Support Administration Subsidy,NN15 7QX,"111,687.00",Yes
390,Communities & Local Government,DCLG,07/05/2014,Current (non AEF) Grants to Local Authorities,Localism,KINGS LYNN & WEST NORFOLK BC,,,,236417671,5000249100,,Local Council Tax Support Administration Subsidy,PE30 1EX,"191,563.00",Yes
391,Communities & Local Government,DCLG,07/05/2014,Current (non AEF) Grants to Local Authorities,Localism,KINGSTON UPON THAMES  (HSG),,,,211379941,5000249101,,Local Council Tax Support Administration Subsidy,KT1 1EU,"157,103.00",Yes
392,Communities & Local Government,DCLG,07/05/2014,Current (non AEF) Grants to Local Authorities,Localism,KIRKLEES COUNCIL (HSG),,,,,5000249102,,Local Council Tax Support Administration Subsidy,HD1 2YU,"617,782.00",Yes
393,Communities & Local Government,DCLG,07/05/2014,Current (non AEF) Grants to Local Authorities,Localism,KNOWSLEY MBC,,,,,5000249266,,Local Council Tax Support Administration Subsidy,L36 9YZ,"357,978.00",Yes
394,Communities & Local Government,DCLG,07/05/2014,Current (non AEF) Grants to Local Authorities,Localism,LANCASTER CITY CNCL,,,,228669990,5000249103,,Local Council Tax Support Administration Subsidy,LA1 1PJ,"176,370.00",Yes
395,Communities & Local Government,DCLG,07/05/2014,Current (non AEF) Grants to Local Authorities,Localism,LEEDS CITY CNCL,,Micro,,,5000249268,,Local Council Tax Support Administration Subsidy,LS1 1JF,"1,117,108.00",Yes
396,Communities & Local Government,DCLG,07/05/2014,Current (non AEF) Grants to Local Authorities,Localism,LEICESTER CITY CNCL,,,,228219960,5000249104,,Local Council Tax Support Administration Subsidy,LE1 6ZG,"560,325.00",Yes
397,Communities & Local Government,DCLG,07/05/2014,Current (non AEF) Grants to Local Authorities,Localism,LEWES DC,,,,213090082,5000249105,,Local Council Tax Support Administration Subsidy,BN7 2DQ,"116,536.00",Yes
398,Communities & Local Government,DCLG,07/05/2014,Current (non AEF) Grants to Local Authorities,Localism,LEWISHAM LB (HSG),,Large,,235653300,5000249106,,Local Council Tax Support Administration Subsidy,SE6 4RU,"647,358.00",Yes
399,Communities & Local Government,DCLG,07/05/2014,Current (non AEF) Grants to Local Authorities,Localism,LICHFIELD DC,,,,236780086,5000249269,,Local Council Tax Support Administration Subsidy,WS13 6YX,"92,950.00",Yes
400,Communities & Local Government,DCLG,07/05/2014,Current (non AEF) Grants to Local Authorities,Localism,LIVERPOOL CITY COUNCIL,,,,,5000249271,,Local Council Tax Support Administration Subsidy,L2 2DH,"1,073,365.00",Yes
401,Communities & Local Government,DCLG,07/05/2014,Current (non AEF) Grants to Local Authorities,Localism,LONDON BOROUGH OF HACKNEY,,,,225221597,5000249245,,Local Council Tax Support Administration Subsidy,E8 4RU,"742,088.00",Yes
402,Communities & Local Government,DCLG,07/05/2014,Current (non AEF) Grants to Local Authorities,Localism,LONDON BOROUGH OF LAMBETH,,,,228216479,5000249267,,Local Council Tax Support Administration Subsidy,SW2 1RL,"688,094.00",Yes
403,Communities & Local Government,DCLG,07/05/2014,Current (non AEF) Grants to Local Authorities,Localism,LONDON BOROUGH OF NEWHAM,,,,211381004,5000249280,,Local Council Tax Support Administration Subsidy,E16 2QU,"563,550.00",Yes
404,Communities & Local Government,DCLG,07/05/2014,Current (non AEF) Grants to Local Authorities,Localism,LONDON BOROUGH OF REDBRIDGE,,,,211341417,5000249297,,Local Council Tax Support Administration Subsidy,IG1 1NN,"355,484.00",Yes
405,Communities & Local Government,DCLG,07/05/2014,Current (non AEF) Grants to Local Authorities,Localism,LUTON BC,,,,365112155,5000249272,,Local Council Tax Support Administration Subsidy,LU1 1DX,"289,243.00",Yes
406,Communities & Local Government,DCLG,07/05/2014,Current (non AEF) Grants to Local Authorities,Localism,MAIDSTONE BC,,Public Bodies,,293004214,5000249107,,Local Council Tax Support Administration Subsidy,ME15 6JQ,"155,464.00",Yes
407,Communities & Local Government,DCLG,07/05/2014,Current (non AEF) Grants to Local Authorities,Localism,MALDON DC,,,,424668663,5000249108,,Local Council Tax Support Administration Subsidy,CM9 7DL,"64,016.00",Yes
408,Communities & Local Government,DCLG,07/05/2014,Current (non AEF) Grants to Local Authorities,Localism,MALVERN HILLS DC,,,,227470424,5000249273,,Local Council Tax Support Administration Subsidy,WR14 3AF,"74,029.00",Yes
409,Communities & Local Government,DCLG,07/05/2014,Current (non AEF) Grants to Local Authorities,Localism,MANCHESTER CITY CNCL (HSG),,,,211241393,5000249109,,Local Council Tax Support Administration Subsidy,M60 2JR,"1,021,206.00",Yes
410,Communities & Local Government,DCLG,07/05/2014,Current (non AEF) Grants to Local Authorities,Localism,MANSFIELD DC,,,,237922968,5000249274,,Local Council Tax Support Administration Subsidy,NG19 7BH,"165,840.00",Yes
411,Communities & Local Government,DCLG,07/05/2014,Current (non AEF) Grants to Local Authorities,Localism,MEDWAY TOWNS D C (HSG),,,,,5000249110,,Local Council Tax Support Administration Subsidy,ME4 4TR,"344,008.00",Yes
412,Communities & Local Government,DCLG,07/05/2014,Current (non AEF) Grants to Local Authorities,Localism,MELTON BC,,,,346268340,5000249111,,Local Council Tax Support Administration Subsidy,LE13 0UL,"43,972.00",Yes
413,Communities & Local Government,DCLG,07/05/2014,Current (non AEF) Grants to Local Authorities,Localism,MENDIP DISTRICT COUNCIL,,,,,5000249112,,Local Council Tax Support Administration Subsidy,BA4 5BA,"116,015.00",Yes
414,Communities & Local Government,DCLG,07/05/2014,Current (non AEF) Grants to Local Authorities,Localism,MERTON LB,,,,,5000249275,,Local Council Tax Support Administration Subsidy,SM4 5DX,"224,801.00",Yes
415,Communities & Local Government,DCLG,07/05/2014,Current (non AEF) Grants to Local Authorities,Localism,MID DEVON DC,,,,213241137,5000249113,,Local Council Tax Support Administration Subsidy,EX16 6PP,"80,106.00",Yes
416,Communities & Local Government,DCLG,07/05/2014,Current (non AEF) Grants to Local Authorities,Localism,MID SUFFOLK DISTRICK COUNCIL,,,,223387239,5000249114,,Local Council Tax Support Administration Subsidy,IP6 8DL,"79,664.00",Yes
417,Communities & Local Government,DCLG,07/05/2014,Current (non AEF) Grants to Local Authorities,Localism,MID SUSSEX DC,,,,236675989,5000249115,,Local Council Tax Support Administration Subsidy,RH16 1SS,"93,267.00",Yes
418,Communities & Local Government,DCLG,07/05/2014,Current (non AEF) Grants to Local Authorities,Localism,MIDDLESBROUGH BC,,,,,5000249276,,Local Council Tax Support Administration Subsidy,TS1 2QQ,"301,915.00",Yes
419,Communities & Local Government,DCLG,07/05/2014,Current (non AEF) Grants to Local Authorities,Localism,MILTON KEYNES BC,,,,,5000249277,,Local Council Tax Support Administration Subsidy,MK9 3WJ,"315,076.00",Yes
420,Communities & Local Government,DCLG,07/05/2014,Current (non AEF) Grants to Local Authorities,Localism,MOLE VALLEY DC,,,,225385772,5000249116,,Local Council Tax Support Administration Subsidy,RH4 1SJ,"64,172.00",Yes
421,Communities & Local Government,DCLG,07/05/2014,Current (non AEF) Grants to Local Authorities,Localism,NEW FOREST DC,,Public Bodies,,,5000249117,,Local Council Tax Support Administration Subsidy,SO43 9ZG,"159,217.00",Yes
422,Communities & Local Government,DCLG,07/05/2014,Current (non AEF) Grants to Local Authorities,Localism,NEWARK & SHERWOOD DC (HSG),,,,236186755,5000249118,,Local Council Tax Support Administration Subsidy,NG23 5QX,"131,365.00",Yes
423,Communities & Local Government,DCLG,07/05/2014,Current (non AEF) Grants to Local Authorities,Localism,NEWCASTLE UNDER LYME BC,,,,229894373,5000249278,,Local Council Tax Support Administration Subsidy,ST5 2AG,"151,648.00",Yes
424,Communities & Local Government,DCLG,07/05/2014,Current (non AEF) Grants to Local Authorities,Localism,NEWCASTLE UPON TYNE DC,,,,239154040,5000249279,,Local Council Tax Support Administration Subsidy,NE99 1RD,"496,793.00",Yes
425,Communities & Local Government,DCLG,07/05/2014,Current (non AEF) Grants to Local Authorities,Localism,NORTH DEVON DC,,,,,5000249119,,Local Council Tax Support Administration Subsidy,EX31 1EA,"120,435.00",Yes
426,Communities & Local Government,DCLG,07/05/2014,Current (non AEF) Grants to Local Authorities,Localism,NORTH DORSET DC,,,,236185005,5000249120,,Local Council Tax Support Administration Subsidy,DT11 7LL,"64,606.00",Yes
427,Communities & Local Government,DCLG,07/05/2014,Current (non AEF) Grants to Local Authorities,Localism,NORTH EAST DERBYSHIRE DC,,,,238879308,5000249281,,Local Council Tax Support Administration Subsidy,S40 1LF,"123,335.00",Yes
428,Communities & Local Government,DCLG,07/05/2014,Current (non AEF) Grants to Local Authorities,Localism,NORTH EAST LINCOLN DC (HSG),,,,211242737,5000249121,,Local Council Tax Support Administration Subsidy,DN35 8LN,"280,784.00",Yes
429,Communities & Local Government,DCLG,07/05/2014,Current (non AEF) Grants to Local Authorities,Localism,NORTH HERTS DC (HOUSING) (HSG),,,,233593917,5000249122,,Local Council Tax Support Administration Subsidy,SG6 3JF,"136,106.00",Yes
430,Communities & Local Government,DCLG,07/05/2014,Current (non AEF) Grants to Local Authorities,Localism,NORTH KESTEVEN DC,,,,,5000249282,,Local Council Tax Support Administration Subsidy,NG34 7EF,"103,585.00",Yes
431,Communities & Local Government,DCLG,07/05/2014,Current (non AEF) Grants to Local Authorities,Localism,NORTH LINCOLNSHIRE DC (HSG),,Public Bodies,,424005502,5000249123,,Local Council Tax Support Administration Subsidy,DN16 1AB,"228,439.00",Yes
432,Communities & Local Government,DCLG,07/05/2014,Current (non AEF) Grants to Local Authorities,Localism,NORTH NORFOLK DC,,,,239975964,5000249124,,Local Council Tax Support Administration Subsidy,NR27 9EJ,"128,583.00",Yes
433,Communities & Local Government,DCLG,07/05/2014,Current (non AEF) Grants to Local Authorities,Localism,NORTH SOMERSET COUNCIL,,Large,,,5000249283,,Local Council Tax Support Administration Subsidy,BS23 1UJ,"243,063.00",Yes
434,Communities & Local Government,DCLG,07/05/2014,Current (non AEF) Grants to Local Authorities,Localism,NORTH TYNESIDE MBC,,,,,5000249284,,Local Council Tax Support Administration Subsidy,NE27 0BY,"324,428.00",Yes
435,Communities & Local Government,DCLG,07/05/2014,Current (non AEF) Grants to Local Authorities,Localism,NORTH WARWICKSHIRE BC,,Large,,,5000249125,,Local Council Tax Support Administration Subsidy,CV9 1DE,"74,311.00",Yes
436,Communities & Local Government,DCLG,07/05/2014,Current (non AEF) Grants to Local Authorities,Localism,NORTH WEST LEICESTER DC,,,,232605782,5000249126,,Local Council Tax Support Administration Subsidy,LE67 3FJ,"99,328.00",Yes
437,Communities & Local Government,DCLG,07/05/2014,Current (non AEF) Grants to Local Authorities,Localism,NORTHAMPTON BOROUGH COUNCIL,,,,228310017,5000249285,,Local Council Tax Support Administration Subsidy,NN4 4FF,"266,696.00",Yes
438,Communities & Local Government,DCLG,07/05/2014,Current (non AEF) Grants to Local Authorities,Localism,NORTHUMBERLAND COUNTY COUNCIL,,,,210308905,5000249361,,Local Council Tax Support Administration Subsidy,NE61 2EF,"421,383.00",Yes
439,Communities & Local Government,DCLG,07/05/2014,Current (non AEF) Grants to Local Authorities,Localism,NORWICH CITY CNCL,,,,235981297,5000249286,,Local Council Tax Support Administration Subsidy,NR2 1NH,"247,222.00",Yes
440,Communities & Local Government,DCLG,07/05/2014,Current (non AEF) Grants to Local Authorities,Localism,NOTTINGHAM CITY COUNCIL,,,,214495447,5000249287,,Local Council Tax Support Administration Subsidy,NG2 3NG,"591,074.00",Yes
441,Communities & Local Government,DCLG,07/05/2014,Current (non AEF) Grants to Local Authorities,Localism,NUNEATON & BEDWORTH BC,,Large,,,5000249288,,Local Council Tax Support Administration Subsidy,CV11 5AA,"174,935.00",Yes
442,Communities & Local Government,DCLG,07/05/2014,Current (non AEF) Grants to Local Authorities,Localism,OADBY & WIGSTON BC (HSG),,,,239831878,5000249127,,Local Council Tax Support Administration Subsidy,LE8 2DR,"52,225.00",Yes
443,Communities & Local Government,DCLG,07/05/2014,Current (non AEF) Grants to Local Authorities,Localism,OLDHAM MBC,,,,213015574,5000249289,,Local Council Tax Support Administration Subsidy,OL1 1UH,"394,228.00",Yes
444,Communities & Local Government,DCLG,07/05/2014,Current (non AEF) Grants to Local Authorities,Localism,OXFORD CITY COUNCIL,,,,212437417,5000249290,,Local Council Tax Support Administration Subsidy,OX1 1DF,"155,347.00",Yes
445,Communities & Local Government,DCLG,07/05/2014,Current (non AEF) Grants to Local Authorities,Localism,PENDLE BC,,,,548605328,5000249291,,Local Council Tax Support Administration Subsidy,BB9 OLX,"143,361.00",Yes
446,Communities & Local Government,DCLG,07/05/2014,Current (non AEF) Grants to Local Authorities,Localism,PETERBOROUGH CITY CNCL,,,,,5000249292,,Local Council Tax Support Administration Subsidy,PE1 1HG,"262,912.00",Yes
447,Communities & Local Government,DCLG,07/05/2014,Current (non AEF) Grants to Local Authorities,Localism,PLYMOUTH CITY CNCL,,Public Bodies,,236416095,5000249293,,Local Council Tax Support Administration Subsidy,PL1 2AA,"382,021.00",Yes
448,Communities & Local Government,DCLG,07/05/2014,Current (non AEF) Grants to Local Authorities,Localism,POOLE BC (HSG),,,,,5000249128,,Local Council Tax Support Administration Subsidy,BH15 2RU,"173,041.00",Yes
449,Communities & Local Government,DCLG,07/05/2014,Current (non AEF) Grants to Local Authorities,Localism,PORTSMOUTH CITY COUNCIL,,Large,,211183082,5000249294,,Local Council Tax Support Administration Subsidy,PO1 2AR,"292,386.00",Yes
450,Communities & Local Government,DCLG,07/05/2014,Current (non AEF) Grants to Local Authorities,Localism,PRESTON BC,,,,232604124,5000249295,,Local Council Tax Support Administration Subsidy,PR1 2RL,"198,330.00",Yes
451,Communities & Local Government,DCLG,07/05/2014,Current (non AEF) Grants to Local Authorities,Localism,PURBECK DC,,,,,5000249129,,Local Council Tax Support Administration Subsidy,BH20 4PP,"49,095.00",Yes
452,Communities & Local Government,DCLG,07/05/2014,Current (non AEF) Grants to Local Authorities,Localism,READING BC,,,,210220399,5000249296,,Local Council Tax Support Administration Subsidy,RG1 7TD,"203,043.00",Yes
453,Communities & Local Government,DCLG,07/05/2014,Current (non AEF) Grants to Local Authorities,Localism,REDCAR & CLEVELAND BOROUGH COUNCIL,,,,215175196,5000249298,,Local Council Tax Support Administration Subsidy,TS10 1RT,"250,813.00",Yes
454,Communities & Local Government,DCLG,07/05/2014,Current (non AEF) Grants to Local Authorities,Localism,REDDITCH BC,,,,231421491,5000249299,,Local Council Tax Support Administration Subsidy,B98 8AH,"108,143.00",Yes
455,Communities & Local Government,DCLG,07/05/2014,Current (non AEF) Grants to Local Authorities,Localism,REIGATE & BANSTEAD BC,,,,211313515,5000249300,,Local Council Tax Support Administration Subsidy,RH2 OSH,"110,725.00",Yes
456,Communities & Local Government,DCLG,07/05/2014,Current (non AEF) Grants to Local Authorities,Localism,RIBBLE VALLEY BC,,,,232617894,5000249130,,Local Council Tax Support Administration Subsidy,BB7 2RA,"37,152.00",Yes
457,Communities & Local Government,DCLG,07/05/2014,Current (non AEF) Grants to Local Authorities,Localism,RICHMOND UPON THAMES LB,,,,228868535,5000249301,,Local Council Tax Support Administration Subsidy,TW1 3BZ,"164,018.00",Yes
458,Communities & Local Government,DCLG,07/05/2014,Current (non AEF) Grants to Local Authorities,Localism,RICHMONDSHIRE DC,,,,232245142,5000249131,,Local Council Tax Support Administration Subsidy,DL10 4JX,"39,086.00",Yes
459,Communities & Local Government,DCLG,07/05/2014,Current (non AEF) Grants to Local Authorities,Localism,ROCHDALE MBC,,,,,5000249302,,Local Council Tax Support Administration Subsidy,OL16 1LQ,"387,631.00",Yes
460,Communities & Local Government,DCLG,07/05/2014,Current (non AEF) Grants to Local Authorities,Localism,ROCHFORD DISTRICT COUNCIL,,,,387828767,5000249303,,Local Council Tax Support Administration Subsidy,SS4 1BW,"76,447.00",Yes
461,Communities & Local Government,DCLG,07/05/2014,Current (non AEF) Grants to Local Authorities,Localism,ROSSENDALE BC,,,,237654020,5000249304,,Local Council Tax Support Administration Subsidy,BB4 7LZ,"94,055.00",Yes
462,Communities & Local Government,DCLG,07/05/2014,Current (non AEF) Grants to Local Authorities,Localism,ROTHER DC (HSG),,,,,5000249132,,Local Council Tax Support Administration Subsidy,TN39 3JX,"117,674.00",Yes
463,Communities & Local Government,DCLG,07/05/2014,Current (non AEF) Grants to Local Authorities,Localism,ROTHERHAM MBC,,,,211266937,5000249305,,Local Council Tax Support Administration Subsidy,S60 1AE,"411,853.00",Yes
464,Communities & Local Government,DCLG,07/05/2014,Current (non AEF) Grants to Local Authorities,Localism,ROYAL BOROUGH OF KENSINGTON & CHELS,,,,211124466,5000249263,,Local Council Tax Support Administration Subsidy,W8 7NX,"297,834.00",Yes
465,Communities & Local Government,DCLG,07/05/2014,Current (non AEF) Grants to Local Authorities,Localism,RUGBY BC,,,,,5000249306,,Local Council Tax Support Administration Subsidy,CV21 2LA,"104,094.00",Yes
466,Communities & Local Government,DCLG,07/05/2014,Current (non AEF) Grants to Local Authorities,Localism,RUNNYMEDE BOROUGH COUNCIL,,,,232225722,5000249307,,Local Council Tax Support Administration Subsidy,KT15 2AH,"71,123.00",Yes
467,Communities & Local Government,DCLG,07/05/2014,Current (non AEF) Grants to Local Authorities,Localism,RUSHCLIFFE BOROUGH COUNCIL,,,,,5000249133,,Local Council Tax Support Administration Subsidy,NG2 5FE,"81,321.00",Yes
468,Communities & Local Government,DCLG,07/05/2014,Current (non AEF) Grants to Local Authorities,Localism,RUSHMOOR BC,,,,232607606,5000249308,,Local Council Tax Support Administration Subsidy,GU14 7JU,"87,657.00",Yes
469,Communities & Local Government,DCLG,07/05/2014,Current (non AEF) Grants to Local Authorities,Localism,RUTLAND CC,,,,,5000249309,,Local Council Tax Support Administration Subsidy,LE15 6HP,"26,932.00",Yes
470,Communities & Local Government,DCLG,07/05/2014,Current (non AEF) Grants to Local Authorities,Localism,RYEDALE DC,,,,,5000249134,,Local Council Tax Support Administration Subsidy,YO17 0HH,"49,997.00",Yes
471,Communities & Local Government,DCLG,07/05/2014,Current (non AEF) Grants to Local Authorities,Localism,SALFORD CITY CNCL,,,,213180073,5000249310,,Local Council Tax Support Administration Subsidy,M27 5AW,"476,687.00",Yes
472,Communities & Local Government,DCLG,07/05/2014,Current (non AEF) Grants to Local Authorities,Localism,SANDWELL MBC,,,,,5000249311,,Local Council Tax Support Administration Subsidy,B69 3BS,"618,909.00",Yes
473,Communities & Local Government,DCLG,07/05/2014,Current (non AEF) Grants to Local Authorities,Localism,SCARBOROUGH BC,,Large,,,5000249135,,Local Council Tax Support Administration Subsidy,YO11 2HG,"175,266.00",Yes
474,Communities & Local Government,DCLG,07/05/2014,Current (non AEF) Grants to Local Authorities,Localism,SEDGEMOOR DC,,,,211204011,5000249136,,Local Council Tax Support Administration Subsidy,TA6 3AR,"143,500.00",Yes
475,Communities & Local Government,DCLG,07/05/2014,Current (non AEF) Grants to Local Authorities,Localism,SEFTON MBC,,Public Bodies,,232936125,5000249312,,Local Council Tax Support Administration Subsidy,L20 3NJ,"465,328.00",Yes
476,Communities & Local Government,DCLG,07/05/2014,Current (non AEF) Grants to Local Authorities,Localism,SELBY DC,,,,239816721,5000249137,,Local Council Tax Support Administration Subsidy,YO8 0SA,"76,515.00",Yes
477,Communities & Local Government,DCLG,07/05/2014,Current (non AEF) Grants to Local Authorities,Localism,SEVENOAKS DC,,,,236100913,5000249138,,Local Council Tax Support Administration Subsidy,TN13 1HG,"105,171.00",Yes
478,Communities & Local Government,DCLG,07/05/2014,Current (non AEF) Grants to Local Authorities,Localism,SHEFFIELD CITY CNCL,,,,,5000249313,,Local Council Tax Support Administration Subsidy,S1 1UR,"843,043.00",Yes
479,Communities & Local Government,DCLG,07/05/2014,Current (non AEF) Grants to Local Authorities,Localism,SHEPWAY DISTRICT COUNCIL,,,,235550878,5000249139,,Local Council Tax Support Administration Subsidy,CT20 2QY,"164,408.00",Yes
480,Communities & Local Government,DCLG,07/05/2014,Current (non AEF) Grants to Local Authorities,Localism,SHROPSHIRE UNITARY AUTHORITY,,,,217036490,5000249366,,Local Council Tax Support Administration Subsidy,SY2 6ND,"321,804.00",Yes
481,Communities & Local Government,DCLG,07/05/2014,Current (non AEF) Grants to Local Authorities,Localism,SLOUGH BOROUGH COUNCIL,,,,211027123,5000249314,,Local Council Tax Support Administration Subsidy,SL1 3UQ,"188,151.00",Yes
482,Communities & Local Government,DCLG,07/05/2014,Current (non AEF) Grants to Local Authorities,Localism,SOLIHULL MBC,,,,,5000249315,,Local Council Tax Support Administration Subsidy,B91 3QR,"244,208.00",Yes
483,Communities & Local Government,DCLG,07/05/2014,Current (non AEF) Grants to Local Authorities,Localism,SOUTH BUCKS DC (HSG),,,,,5000249140,,Local Council Tax Support Administration Subsidy,UB9 4LH,"46,705.00",Yes
484,Communities & Local Government,DCLG,07/05/2014,Current (non AEF) Grants to Local Authorities,Localism,SOUTH CAMBRIDGESHIRE DC,,,,236369484,5000249141,,Local Council Tax Support Administration Subsidy,CB23 6EA,"98,867.00",Yes
485,Communities & Local Government,DCLG,07/05/2014,Current (non AEF) Grants to Local Authorities,Localism,SOUTH DERBYSHIRE DC,,Public Bodies,,232612416,5000249142,,Local Council Tax Support Administration Subsidy,DE11 0AH,"88,392.00",Yes
486,Communities & Local Government,DCLG,07/05/2014,Current (non AEF) Grants to Local Authorities,Localism,SOUTH GLOUCESTERSHIRE DC (HSG),,,,,5000249143,,Local Council Tax Support Administration Subsidy,BS15 2TR,"233,211.00",Yes
487,Communities & Local Government,DCLG,07/05/2014,Current (non AEF) Grants to Local Authorities,Localism,SOUTH HAMS DC,,,,236445342,5000249144,,Local Council Tax Support Administration Subsidy,TQ9 5NE,"89,083.00",Yes
488,Communities & Local Government,DCLG,07/05/2014,Current (non AEF) Grants to Local Authorities,Localism,SOUTH HOLLAND,,,,236445383,5000249145,,Local Council Tax Support Administration Subsidy,PE11 2XE,"103,032.00",Yes
489,Communities & Local Government,DCLG,07/05/2014,Current (non AEF) Grants to Local Authorities,Localism,SOUTH KESTEVEN DC (HSG),,,,227470747,5000249146,,Local Council Tax Support Administration Subsidy,NG31 6PZ,"137,561.00",Yes
490,Communities & Local Government,DCLG,07/05/2014,Current (non AEF) Grants to Local Authorities,Localism,SOUTH LAKELAND DC,,,,236445466,5000249147,,Local Council Tax Support Administration Subsidy,LA49 4DQ,"85,975.00",Yes
491,Communities & Local Government,DCLG,07/05/2014,Current (non AEF) Grants to Local Authorities,Localism,SOUTH NORFOLK DC,,,,232605717,5000249148,,Local Council Tax Support Administration Subsidy,NR15 2XE,"122,230.00",Yes
492,Communities & Local Government,DCLG,07/05/2014,Current (non AEF) Grants to Local Authorities,Localism,SOUTH NORTHAMPTONSHIRE DC,,,,,5000249149,,Local Council Tax Support Administration Subsidy,NN12 7AE,"53,621.00",Yes
493,Communities & Local Government,DCLG,07/05/2014,Current (non AEF) Grants to Local Authorities,Localism,SOUTH OXFORDSHIRE DC,,,,212296766,5000249150,,Local Council Tax Support Administration Subsidy,OX10 8HQ,"88,621.00",Yes
494,Communities & Local Government,DCLG,07/05/2014,Current (non AEF) Grants to Local Authorities,Localism,SOUTH RIBBLE BC,,Public Bodies,,,5000249316,,Local Council Tax Support Administration Subsidy,PR5 1DH,"100,546.00",Yes
495,Communities & Local Government,DCLG,07/05/2014,Current (non AEF) Grants to Local Authorities,Localism,SOUTH SOMERSET DC,,,,239850811,5000249151,,Local Council Tax Support Administration Subsidy,BA20 2DS,"172,641.00",Yes
496,Communities & Local Government,DCLG,07/05/2014,Current (non AEF) Grants to Local Authorities,Localism,SOUTH STAFFORDSHIRE DC,,,,210305155,5000249152,,Local Council Tax Support Administration Subsidy,WV8 1PX,"107,314.00",Yes
497,Communities & Local Government,DCLG,07/05/2014,Current (non AEF) Grants to Local Authorities,Localism,SOUTH TYNESIDE COUNCIL,,,,345736438,5000249317,,Local Council Tax Support Administration Subsidy,NE33 2RL,"325,256.00",Yes
498,Communities & Local Government,DCLG,07/05/2014,Current (non AEF) Grants to Local Authorities,Localism,SOUTHAMPTON CITY CNCL,,,,216927475,5000249318,,Local Council Tax Support Administration Subsidy,SO14 7LF,"353,116.00",Yes
499,Communities & Local Government,DCLG,07/05/2014,Current (non AEF) Grants to Local Authorities,Localism,SOUTHEND ON SEA BC,,,,217067263,5000249319,,Local Council Tax Support Administration Subsidy,SS2 6EP,"274,924.00",Yes
500,Communities & Local Government,DCLG,07/05/2014,Current (non AEF) Grants to Local Authorities,Localism,SOUTHWARK LB,,,,,5000249320,,Local Council Tax Support Administration Subsidy,SE1 2QH,"681,945.00",Yes
501,Communities & Local Government,DCLG,07/05/2014,Current (non AEF) Grants to Local Authorities,Localism,SPELTHORNE DC,,,,211177332,5000249153,,Local Council Tax Support Administration Subsidy,TW18 1XB,"90,196.00",Yes
502,Communities & Local Government,DCLG,07/05/2014,Current (non AEF) Grants to Local Authorities,Localism,ST ALBANS CITY COUNCIL,,,,218692510,5000249321,,Local Council Tax Support Administration Subsidy,AL1 3JE,"106,075.00",Yes
503,Communities & Local Government,DCLG,07/05/2014,Current (non AEF) Grants to Local Authorities,Localism,ST EDMUNDSBURY BOROUGH COUNCIL,,,,212503653,5000249154,,Local Council Tax Support Administration Subsidy,IP33 3YU,"106,456.00",Yes
504,Communities & Local Government,DCLG,07/05/2014,Current (non AEF) Grants to Local Authorities,Localism,ST HELENS MBC,,,,,5000249322,,Local Council Tax Support Administration Subsidy,WA10 1HP,"310,976.00",Yes
505,Communities & Local Government,DCLG,07/05/2014,Current (non AEF) Grants to Local Authorities,Localism,STAFFORD BC,,,,227476934,5000249323,,Local Council Tax Support Administration Subsidy,ST16 3AQ,"110,905.00",Yes
506,Communities & Local Government,DCLG,07/05/2014,Current (non AEF) Grants to Local Authorities,Localism,STAFFORDSHIRE MOORLANDS DC,,,,232749775,5000249155,,Local Council Tax Support Administration Subsidy,ST13 6HQ,"89,635.00",Yes
507,Communities & Local Government,DCLG,07/05/2014,Current (non AEF) Grants to Local Authorities,Localism,STEVENAGE BC,,,,236440186,5000249324,,Local Council Tax Support Administration Subsidy,SG1 1HN,"118,781.00",Yes
508,Communities & Local Government,DCLG,07/05/2014,Current (non AEF) Grants to Local Authorities,Localism,STOCKPORT MBC,,,,228706248,5000249325,,Local Council Tax Support Administration Subsidy,SK1 3XE,"360,814.00",Yes
509,Communities & Local Government,DCLG,07/05/2014,Current (non AEF) Grants to Local Authorities,Localism,STOCKTON-ON-TEES BC (HSG),,,,,5000249156,,Local Council Tax Support Administration Subsidy,TS23 2YS,"299,567.00",Yes
510,Communities & Local Government,DCLG,07/05/2014,Current (non AEF) Grants to Local Authorities,Localism,STOKE ON TRENT CITY COUNCIL,,,,216037890,5000249326,,Local Council Tax Support Administration Subsidy,ST4 1RJ,"461,022.00",Yes
511,Communities & Local Government,DCLG,07/05/2014,Current (non AEF) Grants to Local Authorities,Localism,STRATFORD ON AVON DC,,,,227473881,5000249327,,Local Council Tax Support Administration Subsidy,CV37 6HX,"115,081.00",Yes
512,Communities & Local Government,DCLG,07/05/2014,Current (non AEF) Grants to Local Authorities,Localism,STROUD DC (HSG),,,,,5000249157,,Local Council Tax Support Administration Subsidy,GL5 4UB,"108,256.00",Yes
513,Communities & Local Government,DCLG,07/05/2014,Current (non AEF) Grants to Local Authorities,Localism,SUFFOLK COASTAL DC (HSG),,,,239933203,5000249158,,Local Council Tax Support Administration Subsidy,IP12 1AU,"117,654.00",Yes
514,Communities & Local Government,DCLG,07/05/2014,Current (non AEF) Grants to Local Authorities,Localism,SURREY HEATH BC,,,,236445441,5000249328,,Local Council Tax Support Administration Subsidy,GU15 3HD,"55,928.00",Yes
515,Communities & Local Government,DCLG,07/05/2014,Current (non AEF) Grants to Local Authorities,Localism,SUTTON LB,,,,,5000249329,,Local Council Tax Support Administration Subsidy,SM1 1EA,"228,338.00",Yes
516,Communities & Local Government,DCLG,07/05/2014,Current (non AEF) Grants to Local Authorities,Localism,SWALE BC,,,,239842768,5000249330,,Local Council Tax Support Administration Subsidy,ME10 3HT,"194,081.00",Yes
517,Communities & Local Government,DCLG,07/05/2014,Current (non AEF) Grants to Local Authorities,Localism,SWINDON BC,,,,458639697,5000249331,,Local Council Tax Support Administration Subsidy,SN1 2JH,"238,348.00",Yes
518,Communities & Local Government,DCLG,07/05/2014,Current (non AEF) Grants to Local Authorities,Localism,TAMESIDE MBC,,,,212635875,5000249332,,Local Council Tax Support Administration Subsidy,OL6 6DL,"380,747.00",Yes
519,Communities & Local Government,DCLG,07/05/2014,Current (non AEF) Grants to Local Authorities,Localism,TAMWORTH BOROUGH COUNCIL,,,,232612457,5000249333,,Local Council Tax Support Administration Subsidy,B79 7BZ,"100,546.00",Yes
520,Communities & Local Government,DCLG,07/05/2014,Current (non AEF) Grants to Local Authorities,Localism,TANDRIDGE DC,,,,225481076,5000249159,,Local Council Tax Support Administration Subsidy,RH8 0BT,"67,405.00",Yes
521,Communities & Local Government,DCLG,07/05/2014,Current (non AEF) Grants to Local Authorities,Localism,TAUNTON DEANE BC,,,,236185294,5000249160,,Local Council Tax Support Administration Subsidy,TA1 1HE,"118,363.00",Yes
522,Communities & Local Government,DCLG,07/05/2014,Current (non AEF) Grants to Local Authorities,Localism,TEIGNBRIDGE DC,,,,236440475,5000249161,,Local Council Tax Support Administration Subsidy,TQ12 4XX,"144,881.00",Yes
523,Communities & Local Government,DCLG,07/05/2014,Current (non AEF) Grants to Local Authorities,Localism,TELFORD & WREKIN DC,,,,230235801,5000249334,,Local Council Tax Support Administration Subsidy,TF3 4LF,"254,404.00",Yes
524,Communities & Local Government,DCLG,07/05/2014,Current (non AEF) Grants to Local Authorities,Localism,TENDRING DC,,,,,5000249162,,Local Council Tax Support Administration Subsidy,CO15 1SE,"256,348.00",Yes
525,Communities & Local Government,DCLG,07/05/2014,Current (non AEF) Grants to Local Authorities,Localism,TEST VALLEY BC,,,,225442698,5000249163,,Local Council Tax Support Administration Subsidy,SP10 3AJ,"93,511.00",Yes
526,Communities & Local Government,DCLG,07/05/2014,Current (non AEF) Grants to Local Authorities,Localism,TEWKESBURY BC,,,,232740399,5000249164,,Local Council Tax Support Administration Subsidy,GL20 5TT,"75,202.00",Yes
527,Communities & Local Government,DCLG,07/05/2014,Current (non AEF) Grants to Local Authorities,Localism,THANET DC,,,,232309369,5000249165,,Local Council Tax Support Administration Subsidy,CT8 1XZ,"266,915.00",Yes
528,Communities & Local Government,DCLG,07/05/2014,Current (non AEF) Grants to Local Authorities,Localism,THREE RIVERS DC,,,,,5000249335,,Local Council Tax Support Administration Subsidy,WD3 1RL,"82,010.00",Yes
529,Communities & Local Government,DCLG,07/05/2014,Current (non AEF) Grants to Local Authorities,Localism,THURROCK  BOROUGH COUNCIL,,,,,5000249336,,Local Council Tax Support Administration Subsidy,RM17 6LT,"222,926.00",Yes
530,Communities & Local Government,DCLG,07/05/2014,Current (non AEF) Grants to Local Authorities,Localism,TONBRIDGE & MALLING BC,,,,,5000249166,,Local Council Tax Support Administration Subsidy,ME19 6LZ,"108,896.00",Yes
531,Communities & Local Government,DCLG,07/05/2014,Current (non AEF) Grants to Local Authorities,Localism,TORBAY BC,,,,,5000249337,,Local Council Tax Support Administration Subsidy,TQ1 3DR,"249,156.00",Yes
532,Communities & Local Government,DCLG,07/05/2014,Current (non AEF) Grants to Local Authorities,Localism,TORRIDGE DC,,,,,5000249167,,Local Council Tax Support Administration Subsidy,EX39 2HT,"83,697.00",Yes
533,Communities & Local Government,DCLG,07/05/2014,Current (non AEF) Grants to Local Authorities,Localism,TOWER HAMLETS LB (HSG),,,,231315144,5000249168,,Local Council Tax Support Administration Subsidy,E14 2BG,"679,255.00",Yes
534,Communities & Local Government,DCLG,07/05/2014,Current (non AEF) Grants to Local Authorities,Localism,TRAFFORD MBC,,,,,5000249338,,Local Council Tax Support Administration Subsidy,M32 0YY,"257,847.00",Yes
535,Communities & Local Government,DCLG,07/05/2014,Current (non AEF) Grants to Local Authorities,Localism,TUNBRIDGE WELLS BC,,,,775221013,5000249169,,Local Council Tax Support Administration Subsidy,TN1 1RS,"100,661.00",Yes
536,Communities & Local Government,DCLG,07/05/2014,Current (non AEF) Grants to Local Authorities,Localism,UTTLESFORD DC,,,,424423242,5000249170,,Local Council Tax Support Administration Subsidy,CB11 4ER,"58,729.00",Yes
537,Communities & Local Government,DCLG,07/05/2014,Current (non AEF) Grants to Local Authorities,Localism,VALE OF WHITE HORSE DC,,,,,5000249171,,Local Council Tax Support Administration Subsidy,OX14 3JE,"86,834.00",Yes
538,Communities & Local Government,DCLG,07/05/2014,Current (non AEF) Grants to Local Authorities,Localism,WALSALL MBC,,,,212515585,5000249340,,Local Council Tax Support Administration Subsidy,WS1 1TW,"511,503.00",Yes
539,Communities & Local Government,DCLG,07/05/2014,Current (non AEF) Grants to Local Authorities,Localism,WALTHAM FOREST LB,,,,,5000249341,,Local Council Tax Support Administration Subsidy,E17 4JA,"432,459.00",Yes
540,Communities & Local Government,DCLG,07/05/2014,Current (non AEF) Grants to Local Authorities,Localism,WANDSWORTH LB,,,,,5000249342,,Local Council Tax Support Administration Subsidy,SW18 2PU,"435,030.00",Yes
541,Communities & Local Government,DCLG,07/05/2014,Current (non AEF) Grants to Local Authorities,Localism,WARRINGTON BC,,,,,5000249343,,Local Council Tax Support Administration Subsidy,WA1 1BN,"245,785.00",Yes
542,Communities & Local Government,DCLG,07/05/2014,Current (non AEF) Grants to Local Authorities,Localism,WARWICK,,,,,5000249344,,Local Council Tax Support Administration Subsidy,CV32 4NW,"129,684.00",Yes
543,Communities & Local Government,DCLG,07/05/2014,Current (non AEF) Grants to Local Authorities,Localism,WATFORD COUNCIL,,,,215498572,5000249345,,Local Council Tax Support Administration Subsidy,WD17 3EX,"102,117.00",Yes
544,Communities & Local Government,DCLG,07/05/2014,Current (non AEF) Grants to Local Authorities,Localism,WAVENEY DISTRICT COUNCIL,,Large,,229740980,5000249172,,Local Council Tax Support Administration Subsidy,NR32 1HS,"185,269.00",Yes
545,Communities & Local Government,DCLG,07/05/2014,Current (non AEF) Grants to Local Authorities,Localism,WAVERLEY BC V177,,,,,5000249173,,Local Council Tax Support Administration Subsidy,GU7 1HR,"96,339.00",Yes
546,Communities & Local Government,DCLG,07/05/2014,Current (non AEF) Grants to Local Authorities,Localism,WEALDEN DC,,,,232688697,5000249174,,Local Council Tax Support Administration Subsidy,BN22 9LN,"134,322.00",Yes
547,Communities & Local Government,DCLG,07/05/2014,Current (non AEF) Grants to Local Authorities,Localism,WELLINGBOROUGH BOROUGH COUNCIL,,Large,,230851581,5000249346,,Local Council Tax Support Administration Subsidy,NN8 1BN,"97,636.00",Yes
548,Communities & Local Government,DCLG,07/05/2014,Current (non AEF) Grants to Local Authorities,Localism,WELWYN HATFIELD COUNCIL,,,,210360804,5000249175,,Local Council Tax Support Administration Subsidy,AL8 6AE,"127,923.00",Yes
549,Communities & Local Government,DCLG,07/05/2014,Current (non AEF) Grants to Local Authorities,Localism,WEST BERKSHIRE COUNCIL,,,,364809181,5000249347,,Local Council Tax Support Administration Subsidy,RG14 2AF,"130,058.00",Yes
550,Communities & Local Government,DCLG,07/05/2014,Current (non AEF) Grants to Local Authorities,Localism,WEST DEVON BC,,,,234002095,5000249176,,Local Council Tax Support Administration Subsidy,PL19 0BZ,"58,422.00",Yes
551,Communities & Local Government,DCLG,07/05/2014,Current (non AEF) Grants to Local Authorities,Localism,WEST DORSET DC,,,,424295350,5000249177,,Local Council Tax Support Administration Subsidy,DT1 1UZ,"107,439.00",Yes
552,Communities & Local Government,DCLG,07/05/2014,Current (non AEF) Grants to Local Authorities,Localism,WEST LANCASHIRE BC,,,,232240978,5000249348,,Local Council Tax Support Administration Subsidy,L39 2DF,"144,328.00",Yes
553,Communities & Local Government,DCLG,07/05/2014,Current (non AEF) Grants to Local Authorities,Localism,WEST LINDSEY DC,,,,227471026,5000249178,,Local Council Tax Support Administration Subsidy,DN21 2NA,"110,629.00",Yes
554,Communities & Local Government,DCLG,07/05/2014,Current (non AEF) Grants to Local Authorities,Localism,WEST OXFORDSHIRE DC,,,,210401379,5000249179,,Local Council Tax Support Administration Subsidy,OX28 1NB,"78,046.00",Yes
555,Communities & Local Government,DCLG,07/05/2014,Current (non AEF) Grants to Local Authorities,Localism,WEST SOMERSET DC,,,,216015144,5000249180,,Local Council Tax Support Administration Subsidy,TA4 4QA,"50,135.00",Yes
556,Communities & Local Government,DCLG,07/05/2014,Current (non AEF) Grants to Local Authorities,Localism,WESTMINSTER CITY CNCL,,,,229845706,5000249349,,Local Council Tax Support Administration Subsidy,SW1E 6QP,"448,865.00",Yes
557,Communities & Local Government,DCLG,07/05/2014,Current (non AEF) Grants to Local Authorities,Localism,WEYMOUTH & PORTLAND BC,,,,735157948,5000249350,,Local Council Tax Support Administration Subsidy,DT4 8TA,"96,339.00",Yes
558,Communities & Local Government,DCLG,07/05/2014,Current (non AEF) Grants to Local Authorities,Localism,WIGAN MBC,,Public Bodies,,,5000249351,,Local Council Tax Support Administration Subsidy,WN1 1YD,"496,908.00",Yes
559,Communities & Local Government,DCLG,07/05/2014,Current (non AEF) Grants to Local Authorities,Localism,WILTSHIRE COUNCIL,,,,211341656,5000249360,,Local Council Tax Support Administration Subsidy,BA14 4DS,"434,898.00",Yes
560,Communities & Local Government,DCLG,07/05/2014,Current (non AEF) Grants to Local Authorities,Localism,WINCHESTER CITY CNCL,,,,228838280,5000249181,,Local Council Tax Support Administration Subsidy,SO23 9LJ,"87,218.00",Yes
561,Communities & Local Government,DCLG,07/05/2014,Current (non AEF) Grants to Local Authorities,Localism,WINDSOR & MAIDENHEAD (HSG),,,,227411998,5000249182,,Local Council Tax Support Administration Subsidy,SL6 1RF,"108,300.00",Yes
562,Communities & Local Government,DCLG,07/05/2014,Current (non AEF) Grants to Local Authorities,Localism,WIRRAL MBC,,,,211222602,5000249352,,Local Council Tax Support Administration Subsidy,CH41 6BU,"565,437.00",Yes
563,Communities & Local Government,DCLG,07/05/2014,Current (non AEF) Grants to Local Authorities,Localism,WOKING BC,,,,211163449,5000249353,,Local Council Tax Support Administration Subsidy,GU21 1YL,"79,690.00",Yes
564,Communities & Local Government,DCLG,07/05/2014,Current (non AEF) Grants to Local Authorities,Localism,WOKINGHAM DC,,,,,5000249354,,Local Council Tax Support Administration Subsidy,RG11 1WJ,"78,494.00",Yes
565,Communities & Local Government,DCLG,07/05/2014,Current (non AEF) Grants to Local Authorities,Localism,WOLVERHAMPTON MBC,,,,229895453,5000249355,,Local Council Tax Support Administration Subsidy,WV1 1RL,"503,903.00",Yes
566,Communities & Local Government,DCLG,07/05/2014,Current (non AEF) Grants to Local Authorities,Localism,WORCESTER CITY CNCL,,,,227419751,5000249356,,Local Council Tax Support Administration Subsidy,WR1 2EZ,"117,120.00",Yes
567,Communities & Local Government,DCLG,07/05/2014,Current (non AEF) Grants to Local Authorities,Localism,WORTHING BC,,,,236429734,5000249357,,Local Council Tax Support Administration Subsidy,BN11 1HB,"121,615.00",Yes
568,Communities & Local Government,DCLG,07/05/2014,Current (non AEF) Grants to Local Authorities,Localism,WYCHAVON DISTRICT COUNCIL,,,,232257139,5000249183,,Local Council Tax Support Administration Subsidy,WR10 1PT,"112,562.00",Yes
569,Communities & Local Government,DCLG,07/05/2014,Current (non AEF) Grants to Local Authorities,Localism,WYCOMBE DC,,Medium,,232683771,5000249184,,Local Council Tax Support Administration Subsidy,HP11 1BB,"146,965.00",Yes
570,Communities & Local Government,DCLG,07/05/2014,Current (non AEF) Grants to Local Authorities,Localism,WYRE BC,,,,236646493,5000249185,,Local Council Tax Support Administration Subsidy,FY6 7PU,"146,952.00",Yes
571,Communities & Local Government,DCLG,07/05/2014,Current (non AEF) Grants to Local Authorities,Localism,WYRE FOREST DISTRICT COUNCIL,,,,,5000249358,,Local Council Tax Support Administration Subsidy,DY11 7WF,"138,804.00",Yes
572,Communities & Local Government,DCLG,07/05/2014,Current (non AEF) Grants to Local Authorities,Localism,YORK CITY CNCL,,,,,5000249359,,Local Council Tax Support Administration Subsidy,YO1 0EG,"179,409.00",Yes
573,Communities & Local Government,DCLG,07/05/2014,Current Grants to Non Profit Bodies,Neighbourhoods,IMPROVEMENT & DEVELOPMENT AGENCY,Yes,Public Bodies,,236810359,2100242585,,Planning advisory service (PAS),EC1M 5LG,"999,455.43",Yes
574,Communities & Local Government,DCLG,07/05/2014,Grant in Aid to NDPBs (non budget),Finance & Corporate Services,COMMISSION LOCAL ADMINISTRATION,,,,215271508,2100242796,,DCLG and Local Gov DEL budget contri 4 CLAE 2014/5,SW1P 4QP,"799,000.00",Yes
575,Communities & Local Government,DCLG,07/05/2014,"IT - PC, Network & Hardware",Finance & Corporate Services,DCLG GOVERNMENT PROCUREMENT CARD,,,,,1000003950,ICT Hardware,Annual subscription renewal,TN37 7GA,299.00,
576,Communities & Local Government,DCLG,07/05/2014,IT - Service Contracts,Finance & Corporate Services,PROCSERVE SHARED SERVICES LTD,,Large,,739834971,5106203459,Managed / Outsourced Services,32mths subscriptions Jul 2011-Jul 2014,SW1W 9SR,"6,176.64",
577,Communities & Local Government,DCLG,07/05/2014,IT - Service Contracts,Finance & Corporate Services,VERIZON UK LTD,,Large,,346786171,5106203409,Managed / Outsourced Services,TESA dedicated hosting 2013-2014,RG2 6DA,"2,620.38",
578,Communities & Local Government,DCLG,07/05/2014,IT - Service Contracts,Finance & Corporate Services,VERIZON UK LTD,,Large,,346786171,5106203410,Managed / Outsourced Services,TESA dedicated hosting 2013-2014,RG2 6DA,"2,620.38",
579,Communities & Local Government,DCLG,07/05/2014,IT - Service Contracts,Finance & Corporate Services,VERIZON UK LTD,,Large,,346786171,5106203505,Managed / Outsourced Services,TESA dedicated hosting 2013-2014,RG2 6DA,"2,620.38",
580,Communities & Local Government,DCLG,07/05/2014,IT Maintenance,"Strategy, Communications and Private Office",BEAVER SOLUTIONS,,Small,,736168191,5106203488,ICT Services,License tech support for EH News Screens,SG12 9PZ,"1,100.00",
581,Communities & Local Government,DCLG,07/05/2014,Physical Storage,"Strategy, Communications and Private Office",WILLIAMS LEA LIMITED,,Large,,393456413,5106203521,Warehousing and Storage,Document Storage,W2 6LG,"1,014.60",
582,Communities & Local Government,DCLG,07/05/2014,Printing,"Strategy, Communications and Private Office",WILLIAMS LEA LIMITED,,Large,,393456413,5106203521,Printing Services,Our Big Gig Banners + other print,W2 6LG,"6,050.55",
583,Communities & Local Government,DCLG,07/05/2014,Professional services,Finance & Corporate Services,DAWES & FRASER CONSULTING LTD,,Small,,,5106203456,Business and Commercial Services,Contract and Technical support for IPC C,SE20 7BS,"6,619.20",
584,Communities & Local Government,DCLG,07/05/2014,Professional services,Finance & Corporate Services,DAWES & FRASER CONSULTING LTD,,Small,,,5106203456,Business and Commercial Services,Expenses,SE20 7BS,263.21,
585,Communities & Local Government,DCLG,07/05/2014,Professional services,Finance & Corporate Services,GVA GRIMLEY LTD,,Large,,210158990,5106203420,Accommodation Services,Senior Surveyor - Estates Sup - Com 125,B1 2JB,"3,825.00",
588,Communities & Local Government,DCLG,07/05/2014,Telecoms equipment (non-capitalised),Finance & Corporate Services,DAMOVO UK LTD,,Large,,221481042,5106203483,Telecoms,CCN027 Mitel Software Assurance,RH12 4QP,"48,369.60",
589,Communities & Local Government,DCLG,07/05/2014,Training,Finance & Corporate Services,CAPITA BUSINESS SERVICES LTD,,Large,,215580993,5106203478,Development and Training,Emotional Intelligence Course,DL1 9HB,250.00,
590,Communities & Local Government,DCLG,07/05/2014,Training,Finance & Corporate Services,CAPITA BUSINESS SERVICES LTD,,Large,,215580993,5106203480,Development and Training,Unconcious bias closed course,DL1 9HB,671.00,
591,Communities & Local Government,DCLG,07/05/2014,Training,Finance & Corporate Services,CAPITA BUSINESS SERVICES LTD,,Large,,215580993,5106203481,Development and Training,SCS Leadership Programe SR Associates,DL1 9HB,"1,800.00",
592,Communities & Local Government,DCLG,07/05/2014,Translations,"Strategy, Communications and Private Office",WILLIAMS LEA LIMITED,,Large,,393456413,5106203521,Interpretation and Translation,Translation services into Welsh,W2 6LG,"3,920.00",
593,Communities & Local Government,DCLG,08/05/2014,Accommodation - actuals,Finance & Corporate Services,REDFERN TRAVEL LIMITED,,Small,,213089972,2100242908,,Consolidated Monthly Travel May - Hotel,BD1 3AZ,803.75,
594,Communities & Local Government,DCLG,08/05/2014,Accommodation - actuals,Finance & Corporate Services,REDFERN TRAVEL LIMITED,,Small,,213089972,2100242908,,Consolidated Monthly Travel May - Hotel,BD1 3AZ,726.55,
595,Communities & Local Government,DCLG,08/05/2014,Accommodation - actuals,Finance & Corporate Services,REDFERN TRAVEL LIMITED,,Small,,213089972,2100242908,,Consolidated Monthly Travel May - Hotel,BD1 3AZ,444.30,
596,Communities & Local Government,DCLG,08/05/2014,Accommodation - actuals,Finance & Corporate Services,REDFERN TRAVEL LIMITED,,Small,,213089972,2100242908,,Consolidated Monthly Travel May - Hotel,BD1 3AZ,269.00,
597,Communities & Local Government,DCLG,08/05/2014,Accommodation - actuals,Localism,REDFERN TRAVEL LIMITED,,Small,,213089972,2100242908,,Consolidated Monthly Travel May - Hotel,BD1 3AZ,362.00,
598,Communities & Local Government,DCLG,08/05/2014,Accommodation - actuals,Localism,REDFERN TRAVEL LIMITED,,Small,,213089972,2100242908,,Consolidated Monthly Travel May - Hotel,BD1 3AZ,358.00,
599,Communities & Local Government,DCLG,08/05/2014,Accommodation - actuals,Localism,REDFERN TRAVEL LIMITED,,Small,,213089972,2100242908,,Consolidated Monthly Travel May - Hotel,BD1 3AZ,430.50,
600,Communities & Local Government,DCLG,08/05/2014,Accommodation - actuals,Localism,REDFERN TRAVEL LIMITED,,Small,,213089972,2100242908,,Consolidated Monthly Travel May - Hotel,BD1 3AZ,"1,195.21",
601,Communities & Local Government,DCLG,08/05/2014,Accommodation - actuals,Neighbourhoods,REDFERN TRAVEL LIMITED,,Small,,213089972,2100242908,,Consolidated Monthly Travel May - Hotel,BD1 3AZ,259.60,
602,Communities & Local Government,DCLG,08/05/2014,Accommodation - actuals,Neighbourhoods,REDFERN TRAVEL LIMITED,,Small,,213089972,2100242908,,Consolidated Monthly Travel May - Hotel,BD1 3AZ,"1,439.78",
603,Communities & Local Government,DCLG,08/05/2014,Accommodation - actuals,Neighbourhoods,REDFERN TRAVEL LIMITED,,Small,,213089972,2100242908,,Consolidated Monthly Travel May - Hotel,BD1 3AZ,300.00,
604,Communities & Local Government,DCLG,08/05/2014,Accommodation - actuals,Neighbourhoods,REDFERN TRAVEL LIMITED,,Small,,213089972,2100242908,,Consolidated Monthly Travel May - Hotel,BD1 3AZ,628.14,
605,Communities & Local Government,DCLG,08/05/2014,Accommodation - actuals,Neighbourhoods,REDFERN TRAVEL LIMITED,,Small,,213089972,2100242908,,Consolidated Monthly Travel May - Hotel,BD1 3AZ,282.00,
606,Communities & Local Government,DCLG,08/05/2014,Accommodation - actuals,Neighbourhoods,REDFERN TRAVEL LIMITED,,Small,,213089972,2100242908,,Consolidated Monthly Travel May - Hotel,BD1 3AZ,399.28,
607,Communities & Local Government,DCLG,08/05/2014,Accommodation - actuals,Troubled Families,REDFERN TRAVEL LIMITED,,Small,,213089972,2100242908,,Consolidated Monthly Travel May - Hotel,BD1 3AZ,825.30,
608,Communities & Local Government,DCLG,08/05/2014,Agency Staff,Localism,CAPITA BUSINESS SERVICES LTD,,Large,,215580993,5106203532,Contingent Labour,Consultancy advice,DL1 9HB,"4,963.10",
609,Communities & Local Government,DCLG,08/05/2014,Air Travel,Finance & Corporate Services,REDFERN TRAVEL LIMITED,,Small,,213089972,2100242908,,Consolidated Monthly Travel May - Air,BD1 3AZ,566.40,
610,Communities & Local Government,DCLG,08/05/2014,Air Travel,Localism,REDFERN TRAVEL LIMITED,,Small,,213089972,2100242908,,Consolidated Monthly Travel May - Air,BD1 3AZ,"1,379.00",
611,Communities & Local Government,DCLG,08/05/2014,Air Travel,Neighbourhoods,REDFERN TRAVEL LIMITED,,Small,,213089972,2100242908,,Consolidated Monthly Travel May - Air,BD1 3AZ,291.80,
612,Communities & Local Government,DCLG,08/05/2014,Air Travel,Neighbourhoods,REDFERN TRAVEL LIMITED,,Small,,213089972,2100242908,,Consolidated Monthly Travel May - Air,BD1 3AZ,465.19,
613,Communities & Local Government,DCLG,08/05/2014,Air Travel,Neighbourhoods,REDFERN TRAVEL LIMITED,,Small,,213089972,2100242908,,Consolidated Monthly Travel May - Air,BD1 3AZ,273.60,
614,Communities & Local Government,DCLG,08/05/2014,Air Travel,Neighbourhoods,REDFERN TRAVEL LIMITED,,Small,,213089972,2100242908,,Consolidated Monthly Travel May - Air,BD1 3AZ,555.99,
615,Communities & Local Government,DCLG,08/05/2014,Air Travel,"Strategy, Communications and Private Office",REDFERN TRAVEL LIMITED,,Small,,213089972,2100242908,,Departmental Travel,BD1 3AZ,"1,020.00",
616,Communities & Local Government,DCLG,08/05/2014,Catering,Finance & Corporate Services,INTERSERVE (FM) LTD (AUTOGRAPH),,Large,,213632537,2100242907,Catering,January Catering Charges,BS32 4NH,156.80,
617,Communities & Local Government,DCLG,08/05/2014,Catering,Finance & Corporate Services,INTERSERVE (FM) LTD (AUTOGRAPH),,Large,,213632537,2100242907,Catering,January Catering Charges,BS32 4NH,181.90,
618,Communities & Local Government,DCLG,08/05/2014,Catering,Localism,INTERSERVE (FM) LTD (AUTOGRAPH),,Large,,213632537,2100242907,Catering,January Catering Charges,BS32 4NH,44.00,
619,Communities & Local Government,DCLG,08/05/2014,Catering,Localism,INTERSERVE (FM) LTD (AUTOGRAPH),,Large,,213632537,2100242907,Catering,January Catering Charges,BS32 4NH,43.60,
620,Communities & Local Government,DCLG,08/05/2014,Catering,Localism,INTERSERVE (FM) LTD (AUTOGRAPH),,Large,,213632537,2100242907,Catering,January Catering Charges,BS32 4NH,27.50,
621,Communities & Local Government,DCLG,08/05/2014,Catering,Localism,INTERSERVE (FM) LTD (AUTOGRAPH),,Large,,213632537,2100242907,Catering,January Catering Charges,BS32 4NH,381.20,
622,Communities & Local Government,DCLG,08/05/2014,Catering,Neighbourhoods,INTERSERVE (FM) LTD (AUTOGRAPH),,Large,,213632537,2100242907,Catering,January Catering Charges,BS32 4NH,252.20,
623,Communities & Local Government,DCLG,08/05/2014,Catering,Neighbourhoods,INTERSERVE (FM) LTD (AUTOGRAPH),,Large,,213632537,2100242907,Catering,January Catering Charges,BS32 4NH,146.50,
624,Communities & Local Government,DCLG,08/05/2014,Catering,Neighbourhoods,INTERSERVE (FM) LTD (AUTOGRAPH),,Large,,213632537,2100242907,Catering,January Catering Charges,BS32 4NH,143.70,
627,Communities & Local Government,DCLG,08/05/2014,IT - Service Contracts,Localism,VERIZON UK LTD,,Large,,346786171,5106203545,Managed / Outsourced Services,Fire dedicated hosting 2013-2014,RG2 6DA,"6,823.34",
628,Communities & Local Government,DCLG,08/05/2014,IT - Service Contracts,Localism,VERIZON UK LTD,,Large,,346786171,5106203546,Managed / Outsourced Services,Fire dedicated hosting 2013-2014,RG2 6DA,"3,411.07",
629,Communities & Local Government,DCLG,08/05/2014,Legal Fees,Finance & Corporate Services,SIMMONS & SIMMONS,,Large,,216616279,5106203553,Legal,Legal Advice,EC2Y 9SS,900.00,
630,Communities & Local Government,DCLG,08/05/2014,Legal Fees,Finance & Corporate Services,SNR DENTON UK  LLP,,Large,,779522056,5106203450,Legal,Legal Advice,EC4M 7WS,"4,248.00",
631,Communities & Local Government,DCLG,08/05/2014,Legal Fees,Neighbourhoods,HAMMONDS,,Large,,217493472,5106203542,Legal,Legal Advice,LS3 1ES,684.60,
632,Communities & Local Government,DCLG,08/05/2014,Mobile phone costs,Finance & Corporate Services,VODAFONE UK(FSSD USE ONLY),,Large,,397467572,2100242906,Telecoms,Quarterly Consolidated Phone Costs Vodafone Apr 14,RG14 5FF,"42,799.44",
633,Communities & Local Government,DCLG,08/05/2014,Professional services,Finance & Corporate Services,GVA GRIMLEY LTD,,Large,,210158990,5106201939,Accommodation Services,SPP - Management fee of S/C - Com 116,B1 2JB,"8,400.00",
634,Communities & Local Government,DCLG,08/05/2014,Professional services,Finance & Corporate Services,GVA GRIMLEY LTD,,Large,,210158990,5106203148,Accommodation Services,Bridge Hse Com 134 Desktop Report,B1 2JB,"2,340.00",
635,Communities & Local Government,DCLG,08/05/2014,Professional services,Finance & Corporate Services,GVA GRIMLEY LTD,,Large,,210158990,5106203406,Building Management,Com 95 - Disposal & Management of FSC,B1 2JB,"3,300.00",
636,Communities & Local Government,DCLG,08/05/2014,Professional services,Finance & Corporate Services,GVA GRIMLEY LTD,,Large,,210158990,5106203407,Building Management,Com 95 - Disposal & Management of FSC,B1 2JB,"3,300.00",
637,Communities & Local Government,DCLG,08/05/2014,Professional services,Finance & Corporate Services,GVA GRIMLEY LTD,,Large,,210158990,5106203408,Building Management,Com 95 - Disposal & Management of FSC,B1 2JB,"3,300.00",
638,Communities & Local Government,DCLG,08/05/2014,Professional services,Finance & Corporate Services,GVA GRIMLEY LTD,,Large,,210158990,5106203449,Accommodation Services,Senior Surveyor Estate Support - Com 132,B1 2JB,"6,885.00",
639,Communities & Local Government,DCLG,08/05/2014,"Rail, Underground and Eurostar",Finance & Corporate Services,REDFERN TRAVEL LIMITED,,Small,,213089972,2100242908,,Consolidated Monthly Travel May - Rail,BD1 3AZ,641.57,
640,Communities & Local Government,DCLG,08/05/2014,"Rail, Underground and Eurostar",Finance & Corporate Services,REDFERN TRAVEL LIMITED,,Small,,213089972,2100242908,,Consolidated Monthly Travel May - Rail,BD1 3AZ,"3,024.81",
641,Communities & Local Government,DCLG,08/05/2014,"Rail, Underground and Eurostar",Finance & Corporate Services,REDFERN TRAVEL LIMITED,,Small,,213089972,2100242908,,Consolidated Monthly Travel May - Rail,BD1 3AZ,267.34,
642,Communities & Local Government,DCLG,08/05/2014,"Rail, Underground and Eurostar",Finance & Corporate Services,REDFERN TRAVEL LIMITED,,Small,,213089972,2100242908,,Consolidated Monthly Travel May - Rail,BD1 3AZ,"2,078.58",
643,Communities & Local Government,DCLG,08/05/2014,"Rail, Underground and Eurostar",Finance & Corporate Services,REDFERN TRAVEL LIMITED,,Small,,213089972,2100242908,,Consolidated Monthly Travel May - Rail,BD1 3AZ,"4,238.74",
644,Communities & Local Government,DCLG,08/05/2014,"Rail, Underground and Eurostar",Finance & Corporate Services,REDFERN TRAVEL LIMITED,,Small,,213089972,2100242908,,Consolidated Monthly Travel May - Rail,BD1 3AZ,490.72,
645,Communities & Local Government,DCLG,08/05/2014,"Rail, Underground and Eurostar",Finance & Corporate Services,REDFERN TRAVEL LIMITED,,Small,,213089972,2100242908,,Consolidated Monthly Travel May - Rail,BD1 3AZ,527.11,
646,Communities & Local Government,DCLG,08/05/2014,"Rail, Underground and Eurostar",Finance & Corporate Services,REDFERN TRAVEL LIMITED,,Small,,213089972,2100242908,,Consolidated Monthly Travel May - Rail,BD1 3AZ,368.35,
647,Communities & Local Government,DCLG,08/05/2014,"Rail, Underground and Eurostar",Finance & Corporate Services,REDFERN TRAVEL LIMITED,,Small,,213089972,2100242908,,Consolidated Monthly Travel May - Rail,BD1 3AZ,771.67,
648,Communities & Local Government,DCLG,08/05/2014,"Rail, Underground and Eurostar",Finance & Corporate Services,REDFERN TRAVEL LIMITED,,Small,,213089972,2100242908,,Consolidated Monthly Travel May - Rail,BD1 3AZ,"1,277.18",
649,Communities & Local Government,DCLG,08/05/2014,"Rail, Underground and Eurostar",Localism,REDFERN TRAVEL LIMITED,,Small,,213089972,2100242908,,Consolidated Monthly Travel May - Rail,BD1 3AZ,343.76,
650,Communities & Local Government,DCLG,08/05/2014,"Rail, Underground and Eurostar",Localism,REDFERN TRAVEL LIMITED,,Small,,213089972,2100242908,,Consolidated Monthly Travel May - Rail,BD1 3AZ,714.81,
651,Communities & Local Government,DCLG,08/05/2014,"Rail, Underground and Eurostar",Localism,REDFERN TRAVEL LIMITED,,Small,,213089972,2100242908,,Consolidated Monthly Travel May - Rail,BD1 3AZ,851.93,
652,Communities & Local Government,DCLG,08/05/2014,"Rail, Underground and Eurostar",Localism,REDFERN TRAVEL LIMITED,,Small,,213089972,2100242908,,Consolidated Monthly Travel May - Rail,BD1 3AZ,775.43,
653,Communities & Local Government,DCLG,08/05/2014,"Rail, Underground and Eurostar",Localism,REDFERN TRAVEL LIMITED,,Small,,213089972,2100242908,,Consolidated Monthly Travel May - Rail,BD1 3AZ,"1,941.92",
654,Communities & Local Government,DCLG,08/05/2014,"Rail, Underground and Eurostar",Localism,REDFERN TRAVEL LIMITED,,Small,,213089972,2100242908,,Consolidated Monthly Travel May - Rail,BD1 3AZ,564.73,
655,Communities & Local Government,DCLG,08/05/2014,"Rail, Underground and Eurostar",Localism,REDFERN TRAVEL LIMITED,,Small,,213089972,2100242908,,Consolidated Monthly Travel May - Rail,BD1 3AZ,"2,879.45",
656,Communities & Local Government,DCLG,08/05/2014,"Rail, Underground and Eurostar",Localism,REDFERN TRAVEL LIMITED,,Small,,213089972,2100242908,,Consolidated Monthly Travel May - Rail,BD1 3AZ,320.68,
657,Communities & Local Government,DCLG,08/05/2014,"Rail, Underground and Eurostar",Localism,REDFERN TRAVEL LIMITED,,Small,,213089972,2100242908,,Consolidated Monthly Travel May - Rail,BD1 3AZ,977.25,
658,Communities & Local Government,DCLG,08/05/2014,"Rail, Underground and Eurostar",Localism,REDFERN TRAVEL LIMITED,,Small,,213089972,2100242908,,Consolidated Monthly Travel May - Rail,BD1 3AZ,"1,700.95",
659,Communities & Local Government,DCLG,08/05/2014,"Rail, Underground and Eurostar",Localism,REDFERN TRAVEL LIMITED,,Small,,213089972,2100242908,,Consolidated Monthly Travel May - Rail,BD1 3AZ,"1,718.86",
660,Communities & Local Government,DCLG,08/05/2014,"Rail, Underground and Eurostar",Localism,REDFERN TRAVEL LIMITED,,Small,,213089972,2100242908,,Consolidated Monthly Travel May - Rail,BD1 3AZ,"1,656.33",
661,Communities & Local Government,DCLG,08/05/2014,"Rail, Underground and Eurostar",Localism,REDFERN TRAVEL LIMITED,,Small,,213089972,2100242908,,Consolidated Monthly Travel May - Rail,BD1 3AZ,547.65,
662,Communities & Local Government,DCLG,08/05/2014,"Rail, Underground and Eurostar",Localism,REDFERN TRAVEL LIMITED,,Small,,213089972,2100242908,,Consolidated Monthly Travel May - Rail,BD1 3AZ,824.62,
663,Communities & Local Government,DCLG,08/05/2014,"Rail, Underground and Eurostar",Localism,REDFERN TRAVEL LIMITED,,Small,,213089972,2100242908,,Consolidated Monthly Travel May - Rail,BD1 3AZ,843.82,
664,Communities & Local Government,DCLG,08/05/2014,"Rail, Underground and Eurostar",Localism,REDFERN TRAVEL LIMITED,,Small,,213089972,2100242908,,Consolidated Monthly Travel May - Rail,BD1 3AZ,469.77,
665,Communities & Local Government,DCLG,08/05/2014,"Rail, Underground and Eurostar",Localism,REDFERN TRAVEL LIMITED,,Small,,213089972,2100242908,,Consolidated Monthly Travel May - Rail,BD1 3AZ,"1,239.84",
666,Communities & Local Government,DCLG,08/05/2014,"Rail, Underground and Eurostar",Localism,REDFERN TRAVEL LIMITED,,Small,,213089972,2100242908,,Consolidated Monthly Travel May - Rail,BD1 3AZ,"4,517.09",
667,Communities & Local Government,DCLG,08/05/2014,"Rail, Underground and Eurostar",Neighbourhoods,REDFERN TRAVEL LIMITED,,Small,,213089972,2100242908,,Consolidated Monthly Travel May - Rail,BD1 3AZ,412.15,
668,Communities & Local Government,DCLG,08/05/2014,"Rail, Underground and Eurostar",Neighbourhoods,REDFERN TRAVEL LIMITED,,Small,,213089972,2100242908,,Consolidated Monthly Travel May - Rail,BD1 3AZ,442.95,
669,Communities & Local Government,DCLG,08/05/2014,"Rail, Underground and Eurostar",Neighbourhoods,REDFERN TRAVEL LIMITED,,Small,,213089972,2100242908,,Consolidated Monthly Travel May - Rail,BD1 3AZ,293.26,
670,Communities & Local Government,DCLG,08/05/2014,"Rail, Underground and Eurostar",Neighbourhoods,REDFERN TRAVEL LIMITED,,Small,,213089972,2100242908,,Consolidated Monthly Travel May - Rail,BD1 3AZ,"1,115.03",
671,Communities & Local Government,DCLG,08/05/2014,"Rail, Underground and Eurostar",Neighbourhoods,REDFERN TRAVEL LIMITED,,Small,,213089972,2100242908,,Consolidated Monthly Travel May - Rail,BD1 3AZ,"2,675.23",
672,Communities & Local Government,DCLG,08/05/2014,"Rail, Underground and Eurostar",Neighbourhoods,REDFERN TRAVEL LIMITED,,Small,,213089972,2100242908,,Consolidated Monthly Travel May - Rail,BD1 3AZ,"4,236.60",
673,Communities & Local Government,DCLG,08/05/2014,"Rail, Underground and Eurostar",Neighbourhoods,REDFERN TRAVEL LIMITED,,Small,,213089972,2100242908,,Consolidated Monthly Travel May - Rail,BD1 3AZ,"2,833.28",
674,Communities & Local Government,DCLG,08/05/2014,"Rail, Underground and Eurostar",Neighbourhoods,REDFERN TRAVEL LIMITED,,Small,,213089972,2100242908,,Consolidated Monthly Travel May - Rail,BD1 3AZ,"3,683.70",
675,Communities & Local Government,DCLG,08/05/2014,"Rail, Underground and Eurostar",Neighbourhoods,REDFERN TRAVEL LIMITED,,Small,,213089972,2100242908,,Consolidated Monthly Travel May - Rail,BD1 3AZ,"2,253.04",
676,Communities & Local Government,DCLG,08/05/2014,"Rail, Underground and Eurostar",Neighbourhoods,REDFERN TRAVEL LIMITED,,Small,,213089972,2100242908,,Consolidated Monthly Travel May - Rail,BD1 3AZ,747.57,
677,Communities & Local Government,DCLG,08/05/2014,"Rail, Underground and Eurostar",Neighbourhoods,REDFERN TRAVEL LIMITED,,Small,,213089972,2100242908,,Consolidated Monthly Travel May - Rail,BD1 3AZ,493.17,
678,Communities & Local Government,DCLG,08/05/2014,"Rail, Underground and Eurostar",Neighbourhoods,REDFERN TRAVEL LIMITED,,Small,,213089972,2100242908,,Consolidated Monthly Travel May - Rail,BD1 3AZ,613.09,
679,Communities & Local Government,DCLG,08/05/2014,"Rail, Underground and Eurostar",Neighbourhoods,REDFERN TRAVEL LIMITED,,Small,,213089972,2100242908,,Consolidated Monthly Travel May - Rail,BD1 3AZ,"1,684.53",
680,Communities & Local Government,DCLG,08/05/2014,"Rail, Underground and Eurostar",Neighbourhoods,REDFERN TRAVEL LIMITED,,Small,,213089972,2100242908,,Consolidated Monthly Travel May - Rail,BD1 3AZ,"1,361.38",
681,Communities & Local Government,DCLG,08/05/2014,"Rail, Underground and Eurostar",Neighbourhoods,REDFERN TRAVEL LIMITED,,Small,,213089972,2100242908,,Consolidated Monthly Travel May - Rail,BD1 3AZ,"1,435.30",
682,Communities & Local Government,DCLG,08/05/2014,"Rail, Underground and Eurostar",Neighbourhoods,REDFERN TRAVEL LIMITED,,Small,,213089972,2100242908,,Consolidated Monthly Travel May - Rail,BD1 3AZ,"2,747.79",
683,Communities & Local Government,DCLG,08/05/2014,"Rail, Underground and Eurostar",Neighbourhoods,REDFERN TRAVEL LIMITED,,Small,,213089972,2100242908,,Consolidated Monthly Travel May - Rail,BD1 3AZ,"2,222.18",
684,Communities & Local Government,DCLG,08/05/2014,"Rail, Underground and Eurostar",Neighbourhoods,REDFERN TRAVEL LIMITED,,Small,,213089972,2100242908,,Consolidated Monthly Travel May - Rail,BD1 3AZ,361.59,
685,Communities & Local Government,DCLG,08/05/2014,"Rail, Underground and Eurostar",Neighbourhoods,REDFERN TRAVEL LIMITED,,Small,,213089972,2100242908,,Consolidated Monthly Travel May - Rail,BD1 3AZ,"2,046.12",
686,Communities & Local Government,DCLG,08/05/2014,"Rail, Underground and Eurostar",Neighbourhoods,REDFERN TRAVEL LIMITED,,Small,,213089972,2100242908,,Consolidated Monthly Travel May - Rail,BD1 3AZ,311.70,
687,Communities & Local Government,DCLG,08/05/2014,"Rail, Underground and Eurostar",Neighbourhoods,REDFERN TRAVEL LIMITED,,Small,,213089972,2100242908,,Consolidated Monthly Travel May - Rail,BD1 3AZ,448.45,
688,Communities & Local Government,DCLG,08/05/2014,"Rail, Underground and Eurostar",Neighbourhoods,REDFERN TRAVEL LIMITED,,Small,,213089972,2100242908,,Consolidated Monthly Travel May - Rail,BD1 3AZ,318.15,
689,Communities & Local Government,DCLG,08/05/2014,"Rail, Underground and Eurostar",Neighbourhoods,REDFERN TRAVEL LIMITED,,Small,,213089972,2100242908,,Consolidated Monthly Travel May - Rail,BD1 3AZ,"1,468.28",
690,Communities & Local Government,DCLG,08/05/2014,"Rail, Underground and Eurostar",Neighbourhoods,REDFERN TRAVEL LIMITED,,Small,,213089972,2100242908,,Consolidated Monthly Travel May - Rail,BD1 3AZ,698.43,
691,Communities & Local Government,DCLG,08/05/2014,"Rail, Underground and Eurostar","Strategy, Communications and Private Office",REDFERN TRAVEL LIMITED,,Small,,213089972,2100242908,,Consolidated Monthly Travel May - Rail,BD1 3AZ,678.33,
692,Communities & Local Government,DCLG,08/05/2014,"Rail, Underground and Eurostar","Strategy, Communications and Private Office",REDFERN TRAVEL LIMITED,,Small,,213089972,2100242908,,Consolidated Monthly Travel May - Rail,BD1 3AZ,267.65,
693,Communities & Local Government,DCLG,08/05/2014,"Rail, Underground and Eurostar","Strategy, Communications and Private Office",REDFERN TRAVEL LIMITED,,Small,,213089972,2100242908,,Consolidated Monthly Travel May - Rail,BD1 3AZ,689.38,
694,Communities & Local Government,DCLG,08/05/2014,"Rail, Underground and Eurostar","Strategy, Communications and Private Office",REDFERN TRAVEL LIMITED,,Small,,213089972,2100242908,,Consolidated Monthly Travel May - Rail,BD1 3AZ,592.99,
695,Communities & Local Government,DCLG,08/05/2014,"Rail, Underground and Eurostar","Strategy, Communications and Private Office",REDFERN TRAVEL LIMITED,,Small,,213089972,2100242908,,Consolidated Monthly Travel May - Rail,BD1 3AZ,557.58,
696,Communities & Local Government,DCLG,08/05/2014,"Rail, Underground and Eurostar",Troubled Families,REDFERN TRAVEL LIMITED,,Small,,213089972,2100242908,,Consolidated Monthly Travel May - Rail,BD1 3AZ,"3,240.86",
697,Communities & Local Government,DCLG,08/05/2014,Research,Finance & Corporate Services,ECORYS UK LTD,,Medium,,,5106203554,Operational Services,Research - Troubled Families ,B1 2RA,"20,179.20",
698,Communities & Local Government,DCLG,08/05/2014,Research,Finance & Corporate Services,GLENIGAN,,Large,,218633327,5106203549,Operational Services,Research - Measuring the impact of planning reform,BH8 8AQ,"12,500.00",
699,Communities & Local Government,DCLG,08/05/2014,Subscriptions,Finance & Corporate Services,STONEWALL EQUALITY LIMITED,,Micro,,348061888,5106203543,Subscriptions and Admissions,Annual Subscription 2014/15,SE1 7NX,"2,100.00",
700,Communities & Local Government,DCLG,08/05/2014,Telecoms equipment (non-capitalised),Finance & Corporate Services,DAMOVO UK LTD,,Large,,221481042,5106203552,Telecoms,MPLS Circuit Charges 9 sites,RH12 4QP,"7,072.31",
701,Communities & Local Government,DCLG,08/05/2014,Telecoms equipment (non-capitalised),Finance & Corporate Services,DAMOVO UK LTD,,Large,,221481042,5106203552,Telecoms,Regional Hubs Mont5hly recurring and Lin,RH12 4QP,"10,603.56",
702,Communities & Local Government,DCLG,08/05/2014,Telecoms equipment (non-capitalised),Finance & Corporate Services,DAMOVO UK LTD,,Large,,221481042,5106203552,Telecoms,Telephone Support Services,RH12 4QP,"96,281.72",
703,Communities & Local Government,DCLG,08/05/2014,Training,Finance & Corporate Services,EML LEARNING,,Micro,,218614350,5106203536,Development and Training,GES Communicating with Ministers & Manag,LS1 9PX,700.00,
704,Communities & Local Government,DCLG,08/05/2014,Training,Finance & Corporate Services,MEDIA TRAINING LTD,,Small,,570206003,5106203482,Development and Training,Designing & Producing Infographics Works,WC1X 8QJ,"2,470.50",
705,Communities & Local Government,DCLG,08/05/2014,Training,Finance & Corporate Services,PRIVACY & DATA PROTECTION LTD,,Micro,,219697385,5106203460,Development and Training,M Cumming FOI conference 15/16 May 14,SW4 0JY,695.00,
706,Communities & Local Government,DCLG,08/05/2014,Training,Finance & Corporate Services,ROYAL STATISTICAL SOCIETY,,Small,,236770160,5106203251,Development and Training,Statistical Inference (Hypothesis and St,EC1Y 8LX,"5,000.00",
707,Communities & Local Government,DCLG,08/05/2014,Training,Finance & Corporate Services,WHITEHALL & INDUSTRY GROUP,,Small,,385853957,5106203419,Development and Training,WIG Development Seminar 2013,SW1H 9EX,450.00,
708,Communities & Local Government,DCLG,08/05/2014,Travel and Subsistence Account,"Strategy, Communications and Private Office",BRITISH EMBASSY JMO,,Large,,372241810,5106203530,Travel Management,Ministerial Visit,,353.89,
709,Communities & Local Government,DCLG,08/05/2014,Work In Progress Pre-Cert 40373 Spend,Neighbourhoods,ASTON UNIVERSITY,,Large,,,7600008456,,Revenue Grant To Be Paid,B4 7ET,"15,228.98",Yes
710,Communities & Local Government,DCLG,08/05/2014,Work In Progress Pre-Cert 40373 Spend,Neighbourhoods,ASTON UNIVERSITY,,Large,,,7600008467,,Revenue Grant Clawback Offset,B4 7ET,-447.24,Yes
711,Communities & Local Government,DCLG,08/05/2014,Work In Progress Pre-Cert 40373 Spend,Neighbourhoods,ASTON UNIVERSITY,,Large,,,7600008467,,Revenue Grant To Be Paid,B4 7ET,"53,694.11",Yes
712,Communities & Local Government,DCLG,08/05/2014,Work In Progress Pre-Cert 40373 Spend,Neighbourhoods,ASTON UNIVERSITY,,Large,,,7600008474,,Revenue Grant To Be Paid,B4 7ET,"69,620.61",Yes
713,Communities & Local Government,DCLG,08/05/2014,Work In Progress Pre-Cert 40373 Spend,Neighbourhoods,BIRMINGHAM CITY COUNCIL (NOT RATES),,Large,,,7600008461,,Revenue Grant To Be Paid,B1 1BB,"9,375.12",Yes
714,Communities & Local Government,DCLG,08/05/2014,Work In Progress Pre-Cert 40373 Spend,Neighbourhoods,BIRMINGHAM SCIENCE PARK ASTON,,Small,,,7600008465,,Revenue Grant To Be Paid,B7 4BB,"26,638.01",Yes
715,Communities & Local Government,DCLG,08/05/2014,Work In Progress Pre-Cert 40373 Spend,Neighbourhoods,BOURNVILLE COLLEGE FURTHER EDUCATIO,,Large,,,7600008476,,Revenue Grant To Be Paid,B31 2TS,"30,098.37",Yes
716,Communities & Local Government,DCLG,08/05/2014,Work In Progress Pre-Cert 40373 Spend,Neighbourhoods,COVENTRY & WARKS CO-OP DEVEL AGENCY,,Small,,,7600008469,,Revenue Grant To Be Paid,CV1 5EA,"15,420.31",Yes
717,Communities & Local Government,DCLG,08/05/2014,Work In Progress Pre-Cert 40373 Spend,Neighbourhoods,COVENTRY CITY COUNCIL,,Large,,,7600008460,,Revenue Grant To Be Paid,CV1 5RR,"61,934.67",Yes
718,Communities & Local Government,DCLG,08/05/2014,Work In Progress Pre-Cert 40373 Spend,Neighbourhoods,COVENTRY UNIVERSITY ENTERPRISES LTD,,Medium,,,7600008454,,Revenue Grant To Be Paid,CV1 2TT,"32,938.29",Yes
719,Communities & Local Government,DCLG,08/05/2014,Work In Progress Pre-Cert 40373 Spend,Neighbourhoods,COVENTRY UNIVERSITY ENTERPRISES LTD,,Medium,,,7600008462,,Revenue Grant To Be Paid,CV1 2TT,"20,142.44",Yes
720,Communities & Local Government,DCLG,08/05/2014,Work In Progress Pre-Cert 40373 Spend,Neighbourhoods,COVENTRY UNIVERSITY ENTERPRISES LTD,,Medium,,,7600008464,,Revenue Grant To Be Paid,CV1 2TT,"14,211.30",Yes
721,Communities & Local Government,DCLG,08/05/2014,Work In Progress Pre-Cert 40373 Spend,Neighbourhoods,INTERNATIONAL SYNERGIES LTD,,Small,,,7600008471,,Revenue Grant To Be Paid,B30 3ES,435.63,Yes
722,Communities & Local Government,DCLG,08/05/2014,Work In Progress Pre-Cert 40373 Spend,Neighbourhoods,SHROPSHIRE ENTERPRISE PARTNERSHIP,,Micro,,,7600008472,,Revenue Grant To Be Paid,TF1 6QJ,"9,781.21",Yes
723,Communities & Local Government,DCLG,08/05/2014,Work In Progress Pre-Cert 40373 Spend,Neighbourhoods,SHROPSHIRE ENTERPRISE PARTNERSHIP,,Micro,,,7600008473,,Revenue Grant To Be Paid,TF1 6QJ,"3,652.90",Yes
724,Communities & Local Government,DCLG,08/05/2014,Work In Progress Pre-Cert 40373 Spend,Neighbourhoods,STAFFORDSHIRE & BLACK COUNTRY BIC L,,Small,,,7600008468,,Revenue Grant To Be Paid,ST18 0AR,"25,742.46",Yes
725,Communities & Local Government,DCLG,08/05/2014,Work In Progress Pre-Cert 40373 Spend,Neighbourhoods,STOKE-ON-TRENT CITY COUNCIL,,Large,,,7600008457,,Revenue Grant Clawback Offset,ST4 1HP,-207.19,Yes
726,Communities & Local Government,DCLG,08/05/2014,Work In Progress Pre-Cert 40373 Spend,Neighbourhoods,STOKE-ON-TRENT CITY COUNCIL,,Large,,,7600008457,,Revenue Grant To Be Paid,ST4 1HP,"23,404.84",Yes
727,Communities & Local Government,DCLG,08/05/2014,Work In Progress Pre-Cert 40373 Spend,Neighbourhoods,STOKE-ON-TRENT CITY COUNCIL,,Large,,,7600008470,,Revenue Grant To Be Paid,ST4 1HP,"138,261.42",Yes
728,Communities & Local Government,DCLG,08/05/2014,Work In Progress Pre-Cert 40373 Spend,Neighbourhoods,TELFORD & WREKIN COUNCIL,,,,,7600008475,,Revenue Grant To Be Paid,TF3 4NT,"14,584.94",Yes
729,Communities & Local Government,DCLG,08/05/2014,Work In Progress Pre-Cert 40373 Spend,Neighbourhoods,UNIVERSITY OF WOLVERHAMPTON,,Large,,,7600008453,,Revenue Grant Clawback Offset,WV1 1SB,-5.66,Yes
730,Communities & Local Government,DCLG,08/05/2014,Work In Progress Pre-Cert 40373 Spend,Neighbourhoods,UNIVERSITY OF WOLVERHAMPTON,,Large,,,7600008453,,Revenue Grant To Be Paid,WV1 1SB,"60,886.79",Yes
731,Communities & Local Government,DCLG,08/05/2014,Work In Progress Pre-Cert 40373 Spend,Neighbourhoods,UNIVERSITY OF WOLVERHAMPTON,,Large,,,7600008455,,Revenue Grant To Be Paid,WV1 1SB,"88,017.99",Yes
732,Communities & Local Government,DCLG,08/05/2014,Work In Progress Pre-Cert 40373 Spend,Neighbourhoods,UNIVERSITY OF WOLVERHAMPTON,,Large,,,7600008458,,Revenue Grant To Be Paid,WV1 1SB,"47,305.37",Yes
733,Communities & Local Government,DCLG,08/05/2014,Work In Progress Pre-Cert 40373 Spend,Neighbourhoods,WASTE & RESOURCES ACTION PROG'M,,Small,,,7600008466,,Revenue Grant To Be Paid,OX16 0AH,"3,606.91",Yes
734,Communities & Local Government,DCLG,08/05/2014,Work In Progress Pre-Cert 40373 Spend,Neighbourhoods,WORCESTERSHIRE COUNTY COUNCIL,,Public Bodies,,,7600008463,,Revenue Grant To Be Paid,WR5 2NP,"4,125.65",Yes
735,Communities & Local Government,DCLG,08/05/2014,Work In Progress Pre-Cert 40467 Spend,Neighbourhoods,COVENTRY CITY COUNCIL,,Large,,,7600008460,,Capital Grant To Be Paid,CV1 5RR,"217,447.24",Yes
736,Communities & Local Government,DCLG,08/05/2014,Work In Progress Pre-Cert 40467 Spend,Neighbourhoods,WARMSDALE LTD,,,,,7600008459,,Capital Grant To Be Paid,HU14 3JP,"32,666.79",Yes
737,Communities & Local Government,DCLG,08/05/2014,Work In Progress Pre-Cert 40467 Spend,Neighbourhoods,WASTE & RESOURCES ACTION PROG'M,,Small,,,7600008466,,Capital Grant To Be Paid,OX16 0AH,"340,750.18",Yes
738,Communities & Local Government,DCLG,08/05/2014,Work In Progress Pre-Cert 40467 Spend,Neighbourhoods,WORCESTERSHIRE COUNTY COUNCIL,,Public Bodies,,,7600008463,,Capital Grant To Be Paid,WR5 2NP,"8,876.64",Yes
739,Communities & Local Government,DCLG,08/05/2014,Work In Progress Pre-Cert 40467 Spend,Neighbourhoods,WYRE BOROUGH COUNCIL,,,,,2100242976,,Demand note,FY6 7PU,"5,015.05",Yes
740,Communities & Local Government,DCLG,08/05/2014,Work In Progress Pre-Cert 40467 Spend,Neighbourhoods,WYRE BOROUGH COUNCIL,,,,,2300002128,,Demand note correction,FY6 7PU,"-5,015.05",Yes
741,Communities & Local Government,DCLG,09/05/2014,Accommodation Service Charges,Finance & Corporate Services,LAND SECURITIES PROPERTIES LTD,,Large,,211574488,2300001838,Accommodation Services,Service Charge Eland House,WC2N 5AF,"-43,851.26",
742,Communities & Local Government,DCLG,09/05/2014,Advertising,Neighbourhoods,GUARDIAN NEWS & MEDIA,,Large,,,5106203598,Advertising,Advertising for Credit Committee member,N1 9GU,600.00,
743,Communities & Local Government,DCLG,09/05/2014,Agency Staff,Finance & Corporate Services,ALLEN LANE FINANCIAL RECRUITMENT,,Medium,Yes,234388853,5106203576,Contingent Labour,Interim Accountant (Extension 01),,"3,036.86",
745,Communities & Local Government,DCLG,09/05/2014,Agency Staff,Finance & Corporate Services,CAPITA BUSINESS SERVICES LTD,,Large,,215580993,5106203567,Contingent Labour,Interim Manager (Expenses),DL1 9HB,13.44,
746,Communities & Local Government,DCLG,09/05/2014,Agency Staff,Finance & Corporate Services,CAPITA BUSINESS SERVICES LTD,,Large,,215580993,5106203567,Contingent Labour,Interim and Specialist Contractor,DL1 9HB,"3,958.92",
748,Communities & Local Government,DCLG,09/05/2014,Agency Staff,Neighbourhoods,CAPITA RESOURCING LTD,,Large,,215581006,5106203516,Contingent Labour,Expenses,SL6 1DP,121.32,
749,Communities & Local Government,DCLG,09/05/2014,Agency Staff,Neighbourhoods,CAPITA RESOURCING LTD,,Large,,215581006,5106203516,Contingent Labour,Interim Manager - Ext 01,SL6 1DP,"3,442.50",
750,Communities & Local Government,DCLG,09/05/2014,Agency Staff,Neighbourhoods,CAPITA RESOURCING LTD,,Large,,215581006,5106203593,Contingent Labour,Interim Manager (Ext 01),SL6 1DP,"1,628.16",
751,Communities & Local Government,DCLG,09/05/2014,Agency Staff,Neighbourhoods,CAPITA RESOURCING LTD,,Large,,215581006,5106203593,Contingent Labour,Interim Manager Expenses,SL6 1DP,27.00,
752,Communities & Local Government,DCLG,09/05/2014,Agency Staff,Neighbourhoods,REED EMPLOYMENT SERVICES,,Large,,292193364,5106203573,Contingent Labour,3 Month Extension,SW20 0BA,647.28,
753,Communities & Local Government,DCLG,09/05/2014,Building Renovations,Finance & Corporate Services,SKANSEN INTERIORS LIMITED,,Medium,,222973468,5106203563,Construction Service Providers,2 Rivergate - Remode/Refurb Grd Flr,EC4N 1TX,"141,479.96",
754,Communities & Local Government,DCLG,09/05/2014,Current (non AEF) Grants to Local Authorities,Neighbourhoods,BARNSLEY MBC,,Public Bodies,,211178595,2100242840,,LEP Capacity Funding,S70 9GG,"503,000.00",Yes
755,Communities & Local Government,DCLG,09/05/2014,Current (non AEF) Grants to Local Authorities,Neighbourhoods,BATH & NE SOMERSET  (USE 407552),,,,211701169,2100242839,,LEP Capacity Funding,BA1 1LY,"528,600.00",Yes
756,Communities & Local Government,DCLG,09/05/2014,Current (non AEF) Grants to Local Authorities,Neighbourhoods,BIRMINGHAM CITY COUNCIL,,Public Bodies,,228459434,2100242841,,LEP Capacity Funding,B1 1BB,"528,600.00",Yes
757,Communities & Local Government,DCLG,09/05/2014,Current (non AEF) Grants to Local Authorities,Neighbourhoods,BUCKINGHAMSHIRE CC (REVENUE),,,,,2100242842,,LEP Capacity Funding,HP20 1UD,"528,600.00",Yes
758,Communities & Local Government,DCLG,09/05/2014,Current (non AEF) Grants to Local Authorities,Neighbourhoods,CAMBRIDGESHIRE COUNTY COUNCIL,,Public Bodies,,210311121,2100242843,,LEP Capacity Funding,CB3 0AP,"528,600.00",Yes
759,Communities & Local Government,DCLG,09/05/2014,Current (non AEF) Grants to Local Authorities,Neighbourhoods,CHESHIRE EAST BOROUGH COUNCIL,,Public Bodies,,211229356,2100242844,,LEP Capacity Funding,CH1 1SE,"528,600.00",Yes
760,Communities & Local Government,DCLG,09/05/2014,Current (non AEF) Grants to Local Authorities,Neighbourhoods,CORNWALL COUNTY COUNCIL,,Public Bodies,,211334404,2100242845,,LEP Capacity Funding,TR1 3AY,"503,000.00",Yes
761,Communities & Local Government,DCLG,09/05/2014,Current (non AEF) Grants to Local Authorities,Neighbourhoods,COVENTRY CITY COUNCIL,,Large,,211313697,2100242846,,LEP Capacity Funding,CV1 5RQ,"528,600.00",Yes
762,Communities & Local Government,DCLG,09/05/2014,Current (non AEF) Grants to Local Authorities,Neighbourhoods,CUMBRIA COUNTY COUNCIL,,Public Bodies,,211316542,2100242847,,LEP Capacity Funding,CA3 8NA,"528,600.00",Yes
763,Communities & Local Government,DCLG,09/05/2014,Current (non AEF) Grants to Local Authorities,Neighbourhoods,DERBY CITY COUNCIL,,Large,,229641378,2100242848,,LEP Capacity Funding,DE1 2YL,"517,400.00",Yes
764,Communities & Local Government,DCLG,09/05/2014,Current (non AEF) Grants to Local Authorities,Neighbourhoods,DORSET COUNTY COUNCIL,,Public Bodies,,225431279,2100242849,,LEP Capacity Funding,DT1 1XJ,"503,000.00",Yes
765,Communities & Local Government,DCLG,09/05/2014,Current (non AEF) Grants to Local Authorities,Neighbourhoods,ESSEX COUNTY COUNCIL,,Public Bodies,,233572986,2100242850,,LEP Capacity Funding,CM1 1JZ,"528,900.00",Yes
766,Communities & Local Government,DCLG,09/05/2014,Current (non AEF) Grants to Local Authorities,Neighbourhoods,GLOUCESTERSHIRE COUNTY COUNCIL,,Public Bodies,,211272067,2100242851,,LEP Capacity Funding,GL2 2AX,"518,000.00",Yes
767,Communities & Local Government,DCLG,09/05/2014,Current (non AEF) Grants to Local Authorities,Neighbourhoods,GREATER LONDON AUTHORITY,,Large,,,2100242852,,LEP Capacity Funding,SE1 2AA,"528,600.00",Yes
768,Communities & Local Government,DCLG,09/05/2014,Current (non AEF) Grants to Local Authorities,Neighbourhoods,GTR MANCHESTER COMBINED AUTHORITY,,Public Bodies,,,2100242853,,LEP Capacity Funding,M60 2JR,"528,600.00",Yes
769,Communities & Local Government,DCLG,09/05/2014,Current (non AEF) Grants to Local Authorities,Neighbourhoods,HAMPSHIRE COUNTY COUNCIL,,Public Bodies,,211325832,2100242854,,LEP Capacity Funding,SO23 8UB,"528,600.00",Yes
770,Communities & Local Government,DCLG,09/05/2014,Current (non AEF) Grants to Local Authorities,Neighbourhoods,HERTFORDSHIRE CC,,Public Bodies,,227470408,2100242855,,LEP Capacity Funding,SG13 8DQ,"513,000.00",Yes
771,Communities & Local Government,DCLG,09/05/2014,Current (non AEF) Grants to Local Authorities,Neighbourhoods,KINGSTON UPON HULL CITY COUNCIL,,Large,,217553044,2100242856,,LEP Capacity Funding,HU1 2AB,"528,600.00",Yes
772,Communities & Local Government,DCLG,09/05/2014,Current (non AEF) Grants to Local Authorities,Neighbourhoods,KNOWSLEY MBC,,,,,2100242857,,LEP Capacity Funding,L32 1TX,"528,600.00",Yes
773,Communities & Local Government,DCLG,09/05/2014,Current (non AEF) Grants to Local Authorities,Neighbourhoods,LANCASHIRE COUNTY COUNCIL,,Large,,233047435,2100242858,,LEP Capacity Funding,PR1 0LD,"528,600.00",Yes
774,Communities & Local Government,DCLG,09/05/2014,Current (non AEF) Grants to Local Authorities,Neighbourhoods,LEEDS CITY COUNCIL,,Large,,211170311,2100242859,,LEP Capacity Funding,LS1 1UR,"528,600.00",Yes
775,Communities & Local Government,DCLG,09/05/2014,Current (non AEF) Grants to Local Authorities,Neighbourhoods,LEICESTER CITY COUNCIL,,Public Bodies,,228219960,2100242860,,LEP Capacity Funding,LE1 6ZG,"528,600.00",Yes
776,Communities & Local Government,DCLG,09/05/2014,Current (non AEF) Grants to Local Authorities,Neighbourhoods,LINCOLNSHIRE CC,,Public Bodies,,213279305,2100242861,,LEP Capacity Funding,LN1 1YQ,"528,600.00",Yes
777,Communities & Local Government,DCLG,09/05/2014,Current (non AEF) Grants to Local Authorities,Neighbourhoods,LUTON BOROUGH COUNCIL,,Public Bodies,,,2100242862,,LEP Capacity Funding,LU1 2RD,"528,600.00",Yes
778,Communities & Local Government,DCLG,09/05/2014,Current (non AEF) Grants to Local Authorities,Neighbourhoods,NORTH YORKSHIRE COUNTY COUNCIL,,Large,,,2100242864,,LEP Capacity Funding,DL7 8AH,"528,600.00",Yes
779,Communities & Local Government,DCLG,09/05/2014,Current (non AEF) Grants to Local Authorities,Neighbourhoods,NORTHAMPTONSHIRE CC,,Public Bodies,,385469184,2100242863,,LEP Capacity Funding,CB3 0AP,"503,000.00",Yes
780,Communities & Local Government,DCLG,09/05/2014,Current (non AEF) Grants to Local Authorities,Neighbourhoods,OXFORDSHIRE CC,,,,,2100242865,,LEP Capacity Funding,OX1 1SD,"528,600.00",Yes
781,Communities & Local Government,DCLG,09/05/2014,Current (non AEF) Grants to Local Authorities,Neighbourhoods,PORTSMOUTH CITY COUNCIL,,Public Bodies,,211183082,2100242866,,LEP Capacity Funding,PO1 2BG,"513,900.00",Yes
782,Communities & Local Government,DCLG,09/05/2014,Current (non AEF) Grants to Local Authorities,Neighbourhoods,SHROPSHIRE UNITARY COUNCIL,,,,,2100242868,,LEP Capacity Funding,SY1 9DP,"523,000.00",Yes
783,Communities & Local Government,DCLG,09/05/2014,Current (non AEF) Grants to Local Authorities,Neighbourhoods,SOMERSET COUNTY COUNCIL,,,,211229406,2100242869,,LEP Capacity Funding,TA1 9GU,"519,750.00",Yes
784,Communities & Local Government,DCLG,09/05/2014,Current (non AEF) Grants to Local Authorities,Neighbourhoods,STOCKTON ON TEES BOROUGH COUNCIL,,Large,,211574327,2100242870,,LEP Capacity Funding,TS18 1LE,"528,600.00",Yes
785,Communities & Local Government,DCLG,09/05/2014,Current (non AEF) Grants to Local Authorities,Neighbourhoods,STOKE ON TRENT CITY COUNCIL,,,,232789425,2100242871,,LEP Capacity Funding,ST4 1RF,"528,600.00",Yes
786,Communities & Local Government,DCLG,09/05/2014,Current (non AEF) Grants to Local Authorities,Neighbourhoods,SUFFOLK COUNTY COUNCIL,,Large,,236445243,2100242872,,LEP Capacity Funding,IP1 2BX,"503,000.00",Yes
787,Communities & Local Government,DCLG,09/05/2014,Current (non AEF) Grants to Local Authorities,Neighbourhoods,SUNDERLAND CITY COUNCIL,,,,215599312,2100242873,,LEP Capacity Funding,SR2 7DN,"528,600.00",Yes
788,Communities & Local Government,DCLG,09/05/2014,Current (non AEF) Grants to Local Authorities,Neighbourhoods,TAUNTON DEANE BC,,Large,,236185294,2100242747,,Large Scale Sites Programme,TA1 9GS,"200,000.00",Yes
789,Communities & Local Government,DCLG,09/05/2014,Current (non AEF) Grants to Local Authorities,Neighbourhoods,WALSALL MBC,,Public Bodies,,212313210,2100242874,,LEP Capacity Funding,WS1 1TW,"503,000.00",Yes
790,Communities & Local Government,DCLG,09/05/2014,Current (non AEF) Grants to Local Authorities,Neighbourhoods,WEST SUSSEX CC,,Public Bodies,,232198762,2100242875,,LEP Capacity Funding,DL98 1AD,"518,800.00",Yes
791,Communities & Local Government,DCLG,09/05/2014,Current (non AEF) Grants to Local Authorities,Neighbourhoods,WILTSHIRE COUNTY COUNCIL,,,,211341656,2100242876,,LEP Capacity Funding,BA14 4DS,"528,000.00",Yes
792,Communities & Local Government,DCLG,09/05/2014,Current (non AEF) Grants to Local Authorities,Neighbourhoods,WINDSOR & MAIDENHEAD,,,,227411998,2100242867,,LEP Capacity Funding,SL6 1RF,"528,600.00",Yes
793,Communities & Local Government,DCLG,09/05/2014,Current (non AEF) Grants to Local Authorities,Neighbourhoods,WORCESTERSHIRE COUNTY COUNCIL,,Public Bodies,,230359643,2100242877,,LEP Capacity Funding,WR5 2NP,"528,600.00",Yes
794,Communities & Local Government,DCLG,09/05/2014,Electricity,Finance & Corporate Services,EDF ENERGY 1 LIMITED,,Large,,230840469,5106203579,Energy,SW Taunton Electricity 2013-14,PL3 5XQ,"2,584.80",
795,Communities & Local Government,DCLG,09/05/2014,Electricity,Finance & Corporate Services,EDF ENERGY 1 LIMITED,,Large,,230840469,5106203581,Energy,EoE Waterbeach Electricity 2013-14,PL3 5XQ,"2,069.81",
796,Communities & Local Government,DCLG,09/05/2014,Electricity,Finance & Corporate Services,EDF ENERGY 1 LIMITED,,Large,,230840469,5106203584,Energy,Y&H Wakefield Electricity 2014-15,PL3 5XQ,"2,598.23",
797,Communities & Local Government,DCLG,09/05/2014,Grant in Aid to NDPBs (non budget),Finance & Corporate Services,VALUATION TRIBUNAL SERVICE,,,,211218366,2100242970,,DCLG DEL - Grant in aid to VTS non dom rates,E1 1DU,"492,919.00",Yes
798,Communities & Local Government,DCLG,09/05/2014,Grant in Aid to NDPBs (non budget),Neighbourhoods,NORTHAMPTON BOROUGH COUNCIL,,Large,,232605261,2100242838,,Housing & Growth Programme,NN4 4FF,"1,000,000.00",Yes
799,Communities & Local Government,DCLG,09/05/2014,IT - Service Contracts,Finance & Corporate Services,FUJITSU SERVICES LTD,,Large,,423375062,5106203561,Managed / Outsourced Services,M7 Main rollout complete,WA3 9BD,"278,742.69",
800,Communities & Local Government,DCLG,09/05/2014,IT - Service Contracts,Finance & Corporate Services,FUJITSU SERVICES LTD,,Large,,423375062,5106203562,Managed / Outsourced Services,M9a Mobilise new email service,WA3 9BD,"93,476.80",
801,Communities & Local Government,DCLG,09/05/2014,IT - Service Contracts,Finance & Corporate Services,VERIZON UK LTD,,Large,,346786171,5106203600,Managed / Outsourced Services,Internet lease line for Interform (Data collection system),RG2 6DA,"1,241.18",
802,Communities & Local Government,DCLG,09/05/2014,Office Supplies,Neighbourhoods,BANNER BUSINESS SUPPLIES LTD,,Large,,236638362,5106203528,Office Supplies,DELWEEKLY BANNER A4 SPIRAL SIDEBOUND NOT,NR3 1PD,143.76,
803,Communities & Local Government,DCLG,09/05/2014,Office Supplies,Neighbourhoods,BANNER BUSINESS SUPPLIES LTD,,Large,,236638362,5106203528,Office Supplies,DELWEEKLY Banner Brilliant Page Marker 3,NR3 1PD,1.68,
804,Communities & Local Government,DCLG,09/05/2014,Office Supplies,Neighbourhoods,BANNER BUSINESS SUPPLIES LTD,,Large,,236638362,5106203528,Office Supplies,DELWEEKLY Banner Value A4 Copier Paper 8,NR3 1PD,587.52,
805,Communities & Local Government,DCLG,09/05/2014,Office Supplies,Neighbourhoods,BANNER BUSINESS SUPPLIES LTD,,Large,,236638362,5106203528,Office Supplies,DELWEEKLY COUNSEL NOTEBOOKS A4 96 PAGE R,NR3 1PD,47.16,
806,Communities & Local Government,DCLG,09/05/2014,Office Supplies,Neighbourhoods,BANNER BUSINESS SUPPLIES LTD,,Large,,236638362,5106203528,Office Supplies,DELWEEKLY SELF-STICK NOTES 38 X 51MM PAL,NR3 1PD,3.18,
807,Communities & Local Government,DCLG,09/05/2014,Office Supplies,Neighbourhoods,BANNER BUSINESS SUPPLIES LTD,,Large,,236638362,5106203528,Office Supplies,DELWEEKLY SELF-STICK NOTES 76 X 127MM PA,NR3 1PD,9.72,
808,Communities & Local Government,DCLG,09/05/2014,Office Supplies,Neighbourhoods,BANNER BUSINESS SUPPLIES LTD,,Large,,236638362,5106203528,Office Supplies,DELWEEKLY SELF-STICK NOTES 76 X 76MM PAL,NR3 1PD,6.30,
809,Communities & Local Government,DCLG,09/05/2014,Online Database Information Retrieval,Finance & Corporate Services,HEMMING GROUP LTD,,Medium,,210907168,5106203570,ICT Services,Municipal Year Book online 2014-15,SW1V 2SS,"2,102.40",
810,Communities & Local Government,DCLG,09/05/2014,Professional services,Finance & Corporate Services,MILESTONE CATERING DESIGN LTD,,,,,5106203597,Construction Service Providers,Rivergate House Coffee Bar,C10 1JZ,"12,337.20",
811,Communities & Local Government,DCLG,09/05/2014,Professional services,Localism,VALUATION OFFICE AGENCY,,Public Bodies,,215253886,2100242913,Environmental Services,Payment for May 2014 work on NNDR and Ctax,W1B 5BU,"12,083,333.00",
812,Communities & Local Government,DCLG,09/05/2014,Removals and Porterage,Finance & Corporate Services,HM REVENUE & CUSTOMS,,Public Bodies,,365117972,5106203590,Transport,Lysnoweth Works Prior to Occupation,BN12 4XH,"2,172.56",
813,Communities & Local Government,DCLG,09/05/2014,Research,Neighbourhoods,EKOS CONSULTING (UK) LTD,,Small,,424086440,5106203513,Operational Services,Supporting People - Final Evaluation Report,G2 3EW,"19,077.36",
814,Communities & Local Government,DCLG,09/05/2014,Steady State Service Provision,Localism,MOTT MACDONALD LTD,,Large,,225250398,5106203587,Business Process Outsourcing Services,Core Service Period 1 (Jun 13-May 15),BN1 4FY,"55,872.92",
815,Communities & Local Government,DCLG,09/05/2014,Telecoms equipment (non-capitalised),Localism,B T PAYMENT SERVICES LTD,,Large,,219226417,5106203604,Telecoms,SDSL Lines (EH),DH98 1BT,"3,575.40",
816,Communities & Local Government,DCLG,09/05/2014,Training,Finance & Corporate Services,CAPITA BUSINESS SERVICES LTD,,Large,,215580993,5106203601,Development and Training,Fast Stream: Managing Staff and Performa,DL1 9HB,281.00,
817,Communities & Local Government,DCLG,09/05/2014,Training,Finance & Corporate Services,CAPITA BUSINESS SERVICES LTD,,Large,,215580993,5106203602,Development and Training,Departmental Coaching Event,DL1 9HB,"4,625.60",
818,Communities & Local Government,DCLG,09/05/2014,Training,Finance & Corporate Services,CAPITA BUSINESS SERVICES LTD,,Large,,215580993,5106203603,Development and Training,Managing Successful Programmes (F&P),DL1 9HB,708.00,
819,Communities & Local Government,DCLG,09/05/2014,Training,Finance & Corporate Services,KAPLAN FINANCIAL LTD,,Large,,215590387,5106203599,Development and Training,CIMA F2 RS,SE1 1HR,962.50,
820,Communities & Local Government,DCLG,09/05/2014,Work In Progress Pre-Cert 40373 Spend,Neighbourhoods,BARNSLEY METROPOLITAN BC,,Public Bodies,,,7600008494,,Revenue Grant To Be Paid,S70 9OO,"81,854.44",Yes
821,Communities & Local Government,DCLG,09/05/2014,Work In Progress Pre-Cert 40373 Spend,Neighbourhoods,BIORENEWABLES DEVELOPMENT CENTRE LT,,,,,7600008497,,Revenue Grant To Be Paid,YO10 5NY,"220,858.16",Yes
822,Communities & Local Government,DCLG,09/05/2014,Work In Progress Pre-Cert 40373 Spend,Neighbourhoods,CENTRE FOR PROCESS INNOVATION,,,,,7600008477,,Revenue Grant Clawback Offset,TS10 4RF,"-20,523.19",Yes
823,Communities & Local Government,DCLG,09/05/2014,Work In Progress Pre-Cert 40373 Spend,Neighbourhoods,CENTRE FOR PROCESS INNOVATION,,,,,7600008477,,Revenue Grant To Be Paid,TS10 4RF,"38,954.62",Yes
824,Communities & Local Government,DCLG,09/05/2014,Work In Progress Pre-Cert 40373 Spend,Neighbourhoods,DONCASTER METROPOLITAN BC,,,,,7600008480,,Revenue Grant To Be Paid,DN1 1DE,"71,183.80",Yes
825,Communities & Local Government,DCLG,09/05/2014,Work In Progress Pre-Cert 40373 Spend,Neighbourhoods,DONCASTER METROPOLITAN BC,,,,,7600008481,,Revenue Grant To Be Paid,DN1 1DE,"62,998.15",Yes
826,Communities & Local Government,DCLG,09/05/2014,Work In Progress Pre-Cert 40373 Spend,Neighbourhoods,DONCASTER METROPOLITAN BC,,,,,7600008482,,Revenue Grant To Be Paid,DN1 1DE,"55,325.49",Yes
827,Communities & Local Government,DCLG,09/05/2014,Work In Progress Pre-Cert 40373 Spend,Neighbourhoods,E FACTOR ENTERPRISE (NEL) LTD,,Small,,,7600008496,,Revenue Grant To Be Paid,DN34 5BQ,"124,994.21",Yes
828,Communities & Local Government,DCLG,09/05/2014,Work In Progress Pre-Cert 40373 Spend,Neighbourhoods,E FACTOR ENTERPRISE (NEL) LTD,,Small,,,7600008498,,Revenue Grant To Be Paid,DN34 5BQ,"39,854.62",Yes
829,Communities & Local Government,DCLG,09/05/2014,Work In Progress Pre-Cert 40373 Spend,Neighbourhoods,EXPERIENCE NOTTINGHAMSHIRE LTD,,Small,,,7600008499,,Revenue Grant To Be Paid,NG1 1JU,"63,399.03",Yes
830,Communities & Local Government,DCLG,09/05/2014,Work In Progress Pre-Cert 40373 Spend,Neighbourhoods,INSTITUTE FOR SUSTAINABILITY,,Small,,,2300002107,,Recovery of irregular payment,N1 6AH,"-3,396.50",Yes
831,Communities & Local Government,DCLG,09/05/2014,Work In Progress Pre-Cert 40373 Spend,Neighbourhoods,INSTITUTE FOR SUSTAINABILITY,,Small,,,2300002136,,Recovery of irregular payment,N1 6AH,-624.07,Yes
832,Communities & Local Government,DCLG,09/05/2014,Work In Progress Pre-Cert 40373 Spend,Neighbourhoods,LEEDS CITY COLLEGE,,,,,7600008486,,Revenue Grant To Be Paid,LS3 1AA,"13,300.45",Yes
833,Communities & Local Government,DCLG,09/05/2014,Work In Progress Pre-Cert 40373 Spend,Neighbourhoods,LEEDS CITY COLLEGE,,,,,7600008487,,Revenue Grant To Be Paid,LS3 1AA,"5,511.31",Yes
834,Communities & Local Government,DCLG,09/05/2014,Work In Progress Pre-Cert 40373 Spend,Neighbourhoods,MEDIAWORKS TRUST,,Small,,,7600008495,,Revenue Grant To Be Paid,DE22 3RG,"2,520.28",Yes
835,Communities & Local Government,DCLG,09/05/2014,Work In Progress Pre-Cert 40373 Spend,Neighbourhoods,NGAGE SOLUTIONS LTD,,Medium,,,7600008485,,Revenue Grant To Be Paid,HP14 4BF,"16,459.49",Yes
836,Communities & Local Government,DCLG,09/05/2014,Work In Progress Pre-Cert 40373 Spend,Neighbourhoods,NGAGE SOLUTIONS LTD,,Medium,,,7600008489,,Revenue Grant To Be Paid,HP14 4BF,"3,464.79",Yes
837,Communities & Local Government,DCLG,09/05/2014,Work In Progress Pre-Cert 40373 Spend,Neighbourhoods,NGAGE SOLUTIONS LTD,,Medium,,,7600008490,,Revenue Grant To Be Paid,HP14 4BF,"2,498.84",Yes
838,Communities & Local Government,DCLG,09/05/2014,Work In Progress Pre-Cert 40373 Spend,Neighbourhoods,NGAGE SOLUTIONS LTD,,Medium,,,7600008491,,Revenue Grant To Be Paid,HP14 4BF,"3,636.92",Yes
839,Communities & Local Government,DCLG,09/05/2014,Work In Progress Pre-Cert 40373 Spend,Neighbourhoods,RTC NORTH LTD,,,,,7600008500,,Revenue Grant To Be Paid,SR5 3HD,"48,736.03",Yes
840,Communities & Local Government,DCLG,09/05/2014,Work In Progress Pre-Cert 40373 Spend,Neighbourhoods,SES,,,,,7600008503,,Revenue Grant To Be Paid,SR1 8EL,"10,902.50",Yes
841,Communities & Local Government,DCLG,09/05/2014,Work In Progress Pre-Cert 40373 Spend,Neighbourhoods,SHEFFIELD HALLAM UNIVERSITY,,,,,7600008478,,Revenue Grant To Be Paid,S1 1WB,"4,124.78",Yes
842,Communities & Local Government,DCLG,09/05/2014,Work In Progress Pre-Cert 40373 Spend,Neighbourhoods,SHEFFIELD HALLAM UNIVERSITY,,,,,7600008479,,Revenue Grant Clawback Offset,S1 1WB,"-2,549.98",Yes
843,Communities & Local Government,DCLG,09/05/2014,Work In Progress Pre-Cert 40373 Spend,Neighbourhoods,SHEFFIELD HALLAM UNIVERSITY,,,,,7600008479,,Revenue Grant To Be Paid,S1 1WB,"10,330.12",Yes
844,Communities & Local Government,DCLG,09/05/2014,Work In Progress Pre-Cert 40373 Spend,Neighbourhoods,STH EAST CENTRE FOR BUILT ENVIRON,,Micro,,,7600008501,,Revenue Grant To Be Paid,RG2 6GP,"34,328.61",Yes
845,Communities & Local Government,DCLG,09/05/2014,Work In Progress Pre-Cert 40373 Spend,Neighbourhoods,UNIVERSITY OF SHEFFIELD,,,,,7600008483,,Revenue Grant Clawback Offset,S60 5TZ,-687.33,Yes
846,Communities & Local Government,DCLG,09/05/2014,Work In Progress Pre-Cert 40373 Spend,Neighbourhoods,UNIVERSITY OF SHEFFIELD,,,,,7600008483,,Revenue Grant To Be Paid,S60 5TZ,"46,125.93",Yes
847,Communities & Local Government,DCLG,09/05/2014,Work In Progress Pre-Cert 40373 Spend,Neighbourhoods,UNIVERSITY OF SHEFFIELD,,,,,7600008484,,Revenue Grant Clawback Offset,S60 5TZ,-458.22,Yes
848,Communities & Local Government,DCLG,09/05/2014,Work In Progress Pre-Cert 40373 Spend,Neighbourhoods,UNIVERSITY OF SHEFFIELD,,,,,7600008484,,Revenue Grant To Be Paid,S60 5TZ,"30,759.83",Yes
849,Communities & Local Government,DCLG,09/05/2014,Work In Progress Pre-Cert 40373 Spend,Neighbourhoods,WAKEFIELD COUNCIL,,Large,,,7600008488,,Revenue Grant To Be Paid,WF1 2EB,"28,042.58",Yes
850,Communities & Local Government,DCLG,09/05/2014,Work In Progress Pre-Cert 40373 Spend,Neighbourhoods,WILTSHIRE COLLEGE,,Large,,,7600008493,,Revenue Grant To Be Paid,BA14 0ES,"30,911.67",Yes
851,Communities & Local Government,DCLG,09/05/2014,Work In Progress Pre-Cert 40467 Spend,Neighbourhoods,SECOND AVENUE RESOURCE CENTRE LTD,,Small,,,7600008502,,Capital Grant To Be Paid,DN33 1NU,"196,438.23",Yes
852,Communities & Local Government,DCLG,09/05/2014,Work In Progress Pre-Cert 40467 Spend,Neighbourhoods,STH EAST CENTRE FOR BUILT ENVIRON,,Micro,,,7600008501,,Capital Grant To Be Paid,RG2 6GP,27.08,Yes
853,Communities & Local Government,DCLG,09/05/2014,Work In Progress Pre-Cert 40467 Spend,Neighbourhoods,UNIVERSITY OF SHEFFIELD,,,,,7600008483,,Capital Grant To Be Paid,S60 5TZ,"41,730.23",Yes
854,Communities & Local Government,DCLG,09/05/2014,Work In Progress Pre-Cert 40467 Spend,Neighbourhoods,WARMSDALE LTD,,,,,7600008492,,Capital Grant To Be Paid,HU14 3JP,"102,586.12",Yes
855,Communities & Local Government,DCLG,12/05/2014,Advertising,"Strategy, Communications and Private Office",HOOTSUITE MEDIA INC,,Large,,,5106203676,Advertising,Social Media Monitoring Tool,V5T 1R6,"-23,040.00",
856,Communities & Local Government,DCLG,12/05/2014,Advertising,"Strategy, Communications and Private Office",HOOTSUITE MEDIA INC,,Large,,,5106203677,Advertising,Social Media Monitoring Tool 14/15,V5T 1R6,"19,200.00",
857,Communities & Local Government,DCLG,12/05/2014,Agency Staff,Finance & Corporate Services,CAPITA BUSINESS SERVICES LTD,,Large,,215580993,5106203623,Contingent Labour,Interim and Specialist Contractor,DL1 9HB,"3,002.64",
858,Communities & Local Government,DCLG,12/05/2014,Agency Staff,Finance & Corporate Services,CAPITA BUSINESS SERVICES LTD,,Large,,215580993,5106203632,Contingent Labour,Interim and Specialist Contractor,DL1 9HB,"6,334.27",
859,Communities & Local Government,DCLG,12/05/2014,Agency Staff,Finance & Corporate Services,CAPITA BUSINESS SERVICES LTD,,Large,,215580993,5106203635,Contingent Labour,Interim and Specialist Contractor,DL1 9HB,"2,190.78",
860,Communities & Local Government,DCLG,12/05/2014,Agency Staff,Finance & Corporate Services,SQUARE ONE RESOURCES LTD,,Medium,,491410288,5106203605,Contingent Labour,SAP Support until closedown,EC2A 2AD,"2,858.82",
861,Communities & Local Government,DCLG,12/05/2014,Agency Staff,Finance & Corporate Services,CAPITA BUSINESS SERVICES LTD,,Large,,215580993,5106203624,Contingent Labour,Interim and Specialist Contractor,DL1 9HB,"3,075.12",
862,Communities & Local Government,DCLG,12/05/2014,Agency Staff,Neighbourhoods,CAPITA BUSINESS SERVICES LTD,,Large,,215580993,5106203622,Contingent Labour,Interim and Specialist Contractor,DL1 9HB,"1,963.44",
863,Communities & Local Government,DCLG,12/05/2014,Agency Staff,Neighbourhoods,CAPITA BUSINESS SERVICES LTD,,Large,,215580993,5106203625,Contingent Labour,Interim and Specialist Contractor,DL1 9HB,"3,327.42",
864,Communities & Local Government,DCLG,12/05/2014,Agency Staff,Neighbourhoods,CAPITA BUSINESS SERVICES LTD,,Large,,215580993,5106203629,Contingent Labour,Interim Manager (Expenses),DL1 9HB,54.36,
865,Communities & Local Government,DCLG,12/05/2014,Agency Staff,Neighbourhoods,CAPITA BUSINESS SERVICES LTD,,Large,,215580993,5106203629,Contingent Labour,Interim and Specialist Contractor,DL1 9HB,"1,898.52",
866,Communities & Local Government,DCLG,12/05/2014,Agency Staff,Neighbourhoods,CAPITA BUSINESS SERVICES LTD,,Large,,215580993,5106203630,Contingent Labour,Interim and Specialist Contractor,DL1 9HB,"1,833.60",
867,Communities & Local Government,DCLG,12/05/2014,Agency Staff,Neighbourhoods,CAPITA BUSINESS SERVICES LTD,,Large,,215580993,5106203631,Contingent Labour,Interim Manager,DL1 9HB,"1,217.05",
868,Communities & Local Government,DCLG,12/05/2014,Agency Staff,Neighbourhoods,CAPITA BUSINESS SERVICES LTD,,Large,,215580993,5106203634,Contingent Labour,Interim and Specialist Contractor,DL1 9HB,"1,570.75",
869,Communities & Local Government,DCLG,12/05/2014,Agency Staff,Neighbourhoods,CAPITA RESOURCING LTD,,Large,,215581006,5106203645,Contingent Labour,Interim Manager - Added Days,SL6 1DP,"1,900.75",
870,Communities & Local Government,DCLG,12/05/2014,Agency Staff,Neighbourhoods,REED SPECIALIST RECRUITMENT LTD,,Large,,288656960,5106203607,Contingent Labour,Planning casework AWR Extension1 Month,NN1 1UE,708.91,
871,Communities & Local Government,DCLG,12/05/2014,Current Grants to Non Profit Bodies,Localism,BLACK TRAINING & ENTERPRISE GROUP,Yes,Small,,237255174,2100242969,,Black Training and Enterprise Group-Opening Doors,N1 9LH,"50,833.33",Yes
872,Communities & Local Government,DCLG,12/05/2014,IT Maintenance,Finance & Corporate Services,VOCA LINK,,Large,,217397207,5106203616,ICT Services,20% BACS sort code ISCD for SAP,WD3 1FX,420.00,
873,Communities & Local Government,DCLG,12/05/2014,Online Database Information Retrieval,Finance & Corporate Services,PRIVACY & DATA PROTECTION LTD,,Micro,,219697385,5106203618,ICT Services,PDP and FOI Journals 2014-15,SW4 0JY,"1,377.00",
874,Communities & Local Government,DCLG,12/05/2014,Professional services,Finance & Corporate Services,GVA GRIMLEY LTD,,Large,,210158990,5106203556,Building Management,Com 95 - Disposal & Management of FSC,B1 2JB,"3,120.00",
875,Communities & Local Government,DCLG,12/05/2014,Professional services,Finance & Corporate Services,GVA GRIMLEY LTD,,Large,,210158990,5106203557,Building Management,Com 95 - Disposal & Management of FSC,B1 2JB,"3,300.00",
876,Communities & Local Government,DCLG,12/05/2014,Research,Neighbourhoods,CEL GROUP,,Medium,,394794614,5106203638,Business Process Outsourcing Services,Housing Care & Support Foundation Cont: Ext to 30/9/14,WA2 0YL,"48,829.33",
877,Communities & Local Government,DCLG,12/05/2014,Steady State Service Provision,Finance & Corporate Services,ALLPAY LIMITED,,Medium,,738359918,5106203614,Business Process Outsourcing Services,DC/DC Transaction Charges,HR1 3SE,515.80,
878,Communities & Local Government,DCLG,12/05/2014,Steady State Service Provision,Finance & Corporate Services,ALLPAY LIMITED,,Medium,,738359918,5106203614,Business Process Outsourcing Services,Monthly Management Fee Payments,HR1 3SE,500.00,
879,Communities & Local Government,DCLG,12/05/2014,Training,Finance & Corporate Services,EURO ACADAMY TAXES ECONOMICS & LAW,,Small,,331464701,5106203626,Development and Training,Using Financial Instruments in the Curre,10117,"3,182.49",
880,Communities & Local Government,DCLG,12/05/2014,Work In Progress Pre-Cert 40373 Spend,Neighbourhoods,ALT VALLEY COMMUNITY TRUST,,,,,7600008526,,Revenue Grant To Be Paid,L11 0BS,"178,059.35",Yes
881,Communities & Local Government,DCLG,12/05/2014,Work In Progress Pre-Cert 40373 Spend,Neighbourhoods,APEX LEICESTER PROJECT LTD,,Small,,,7600008515,,Revenue Grant To Be Paid,LE1 1FB,"6,348.63",Yes
882,Communities & Local Government,DCLG,12/05/2014,Work In Progress Pre-Cert 40373 Spend,Neighbourhoods,CASE-DA,,Micro,,,7600008529,,Revenue Grant To Be Paid,LE1 7EA,"39,037.60",Yes
883,Communities & Local Government,DCLG,12/05/2014,Work In Progress Pre-Cert 40373 Spend,Neighbourhoods,CENTRAL LANCASHIRE UNIVERSITY,,,,,7600008519,,Revenue Grant To Be Paid,PR1 2HE,"62,785.56",Yes
884,Communities & Local Government,DCLG,12/05/2014,Work In Progress Pre-Cert 40373 Spend,Neighbourhoods,CENTRAL LANCASHIRE UNIVERSITY,,,,,7600008520,,Revenue Grant To Be Paid,PR1 2HE,"3,277.21",Yes
885,Communities & Local Government,DCLG,12/05/2014,Work In Progress Pre-Cert 40373 Spend,Neighbourhoods,CHESHIRE WEST & CHESTER COUNCIL,,,,,7600008521,,Revenue Grant To Be Paid,CH1 2NP,"6,190.41",Yes
886,Communities & Local Government,DCLG,12/05/2014,Work In Progress Pre-Cert 40373 Spend,Neighbourhoods,CHESTERFIELD BOROUGH COUNCIL,,Large,,,7600008523,,Revenue Grant To Be Paid,S40 1LP,"5,450.33",Yes
887,Communities & Local Government,DCLG,12/05/2014,Work In Progress Pre-Cert 40373 Spend,Neighbourhoods,CHESTERFIELD BOROUGH COUNCIL,,Large,,,7600008524,,Revenue Grant To Be Paid,S40 1LP,"4,680.07",Yes
888,Communities & Local Government,DCLG,12/05/2014,Work In Progress Pre-Cert 40373 Spend,Neighbourhoods,CHESTERFIELD BOROUGH COUNCIL,,Large,,,7600008525,,Revenue Grant To Be Paid,S40 1LP,"14,079.13",Yes
889,Communities & Local Government,DCLG,12/05/2014,Work In Progress Pre-Cert 40373 Spend,Neighbourhoods,CORNWALL COUNCIL,,,,,7600008522,,Revenue Grant To Be Paid,TR1 3AY,"5,913.16",Yes
890,Communities & Local Government,DCLG,12/05/2014,Work In Progress Pre-Cert 40373 Spend,Neighbourhoods,GWE BUSINESS WEST LTD,,,,,7600008531,,Revenue Grant Clawback Offset,BS8 3RA,-701.00,Yes
891,Communities & Local Government,DCLG,12/05/2014,Work In Progress Pre-Cert 40373 Spend,Neighbourhoods,GWE BUSINESS WEST LTD,,,,,7600008531,,Revenue Grant To Be Paid,BS8 3RA,"67,656.15",Yes
892,Communities & Local Government,DCLG,12/05/2014,Work In Progress Pre-Cert 40373 Spend,Neighbourhoods,KEY FUND INVESTMENTS LTD,,Small,,,7600008508,,Revenue Grant To Be Paid,S9 3TY,"11,627.61",Yes
893,Communities & Local Government,DCLG,12/05/2014,Work In Progress Pre-Cert 40373 Spend,Neighbourhoods,LEICESTER CITY COUNCIL,,Large,,,7600008527,,Revenue Grant To Be Paid,LE1 6ZG,"4,996.88",Yes
894,Communities & Local Government,DCLG,12/05/2014,Work In Progress Pre-Cert 40373 Spend,Neighbourhoods,LIVERPOOL JOHN MOORES UNIVERSITY,,,,,7600008517,,Revenue Grant To Be Paid,L3 2AJ,"17,397.10",Yes
895,Communities & Local Government,DCLG,12/05/2014,Work In Progress Pre-Cert 40373 Spend,Neighbourhoods,LIVERPOOL JOHN MOORES UNIVERSITY,,,,,7600008518,,Revenue Grant To Be Paid,L3 2AJ,"38,722.58",Yes
896,Communities & Local Government,DCLG,12/05/2014,Work In Progress Pre-Cert 40373 Spend,Neighbourhoods,NORTH TYNESIDE COUNCIL,,,,,7600008507,,Revenue Grant To Be Paid,NE27 0BY,"78,605.50",Yes
897,Communities & Local Government,DCLG,12/05/2014,Work In Progress Pre-Cert 40373 Spend,Neighbourhoods,SERCO REGIONAL SERVICES LTD,,,,,7600008506,,Revenue Grant To Be Paid,PL6 8LU,"44,602.28",Yes
898,Communities & Local Government,DCLG,12/05/2014,Work In Progress Pre-Cert 40373 Spend,Neighbourhoods,SHEFFIELD HALLAM UNIVERSITY,,,,,7600008513,,Revenue Grant To Be Paid,S1 1WB,"3,505.89",Yes
899,Communities & Local Government,DCLG,12/05/2014,Work In Progress Pre-Cert 40373 Spend,Neighbourhoods,SHEFFIELD HALLAM UNIVERSITY,,,,,7600008514,,Revenue Grant To Be Paid,S1 1WB,"1,117.39",Yes
900,Communities & Local Government,DCLG,12/05/2014,Work In Progress Pre-Cert 40373 Spend,Neighbourhoods,SOCIAL ENTERPRISE NORTH WEST,,,,,7600008528,,Revenue Grant To Be Paid,L2 2AH,"127,017.14",Yes
901,Communities & Local Government,DCLG,12/05/2014,Work In Progress Pre-Cert 40373 Spend,Neighbourhoods,UNIVERSITY OF BATH,,,,,7600008530,,Revenue Grant Clawback Offset,BA2 7AY,-115.76,Yes
902,Communities & Local Government,DCLG,12/05/2014,Work In Progress Pre-Cert 40373 Spend,Neighbourhoods,UNIVERSITY OF BATH,,,,,7600008530,,Revenue Grant To Be Paid,BA2 7AY,"38,372.84",Yes
903,Communities & Local Government,DCLG,12/05/2014,Work In Progress Pre-Cert 40373 Spend,Neighbourhoods,UNIVERSITY OF EXETER,,,,,7600008505,,Revenue Grant To Be Paid,EX4 4QJ,"63,505.17",Yes
904,Communities & Local Government,DCLG,12/05/2014,Work In Progress Pre-Cert 40373 Spend,Neighbourhoods,UNIVERSITY OF TEESIDE,,,,,7600008509,,Revenue Grant To Be Paid,TS1 3BA,"84,011.58",Yes
905,Communities & Local Government,DCLG,12/05/2014,Work In Progress Pre-Cert 40467 Spend,Neighbourhoods,CHESHIRE WEST & CHESTER COUNCIL,,,,,7600008521,,Capital Grant Clawback Offset,CH1 2NP,"-127,465.06",Yes
906,Communities & Local Government,DCLG,12/05/2014,Work In Progress Pre-Cert 40467 Spend,Neighbourhoods,CHESHIRE WEST & CHESTER COUNCIL,,,,,7600008521,,Capital Grant To Be Paid,CH1 2NP,"249,306.42",Yes
907,Communities & Local Government,DCLG,12/05/2014,Work In Progress Pre-Cert 40467 Spend,Neighbourhoods,CHESTERFIELD BOROUGH COUNCIL,,Large,,,7600008525,,Capital Grant Clawback Offset,S40 1LP,"-4,886.07",Yes
908,Communities & Local Government,DCLG,12/05/2014,Work In Progress Pre-Cert 40467 Spend,Neighbourhoods,CLICKETY BOOKS LIMITED,,,,,7600008510,,Capital Grant To Be Paid,TR10 9TA,"14,524.66",Yes
909,Communities & Local Government,DCLG,12/05/2014,Work In Progress Pre-Cert 40467 Spend,Neighbourhoods,CORNWALL COUNCIL,,,,,7600008522,,Capital Grant To Be Paid,TR1 3AY,397.44,Yes
910,Communities & Local Government,DCLG,12/05/2014,Work In Progress Pre-Cert 40467 Spend,Neighbourhoods,ISPACE INVESTMENTS LLP,,Micro,,,7600008512,,Capital Grant To Be Paid,YO43 4RW,"92,519.00",Yes
911,Communities & Local Government,DCLG,12/05/2014,Work In Progress Pre-Cert 40467 Spend,Neighbourhoods,KEY FUND INVESTMENTS LTD,,Small,,,7600008508,,Capital Grant To Be Paid,S9 3TY,"58,300.05",Yes
912,Communities & Local Government,DCLG,12/05/2014,Work In Progress Pre-Cert 40467 Spend,Neighbourhoods,LIVERPOOL JOHN MOORES UNIVERSITY,,,,,7600008517,,Capital Grant To Be Paid,L3 2AJ,"135,501.97",Yes
913,Communities & Local Government,DCLG,12/05/2014,Work In Progress Pre-Cert 40467 Spend,Neighbourhoods,PRACTICAL DEVELOPMENTS (STH WEST) L,,,,,7600008504,,Capital Grant To Be Paid,TR15 1SS,"17,084.84",Yes
914,Communities & Local Government,DCLG,12/05/2014,Work In Progress Pre-Cert 40467 Spend,Neighbourhoods,REDSUN DEVELOPMENTS LTD,,,,,7600008511,,Capital Grant To Be Paid,L2 7QS,"64,745.29",Yes
915,Communities & Local Government,DCLG,12/05/2014,Work In Progress Pre-Cert 40467 Spend,Neighbourhoods,SALFORD CITY COUNCIL,,,,,7600008516,,Capital Grant To Be Paid,M27 5FJ,"125,800.29",Yes
916,Communities & Local Government,DCLG,12/05/2014,Work In Progress Pre-Cert 40467 Spend,Neighbourhoods,UNIVERSITY OF EXETER,,,,,7600008505,,Capital Grant To Be Paid,EX4 4QJ,"16,934.65",Yes
917,Communities & Local Government,DCLG,13/05/2014,Agency Staff,Finance & Corporate Services,CAPITA BUSINESS SERVICES LTD,,Large,,215580993,5106203672,Contingent Labour,Interim and Specialist Contractor,DL1 9HB,-791.78,
918,Communities & Local Government,DCLG,13/05/2014,Agency Staff,Finance & Corporate Services,CAPITA BUSINESS SERVICES LTD,,Large,,215580993,5106203682,Contingent Labour,Interim Manager (Expenses),DL1 9HB,64.20,
919,Communities & Local Government,DCLG,13/05/2014,Agency Staff,Finance & Corporate Services,CAPITA BUSINESS SERVICES LTD,,Large,,215580993,5106203682,Contingent Labour,Interim and Specialist Contractor,DL1 9HB,"12,668.54",
920,Communities & Local Government,DCLG,13/05/2014,Agency Staff,Localism,CAPITA BUSINESS SERVICES LTD,,Large,,215580993,5106203669,Contingent Labour,Interim Manager,DL1 9HB,"3,504.60",
921,Communities & Local Government,DCLG,13/05/2014,Agency Staff,Neighbourhoods,FOREST HEATH DISTRICT COUNCIL,,Large,,,5106203620,Non Addressable,Secondment of Elizabeth Thomas,IP28 7EY,"2,174.98",
922,Communities & Local Government,DCLG,13/05/2014,Current (non AEF) Grants to Local Authorities,Neighbourhoods,LONDON BOROUGH OF ENFIELD,,,,227475613,2100243046,,Rent Officer Services and Pension Liability,EN1 3XE,"6,626.19",Yes
923,Communities & Local Government,DCLG,13/05/2014,Current Grants to Non Profit Bodies,Localism,CIVIC VOICE,Yes,,,,2100243047,,Green Flag Trade Mark Fees,L1 4DQ,"4,500.00",Yes
924,Communities & Local Government,DCLG,13/05/2014,Current Grants to Non Profit Bodies,Localism,HOLOCAUST MEMORIAL DAY TRUST,Yes,Small,,,2100242909,,Holocaust Memorial Day Trust,SE1 7SJ,"940,000.00",Yes
925,Communities & Local Government,DCLG,13/05/2014,Current Grants to Non Profit Bodies,Neighbourhoods,CENTRE FOR ENGINEERING & MANUF EXCE,,,,,2100243043,,Centre for Engineering and Manufacturing,RM13 8EU,"136,635.00",Yes
926,Communities & Local Government,DCLG,13/05/2014,Current Grants to Non Profit Bodies,Neighbourhoods,CHARTERED INST OF HOUSING,Yes,Medium,,497178731,2100243048,,The CIH Making Better Use of Stock Project,CV4 8JP,"85,000.00",Yes
927,Communities & Local Government,DCLG,13/05/2014,Current Grants to Non Profit Bodies,Neighbourhoods,STH ACTON COMMUNITY BUILDERS CO-OP,,,,,5000242996,,Overpayment of Grant recovered by Exchequer,W3 8DD,"-1,497.00",Yes
928,Communities & Local Government,DCLG,13/05/2014,Electricity,Finance & Corporate Services,EDF ENERGY 1 LIMITED,,Large,,230840469,5106203671,Energy,EM Castle Don Electricity 2013-14,PL3 5XQ,"2,477.76",
929,Communities & Local Government,DCLG,13/05/2014,IT - Service Contracts,Finance & Corporate Services,LOCKHEED MARTIN BUSINESS TECH SOLUT,,Large,,399909910,5106203619,Managed / Outsourced Services,Monthly service cost 2013/2014,PA4 9LH,"42,907.72",
930,Communities & Local Government,DCLG,13/05/2014,IT - Service Contracts,Localism,INFORMED SOLUTIONS LTD,,Small,,346179542,5106203681,Managed / Outsourced Services,Payment to OS,WA14 4PA,"10,000.00",
931,Communities & Local Government,DCLG,13/05/2014,IT - Service Contracts,Neighbourhoods,JEREMY BENN ASSOCIATES LTD,,Medium,,525608741,5106203487,Managed / Outsourced Services,RGF web based sysyem,BD23 3AE,"5,200.37",
932,Communities & Local Government,DCLG,13/05/2014,Legal Fees,Finance & Corporate Services,DAVITT JONES BOULD LTD,,Medium,,,5106203686,Legal,Legal Advice,TA1 4EB,333.60,
